{"text_format":"1","workbook":"xlsx","n_sheets":15,"sheets":["Инструкция!","Баланс","Ф. 2","Ф. 3","Ф. 4","Ф. 5","Чистые активы","Расчет коэф.","Анализ I-II","Анализ III–V","Рентабельность","Взаимоувязка внутри форм","Увязка между формами","Норм. знач. коэф. ликвид.","Норм. знач. К1,К2,К3"],"not_rendered":{"charts":3,"images":2,"macros":1,"external_links":0,"defined_names":26,"comments":8,"pivot_tables":0},"unopened":[],"bounds":{"document_bytes":16777216,"sheet_cells":100000,"rows_first":2000,"rows_last":500,"rows_between":2000,"halvings":0,"cell_chars":16384,"cell_head_chars":4096},"cells_cut":0,"cells_raw":0,"read":"whole","date_system":"1900"}

{"sheet":"Инструкция!","index":0,"n_rows":0,"n_cols":0,"rows_kept":0,"cut":false,"hidden":false,"merged":[]}

{"sheet":"Баланс","index":1,"n_rows":124,"n_cols":47,"rows_kept":124,"cut":false,"hidden":false,"merged":[[113,0,113,16],[112,0,112,16],[112,19,112,26],[112,27,112,34],[113,19,113,26],[113,27,113,34],[113,17,113,18],[112,17,112,18],[121,10,121,16],[121,26,121,34],[117,10,117,16],[117,26,117,34],[118,26,118,34],[118,10,118,16],[120,10,120,16],[120,26,120,34],[111,27,111,34],[106,19,106,26],[106,27,106,34],[107,19,107,26],[107,27,107,34],[110,19,110,26],[110,27,110,34],[108,19,108,26],[108,27,108,34],[111,19,111,26],[105,19,105,26],[105,27,105,34],[104,19,104,26],[104,27,104,34],[102,19,102,26],[102,27,102,34],[103,19,103,26],[103,27,103,34],[109,19,109,26],[109,27,109,34],[94,27,94,34],[101,19,101,26],[101,27,101,34],[98,19,98,26],[98,27,98,34],[99,19,99,26],[99,27,99,34],[100,19,100,26],[100,27,100,34],[90,27,90,34],[97,19,97,26],[97,27,97,34],[95,19,95,26],[95,27,95,34],[96,19,96,26],[96,27,96,34],[93,19,93,26],[93,27,93,34],[87,27,87,34],[88,19,88,26],[88,27,88,34],[89,19,89,26],[89,27,89,34],[91,19,91,26],[90,19,90,26],[102,17,102,18],[79,27,79,34],[80,19,80,26],[80,27,80,34],[81,19,81,26],[81,27,81,34],[79,19,79,26],[94,19,94,26],[86,19,86,26],[86,27,86,34],[92,27,92,34],[82,19,82,26],[82,27,82,34],[108,17,108,18],[97,17,97,18],[98,17,98,18],[99,17,99,18],[100,17,100,18],[106,17,106,18],[103,17,103,18],[89,17,89,18],[107,17,107,18],[105,17,105,18],[83,27,83,34],[84,19,84,26],[84,27,84,34],[85,19,85,26],[85,27,85,34],[91,27,91,34],[92,19,92,26],[83,19,83,26],[104,17,104,18],[110,0,110,16],[111,0,111,16],[109,0,109,16],[110,17,110,18],[111,17,111,18],[108,0,108,16],[107,0,107,16],[87,19,87,26],[109,17,109,18],[96,17,96,18],[87,17,87,18],[92,17,92,18],[90,17,90,18],[93,17,93,18],[94,17,94,18],[95,17,95,18],[91,17,91,18],[101,17,101,18],[89,0,89,16],[101,0,101,16],[91,0,91,16],[92,0,92,16],[99,0,99,16],[95,0,95,16],[96,0,96,16],[100,0,100,16],[93,0,93,16],[94,0,94,16],[84,17,84,18],[86,0,86,16],[87,0,87,16],[88,0,88,16],[85,17,85,18],[86,17,86,18],[88,17,88,18],[85,0,85,16],[84,0,84,16],[106,0,106,16],[90,0,90,16],[102,0,102,16],[103,0,103,16],[104,0,104,16],[97,0,97,16],[98,0,98,16],[105,0,105,16],[82,0,82,16],[79,17,79,18],[80,17,80,18],[83,0,83,16],[81,0,81,16],[81,17,81,18],[82,17,82,18],[83,17,83,18],[79,0,79,16],[80,0,80,16],[71,17,71,18],[78,0,78,16],[77,0,77,16],[72,17,72,18],[76,0,76,16],[71,0,71,16],[72,0,72,16],[77,19,77,26],[77,17,77,18],[74,0,75,16],[74,20,74,25],[77,27,77,34],[78,27,78,34],[78,19,78,26],[78,17,78,18],[76,17,76,18],[74,17,75,18],[71,19,71,26],[71,27,71,34],[72,19,72,26],[72,27,72,34],[74,28,74,33],[68,27,68,34],[63,27,63,34],[76,19,76,26],[70,19,70,26],[70,27,70,34],[65,19,65,26],[65,27,65,34],[66,19,66,26],[66,27,66,34],[67,19,67,26],[76,27,76,34],[56,27,56,34],[69,19,69,26],[69,27,69,34],[64,19,64,26],[64,27,64,34],[67,27,67,34],[68,19,68,26],[62,27,62,34],[61,19,61,26],[61,27,61,34],[57,19,57,26],[57,27,57,34],[58,19,58,26],[58,27,58,34],[59,19,59,26],[59,27,59,34],[43,19,43,26],[44,19,44,26],[43,27,43,34],[44,27,44,34],[45,19,45,26],[45,27,45,34],[46,19,46,26],[46,27,46,34],[47,27,47,34],[47,19,47,26],[48,27,48,34],[49,19,49,26],[48,19,48,26],[49,27,49,34],[56,19,56,26],[60,19,60,26],[62,19,62,26],[53,27,53,34],[54,19,54,26],[54,27,54,34],[53,19,53,26],[60,27,60,34],[55,19,55,26],[55,27,55,34],[50,27,50,34],[50,19,50,26],[51,19,51,26],[52,27,52,34],[67,17,67,18],[68,17,68,18],[57,17,57,18],[53,17,53,18],[63,17,63,18],[65,17,65,18],[69,17,69,18],[70,17,70,18],[51,27,51,34],[52,19,52,26],[63,19,63,26],[59,17,59,18],[55,17,55,18],[64,17,64,18],[66,17,66,18],[56,17,56,18],[54,17,54,18],[60,17,60,18],[61,17,61,18],[62,17,62,18],[44,0,44,16],[45,0,45,16],[48,0,48,16],[46,0,46,16],[47,0,47,16],[53,0,53,16],[43,0,43,16],[58,17,58,18],[49,0,49,16],[49,17,49,18],[43,17,43,18],[44,17,44,18],[45,17,45,18],[47,17,47,18],[48,17,48,18],[46,17,46,18],[50,0,50,16],[50,17,50,18],[51,17,51,18],[52,17,52,18],[70,0,70,16],[60,0,60,16],[64,0,64,16],[63,0,63,16],[65,0,65,16],[66,0,66,16],[67,0,67,16],[61,0,61,16],[62,0,62,16],[68,0,68,16],[69,0,69,16],[55,0,55,16],[41,0,41,16],[42,0,42,16],[40,19,40,26],[51,0,51,16],[58,0,58,16],[59,0,59,16],[52,0,52,16],[56,0,56,16],[57,0,57,16],[54,0,54,16],[41,27,41,34],[42,27,42,34],[41,17,41,18],[42,17,42,18],[41,19,41,26],[42,19,42,26],[40,17,40,18],[40,0,40,16],[40,27,40,34],[31,16,31,21],[38,17,39,18],[38,20,38,25],[38,0,39,16],[32,16,32,21],[32,9,32,15],[33,9,33,15],[123,0,123,8],[26,12,26,34],[23,12,23,34],[24,12,24,34],[25,12,25,34],[29,0,29,11],[31,9,31,15],[27,12,27,34],[33,16,33,21],[29,12,29,34],[9,10,9,15],[7,10,7,15],[24,0,24,11],[20,13,20,21],[23,0,23,11],[0,42,0,43],[1,42,2,43],[2,14,2,16],[4,20,4,22],[28,12,28,34],[1,44,2,44],[38,28,38,33],[36,36,40,38],[4,24,4,26],[19,0,19,34],[27,0,27,11],[28,0,28,11],[25,0,25,11],[26,0,26,11]]}
["Введите отчетный период:",null,null,null,null,null,null,null,null,null,null,null,null,null,null,null,null,null,null,null,null,null,null,null,null,null,null,null,null,null,null,null,null,null,null,null,null,null,null,null,2016,"I","Начало отчетного периода",null,"Конец отчетного периода"]
[null,null,null,null,null,null,null,null,null,null,null,null,null,null,null,null,null,null,null,null,null,null,null,null,null,null,null,null,null,null,null,null,null,null,null,null,null,null,null,null,2017,"II",{"$f":"IF(AND($K$8=\"\",$U$5=\"\",$O$3=\"\"),\"\",IF(AND($K$8=\"\",$U$5=\"\"),VLOOKUP($O$3,$AQ$5:$AS$13,2,0),IF(AND($K$8=\"\",$O$3=\"\"),VLOOKUP($U$5,$AQ$5:$AS$13,2,0),$K$8)))","v":"2018-01-01"},null,{"$f":"IF(AND($K$10=\"\",$U$5=\"\",$O$3=\"\"),\"\",IF(AND($K$10=\"\",$U$5=\"\"),VLOOKUP($O$3,$AQ$5:$AS$13,3,0),IF(AND($K$10=\"\",$O$3=\"\"),VLOOKUP($U$5,$AQ$5:$AS$13,3,0),$K$10)))","v":"2018-12-31"}]
["для годовой отчетности – выберите год",null,null,null,null,null,null,null,null,null,null,null,null,null,2018,null,null,null,null,null,null,null,null,null,null,null,null,null,null,null,null,null,null,null,null,null,null,null,null,null,2018,"III"]
[null,null,null,null,null,null,null,null,null,null,null,null,null,null,null,null,null,null,null,null,null,null,null,null,null,null,null,null,null,null,null,null,null,null,null,null,null,null,null,null,2019,"IV"]
["для квартальной отчетности – выберите номер кваратал и год",null,null,null,null,null,null,null,null,null,null,null,null,null,null,null,null,null,null,null,null,null,null,null,null,null,null,null,null,null,null,null,null,null,null,null,null,null,null,null,2020,null,"I",{"$f":"DATE($Y$5,1,1)","v":"1900-01-01"},{"$f":"DATE($Y$5,3,31)","v":"1900-03-31"},1,"январь"]
[null,null,null,null,null,null,null,null,null,null,null,null,null,null,null,null,null,null,null,null,null,null,null,null,null,null,null,null,null,null,null,null,null,null,null,null,null,null,null,null,null,null,"II",{"$f":"DATE($Y$5,1,1)","v":"1900-01-01"},{"$f":"DATE($Y$5,6,30)","v":"1900-06-30"},2,"февраль"]
["для месячной отчетности (иной период) – введите даты:",null,null,null,null,null,null,null,null,null,null,null,null,null,null,null,null,null,null,null,null,null,null,null,null,null,null,null,null,null,null,null,null,null,null,null,null,null,null,null,null,null,"III",{"$f":"DATE($Y$5,1,1)","v":"1900-01-01"},{"$f":"DATE($Y$5,9,30)","v":"1900-09-30"},3,"март"]
["начало отчетного периода",null,null,null,null,null,null,null,null,null,null,null,null,null,null,null,null,null,null,null,null,null,null,null,null,null,null,null,null,null,null,null,null,null,null,null,null,null,null,null,null,null,"IV",{"$f":"DATE($Y$5,1,1)","v":"1900-01-01"},{"$f":"DATE($Y$5,12,31)","v":"1900-12-31"},4,"апрель"]
[null,null,null,null,null,null,null,null,null,null,null,null,null,null,null,null,null,null,null,null,null,null,null,null,null,null,null,null,null,null,null,null,null,null,null,null,null,null,null,null,null,null,2016,{"$f":"DATE(AQ9,1,1)","v":"2016-01-01"},{"$f":"DATE(AQ9,12,31)","v":"2016-12-31"},5,"май"]
["конец отчетного периода",null,null,null,null,null,null,null,null,null,null,null,null,null,null,null,null,null,null,null,null,null,null,null,null,null,null,null,null,null,null,null,null,null,null,null,null,null,null,null,null,null,2017,{"$f":"DATE(AQ10,1,1)","v":"2017-01-01"},{"$f":"DATE(AQ10,12,31)","v":"2017-12-31"},6,"июнь"]
[null,null,null,null,null,null,null,null,null,null,null,null,null,null,null,null,null,null,null,null,null,null,null,null,null,null,null,null,null,null,null,null,null,null,null,null,null,null,null,null,null,null,2018,{"$f":"DATE(AQ11,1,1)","v":"2018-01-01"},{"$f":"DATE(AQ11,12,31)","v":"2018-12-31"},7,"июль"]
[null,null,null,null,null,null,null,null,null,null,null,null,null,null,null,null,null,null,null,null,null,null,null,null,null,"Приложение 1",null,null,null,null,null,null,null,null,null,null,null,null,null,null,null,null,2019,{"$f":"DATE(AQ12,1,1)","v":"2019-01-01"},{"$f":"DATE(AQ12,12,31)","v":"2019-12-31"},8,"август"]
[null,null,null,null,null,null,null,null,null,null,null,null,null,null,null,null,null,null,null,null,null,null,null,null,null,"к Национальному стандарту",null,null,null,null,null,null,null,null,null,null,null,null,null,null,null,null,2020,{"$f":"DATE(AQ13,1,1)","v":"2020-01-01"},{"$f":"DATE(AQ13,12,31)","v":"2020-12-31"},9,"сентябрь"]
[null,null,null,null,null,null,null,null,null,null,null,null,null,null,null,null,null,null,null,null,null,null,null,null,null,"бухгалтерского учета и",null,null,null,null,null,null,null,null,null,null,null,null,null,null,null,null,null,null,null,10,"октябрь"]
[null,null,null,null,null,null,null,null,null,null,null,null,null,null,null,null,null,null,null,null,null,null,null,null,null,"отчетности «Индивидуальная",null,null,null,null,null,null,null,null,null,null,null,null,null,null,null,null,{"$f":"IF(AQ2=\"\",\"\",MONTH(AQ2))","v":1},{"$f":"IF(AQ15=\"\",\"\",VLOOKUP(AQ15,AT5:AU16,2,0))","v":"январь"},null,11,"ноябрь"]
[null,null,null,null,null,null,null,null,null,null,null,null,null,null,null,null,null,null,null,null,null,null,null,null,null,"бухгалтерская отчетность» ",null,null,null,null,null,null,null,null,null,null,null,null,null,null,null,null,{"$f":"IF(AS2=\"\",\"\",MONTH(AS2))","v":12},{"$f":"IF(AQ16=\"\",\"\",VLOOKUP(AQ16,AT5:AU16,2,0))","v":"декабрь"},null,12,"декабрь"]
[null,null,null,null,null,null,null,null,null,null,null,null,null,null,null,null,null,null,null,null,null,null,null,null,null,null,null,null,null,null,null,null,null,null,null,null,null,null,null,null,null,null,{"$f":"IF(AS2=\"\",\"\",YEAR(AS2))","v":2018}]
[null,null,null,null,null,null,null,null,null,null,null,null,null,null,null,null,null,null,null,null,null,null,null,null,null,null,null,null,null,null,null,null,null,null,"Форма",null,null,null,null,null,null,null,{"$f":"IF(AQ17=\"\",\"\",AQ17-1)","v":2017}]
[]
["БУХГАЛТЕРСКИЙ БАЛАНС"]
[null,null,null,null,null,null,null,null,null,null,null,null,"на",{"$f":"IF(AS2=\"\",\"\",AS2)","v":"2018-12-31"}]
[]
[]
["Организация"]
["Учетный номер плательщика"]
["Вид экономической деятельности"]
["Организационно-правовая форма"]
["Орган управления"]
["Единица измерения"]
["Адрес"]
[]
[null,null,null,null,null,null,null,null,null,"Дата утверждения"]
[null,null,null,null,null,null,null,null,null,"Дата отправки"]
[null,null,null,null,null,null,null,null,null,"Дата принятия"]
[]
[]
[null,null,null,null,null,null,null,null,null,null,null,null,null,null,null,null,null,null,null,null,null,null,null,null,null,null,null,null,null,null,null,null,null,null,null,null,"№ счетов бухгалтерского учета (постановление Министерства финансов Республики Беларусь\nот 29.06.2011 № 50)"]
[]
["Активы",null,null,null,null,null,null,null,null,null,null,null,null,null,null,null,null,"Код строки",null,"На",{"$f":"AS2","v":"2018-12-31"},null,null,null,null,null,null,"На",{"$f":"IF(AS2=\"\",\"\",DATE(YEAR(AS2),MONTH(0),DAY(0)))","v":"2017-12-31"}]
[]
[1,null,null,null,null,null,null,null,null,null,null,null,null,null,null,null,null,2,null,3,null,null,null,null,null,null,null,4]
["I. ДОЛГОСРОЧНЫЕ АКТИВЫ"]
["Основные средства",null,null,null,null,null,null,null,null,null,null,null,null,null,null,null,null,110,null,null,null,null,null,null,null,null,null,null,null,null,null,null,null,null,null,null,"01, 02"]
["Нематериальные активы",null,null,null,null,null,null,null,null,null,null,null,null,null,null,null,null,120,null,null,null,null,null,null,null,null,null,null,null,null,null,null,null,null,null,null,"04, 05"]
["Доходные вложения в материальные активы",null,null,null,null,null,null,null,null,null,null,null,null,null,null,null,null,130,null,{"$f":"SUM(T47,T48,T49)","v":0},null,null,null,null,null,null,null,{"$f":"SUM(AB47,AB48,AB49)","v":0},null,null,null,null,null,null,null,null,"02, 03"]
["в том числе:"]
["инвестиционная недвижимость",null,null,null,null,null,null,null,null,null,null,null,null,null,null,null,null,131]
["предметы финансовой аренды (лизинга)",null,null,null,null,null,null,null,null,null,null,null,null,null,null,null,null,132]
["прочие доходные вложения в материальные активы",null,null,null,null,null,null,null,null,null,null,null,null,null,null,null,null,133]
["Вложения в долгосрочные активы",null,null,null,null,null,null,null,null,null,null,null,null,null,null,null,null,140,null,null,null,null,null,null,null,null,null,null,null,null,null,null,null,null,null,null,"07, 08"]
["Долгосрочные финансовые вложения",null,null,null,null,null,null,null,null,null,null,null,null,null,null,null,null,150,null,null,null,null,null,null,null,null,null,null,null,null,null,null,null,null,null,null,"06"]
["Отложенные налоговые активы",null,null,null,null,null,null,null,null,null,null,null,null,null,null,null,null,160,null,null,null,null,null,null,null,null,null,null,null,null,null,null,null,null,null,null,"09"]
["Долгосрочная дебиторская задолженность",null,null,null,null,null,null,null,null,null,null,null,null,null,null,null,null,170,null,null,null,null,null,null,null,null,null,null,null,null,null,null,null,null,null,null,"60, 62, 63, 68, 69, 73, 75, 76, 79"]
["Прочие долгосрочные активы",null,null,null,null,null,null,null,null,null,null,null,null,null,null,null,null,180,null,null,null,null,null,null,null,null,null,null,null,null,null,null,null,null,null,null,97]
["ИТОГО по разделу I",null,null,null,null,null,null,null,null,null,null,null,null,null,null,null,null,190,null,{"$f":"SUM(T43,T44,T45,T50,T51,T52,T53,T54)","v":0},null,null,null,null,null,null,null,{"$f":"SUM(AB43,AB44,AB45,AB50,AB51,AB52,AB53,AB54)","v":0}]
["II. КРАТКОСРОЧНЫЕ АКТИВЫ"]
["Запасы",null,null,null,null,null,null,null,null,null,null,null,null,null,null,null,null,210,null,{"$f":"SUM(T59,T60,T61,T62,T63,T64)","v":0},null,null,null,null,null,null,null,{"$f":"SUM(AB59,AB60,AB61,AB62,AB63,AB64)","v":0}]
["в том числе:"]
["материалы",null,null,null,null,null,null,null,null,null,null,null,null,null,null,null,null,211,null,null,null,null,null,null,null,null,null,null,null,null,null,null,null,null,null,null,"10, 15, 16, 14"]
["животные на выращивании и откорме",null,null,null,null,null,null,null,null,null,null,null,null,null,null,null,null,212,null,null,null,null,null,null,null,null,null,null,null,null,null,null,null,null,null,null,"11, 15, 16, 14"]
["незавершенное производство",null,null,null,null,null,null,null,null,null,null,null,null,null,null,null,null,213,null,null,null,null,null,null,null,null,null,null,null,null,null,null,null,null,null,null,"20, 21, 23, 29, 14"]
["готовая продукция и товары",null,null,null,null,null,null,null,null,null,null,null,null,null,null,null,null,214,null,null,null,null,null,null,null,null,null,null,null,null,null,null,null,null,null,null,"41, 42, 43, 44, 14"]
["товары отгруженные",null,null,null,null,null,null,null,null,null,null,null,null,null,null,null,null,215,null,null,null,null,null,null,null,null,null,null,null,null,null,null,null,null,null,null,45]
["прочие запасы",null,null,null,null,null,null,null,null,null,null,null,null,null,null,null,null,216,null,null,null,null,null,null,null,null,null,null,null,null,null,null,null,null,null,null,28]
["Долгосрочные активы, предназначенные для реализации",null,null,null,null,null,null,null,null,null,null,null,null,null,null,null,null,220,null,null,null,null,null,null,null,null,null,null,null,null,null,null,null,null,null,null,47]
["Расходы будущих периодов",null,null,null,null,null,null,null,null,null,null,null,null,null,null,null,null,230,null,null,null,null,null,null,null,null,null,null,null,null,null,null,null,null,null,null,97]
["Налог на добавленную стоимость по приобретенным товарам, работам, услугам",null,null,null,null,null,null,null,null,null,null,null,null,null,null,null,null,240,null,null,null,null,null,null,null,null,null,null,null,null,null,null,null,null,null,null,18]
["Краткосрочная дебиторская задолженность",null,null,null,null,null,null,null,null,null,null,null,null,null,null,null,null,250,null,null,null,null,null,null,null,null,null,null,null,null,null,null,null,null,null,null,"60, 62, 63, 68, 69, 70, 71, 73, 75, 76, 79"]
["Краткосрочные финансовые вложения",null,null,null,null,null,null,null,null,null,null,null,null,null,null,null,null,260,null,null,null,null,null,null,null,null,null,null,null,null,null,null,null,null,null,null,"58, 59, 06"]
["Денежные средства и эквиваленты денежных средств",null,null,null,null,null,null,null,null,null,null,null,null,null,null,null,null,270,null,null,null,null,null,null,null,null,null,null,null,null,null,null,null,null,null,null,"50, 51, 52, 55, 57, 58"]
["Прочие краткосрочные активы",null,null,null,null,null,null,null,null,null,null,null,null,null,null,null,null,280,null,null,null,null,null,null,null,null,null,null,null,null,null,null,null,null,null,null,94]
["ИТОГО по разделу II",null,null,null,null,null,null,null,null,null,null,null,null,null,null,null,null,290,null,{"$f":"SUM(T57,T65,T66,T67,T68,T69,T70,T71)","v":0},null,null,null,null,null,null,null,{"$f":"SUM(AB57,AB65,AB66,AB67,AB68,AB69,AB70,AB71)","v":0}]
["БАЛАНС",null,null,null,null,null,null,null,null,null,null,null,null,null,null,null,null,300,null,{"$f":"SUM(T55,T72)","v":0},null,null,null,null,null,null,null,{"$f":"SUM(AB55,AB72)","v":0}]
[]
["Собственный капитал и обязательства",null,null,null,null,null,null,null,null,null,null,null,null,null,null,null,null,"Код строки",null,"На",{"$f":"$U$39","v":"2018-12-31"},null,null,null,null,null,null,"На",{"$f":"$AC$39","v":"2017-12-31"}]
[]
[1,null,null,null,null,null,null,null,null,null,null,null,null,null,null,null,null,2,null,3,null,null,null,null,null,null,null,4]
["III. СОБСТВЕННЫЙ КАПИТАЛ"]
["Уставный капитал",null,null,null,null,null,null,null,null,null,null,null,null,null,null,null,null,410,null,null,null,null,null,null,null,null,null,null,null,null,null,null,null,null,null,null,80]
["Неоплаченная часть уставного капитала",null,null,null,null,null,null,null,null,null,null,null,null,null,null,null,null,420,null,null,null,null,null,null,null,null,null,null,null,null,null,null,null,null,null,null,"75, 75-1"]
["Собственные акции (доли в уставном капитале)",null,null,null,null,null,null,null,null,null,null,null,null,null,null,null,null,430,null,null,null,null,null,null,null,null,null,null,null,null,null,null,null,null,null,null,81]
["Резервный капитал",null,null,null,null,null,null,null,null,null,null,null,null,null,null,null,null,440,null,null,null,null,null,null,null,null,null,null,null,null,null,null,null,null,null,null,82]
["Добавочный капитал",null,null,null,null,null,null,null,null,null,null,null,null,null,null,null,null,450,null,null,null,null,null,null,null,null,null,null,null,null,null,null,null,null,null,null,83]
["Нераспределенная прибыль (непокрытый убыток)",null,null,null,null,null,null,null,null,null,null,null,null,null,null,null,null,460,null,null,null,null,null,null,null,null,null,null,null,null,null,null,null,null,null,null,84]
["Чистая прибыль (убыток) отчетного периода",null,null,null,null,null,null,null,null,null,null,null,null,null,null,null,null,470,null,null,null,null,null,null,null,null,null,null,null,null,null,null,null,null,null,null,99]
["Целевое финансирование",null,null,null,null,null,null,null,null,null,null,null,null,null,null,null,null,480,null,null,null,null,null,null,null,null,null,null,null,null,null,null,null,null,null,null,86]
["ИТОГО по разделу III",null,null,null,null,null,null,null,null,null,null,null,null,null,null,null,null,490,null,{"$f":"IF(OR($U$5=\"I\",$U$5=\"II\",$U$5=\"III\",$U$5=\"IV\",AND($K$8>0,$K$10>0)),SUM(T79,T82,T83,T84,T85,T86)-T80-T81,SUM(T79,T82,T83,T84,T86)-T80-T81)","v":0},null,null,null,null,null,null,null,{"$f":"IF(OR($U$5=\"I\",$U$5=\"II\",$U$5=\"III\",$U$5=\"IV\",AND($K$8>0,$K$10>0)),SUM(AB79,AB82,AB83,AB84,AB85,AB86)-AB80-AB81,SUM(AB79,AB82,AB83,AB84,AB86)-AB80-AB81)","v":0}]
["IV. ДОЛГОСРОЧНЫЕ ОБЯЗАТЕЛЬСТВА"]
["Долгосрочные кредиты и займы",null,null,null,null,null,null,null,null,null,null,null,null,null,null,null,null,510,null,null,null,null,null,null,null,null,null,null,null,null,null,null,null,null,null,null,67]
["Долгосрочные обязательства по лизинговым платежам",null,null,null,null,null,null,null,null,null,null,null,null,null,null,null,null,520,null,null,null,null,null,null,null,null,null,null,null,null,null,null,null,null,null,null,76]
["Отложенные налоговые обязательства",null,null,null,null,null,null,null,null,null,null,null,null,null,null,null,null,530,null,null,null,null,null,null,null,null,null,null,null,null,null,null,null,null,null,null,65]
["Доходы будущих периодов",null,null,null,null,null,null,null,null,null,null,null,null,null,null,null,null,540,null,null,null,null,null,null,null,null,null,null,null,null,null,null,null,null,null,null,98]
["Резервы предстоящих платежей",null,null,null,null,null,null,null,null,null,null,null,null,null,null,null,null,550,null,null,null,null,null,null,null,null,null,null,null,null,null,null,null,null,null,null,96]
["Прочие долгосрочные обязательства",null,null,null,null,null,null,null,null,null,null,null,null,null,null,null,null,560,null,null,null,null,null,null,null,null,null,null,null,null,null,null,null,null,null,null,"60, 62, 68, 69, 76, 79"]
["ИТОГО по разделу IV",null,null,null,null,null,null,null,null,null,null,null,null,null,null,null,null,590,null,{"$f":"SUM(T89,T90,T91,T92,T93,T94)","v":0},null,null,null,null,null,null,null,{"$f":"SUM(AB89,AB90,AB91,AB92,AB93,AB94)","v":0}]
["V. КРАТКОСРОЧНЫЕ ОБЯЗАТЕЛЬСТВА"]
["Краткосрочные кредиты и займы",null,null,null,null,null,null,null,null,null,null,null,null,null,null,null,null,610,null,null,null,null,null,null,null,null,null,null,null,null,null,null,null,null,null,null,66]
["Краткосрочная часть долгосрочных обязательств",null,null,null,null,null,null,null,null,null,null,null,null,null,null,null,null,620,null,null,null,null,null,null,null,null,null,null,null,null,null,null,null,null,null,null,67]
["Краткосрочная кредиторская задолженность",null,null,null,null,null,null,null,null,null,null,null,null,null,null,null,null,630,null,{"$f":"SUM(T101,T102,T103,T104,T105,T106,T107,T108)","v":0},null,null,null,null,null,null,null,{"$f":"SUM(AB101,AB102,AB103,AB104,AB105,AB106,AB107,AB108)","v":0}]
["в том числе:"]
["поставщикам, подрядчикам, исполнителям",null,null,null,null,null,null,null,null,null,null,null,null,null,null,null,null,631,null,null,null,null,null,null,null,null,null,null,null,null,null,null,null,null,null,null,60]
["по авансам полученным",null,null,null,null,null,null,null,null,null,null,null,null,null,null,null,null,632,null,null,null,null,null,null,null,null,null,null,null,null,null,null,null,null,null,null,62]
["по налогам и сборам",null,null,null,null,null,null,null,null,null,null,null,null,null,null,null,null,633,null,null,null,null,null,null,null,null,null,null,null,null,null,null,null,null,null,null,68]
["по социальному страхованию и обеспечению",null,null,null,null,null,null,null,null,null,null,null,null,null,null,null,null,634,null,null,null,null,null,null,null,null,null,null,null,null,null,null,null,null,null,null,69]
["по оплате труда",null,null,null,null,null,null,null,null,null,null,null,null,null,null,null,null,635,null,null,null,null,null,null,null,null,null,null,null,null,null,null,null,null,null,null,"70, 76"]
["по лизинговым платежам",null,null,null,null,null,null,null,null,null,null,null,null,null,null,null,null,636,null,null,null,null,null,null,null,null,null,null,null,null,null,null,null,null,null,null,76]
["собственнику имущества (учредителям, участникам)",null,null,null,null,null,null,null,null,null,null,null,null,null,null,null,null,637,null,null,null,null,null,null,null,null,null,null,null,null,null,null,null,null,null,null,"70, 75"]
["прочим кредиторам",null,null,null,null,null,null,null,null,null,null,null,null,null,null,null,null,638,null,null,null,null,null,null,null,null,null,null,null,null,null,null,null,null,null,null,"66, 67, 71, 73, 76, 79"]
["Обязательства, предназначенные для реализации",null,null,null,null,null,null,null,null,null,null,null,null,null,null,null,null,640,null,null,null,null,null,null,null,null,null,null,null,null,null,null,null,null,null,null,76]
["Доходы будущих периодов",null,null,null,null,null,null,null,null,null,null,null,null,null,null,null,null,650,null,null,null,null,null,null,null,null,null,null,null,null,null,null,null,null,null,null,98]
["Резервы предстоящих платежей",null,null,null,null,null,null,null,null,null,null,null,null,null,null,null,null,660,null,null,null,null,null,null,null,null,null,null,null,null,null,null,null,null,null,null,96]
["Прочие краткосрочные обязательства",null,null,null,null,null,null,null,null,null,null,null,null,null,null,null,null,670]
["ИТОГО по разделу V",null,null,null,null,null,null,null,null,null,null,null,null,null,null,null,null,690,null,{"$f":"SUM(T97,T98,T99,T109,T110,T111,T112)","v":0},null,null,null,null,null,null,null,{"$f":"SUM(AB97,AB98,AB99,AB109,AB110,AB111,AB112)","v":0}]
["БАЛАНС",null,null,null,null,null,null,null,null,null,null,null,null,null,null,null,null,700,null,{"$f":"SUM(T87,T95,T113)","v":0},null,null,null,null,null,null,null,{"$f":"SUM(AB87,AB95,AB113)","v":0}]
[]
[]
[]
["Руководитель"]
[null,null,null,null,null,null,null,null,null,null,"(подпись)",null,null,null,null,null,null,null,null,null,null,null,null,null,null,null,"(инициалы, фамилия)"]
[]
["Главный бухгалтер"]
[null,null,null,null,null,null,null,null,null,null,"(подпись)",null,null,null,null,null,null,null,null,null,null,null,null,null,null,null,"(инициалы, фамилия)"]
[]
[{"$f":"TODAY()","v":"2020-09-25"}]

{"sheet":"Ф. 2","index":2,"n_rows":74,"n_cols":37,"rows_kept":74,"cut":false,"hidden":false,"merged":[[73,0,73,8],[41,0,41,16],[37,0,37,16],[29,0,29,16],[46,0,46,16],[48,0,48,16],[43,0,43,16],[40,0,40,16],[71,10,71,16],[38,0,38,16],[60,36,60,42],[61,36,61,42],[55,36,55,42],[56,36,56,42],[58,36,58,42],[59,36,59,42],[63,36,63,42],[48,36,48,42],[49,36,49,42],[50,36,50,42],[57,36,57,42],[51,36,51,42],[52,36,52,42],[53,36,53,42],[54,36,54,42],[62,36,62,42],[47,36,47,42],[30,36,30,42],[31,36,31,42],[32,36,32,42],[33,36,33,42],[34,36,34,42],[35,36,35,42],[42,36,42,42],[43,36,43,42],[45,36,45,42],[46,36,46,42],[36,36,36,42],[39,36,39,42],[40,36,40,42],[41,36,41,42],[44,36,44,42],[37,36,37,42],[38,36,38,42],[27,36,27,42],[26,0,26,16],[27,0,27,16],[27,17,27,18],[26,27,26,34],[27,27,27,34],[26,17,26,18],[26,36,26,42],[25,27,25,34],[34,0,34,16],[33,0,33,16],[29,19,29,26],[31,0,31,16],[28,0,28,16],[26,19,26,26],[31,27,31,34],[38,17,38,18],[35,17,35,18],[22,36,22,42],[22,0,22,16],[22,17,22,18],[23,36,23,42],[22,27,22,34],[25,36,25,42],[24,36,24,42],[37,17,37,18],[40,17,40,18],[39,17,39,18],[28,36,28,42],[29,36,29,42],[32,17,32,18],[30,19,30,26],[29,27,29,34],[28,27,28,34],[31,17,31,18],[33,17,33,18],[36,17,36,18],[23,17,23,18],[24,17,24,18],[25,17,25,18],[34,17,34,18],[30,17,30,18],[13,0,13,12],[14,0,14,12],[15,0,15,12],[13,13,13,34],[14,13,14,34],[15,13,15,34],[20,20,20,25],[20,28,20,33],[25,0,25,16],[22,19,22,26],[25,19,25,26],[23,27,23,34],[20,17,21,18],[20,0,21,16],[24,19,24,26],[24,27,24,34],[8,0,8,34],[30,0,30,16],[9,14,9,21],[32,0,32,16],[17,0,17,12],[18,0,18,12],[23,0,23,16],[24,0,24,16],[17,13,17,34],[18,13,18,34],[60,27,60,34],[62,19,62,26],[34,19,34,26],[59,0,59,16],[41,17,41,18],[44,17,44,18],[44,0,44,16],[42,0,42,16],[42,17,42,18],[55,0,55,16],[63,19,63,26],[63,27,63,34],[63,0,63,16],[61,27,61,34],[63,17,63,18],[62,27,62,34],[62,0,62,16],[62,17,62,18],[61,17,61,18],[71,26,71,34],[67,10,67,16],[67,26,67,34],[68,10,68,16],[68,26,68,34],[70,10,70,16],[70,26,70,34],[36,0,36,16],[35,0,35,16],[39,0,39,16],[61,0,61,16],[58,0,58,16],[60,0,60,16],[49,0,49,16],[57,0,57,16],[45,0,45,16],[47,0,47,16],[50,0,50,16],[46,17,46,18],[56,19,56,26],[53,0,53,16],[48,17,48,18],[56,0,56,16],[50,19,50,26],[48,19,48,26],[55,17,55,18],[55,19,55,26],[51,17,51,18],[52,17,52,18],[50,17,50,18],[56,17,56,18],[53,17,53,18],[54,17,54,18],[60,19,60,26],[54,19,54,26],[51,0,51,16],[52,0,52,16],[54,0,54,16],[51,19,51,26],[59,17,59,18],[58,17,58,18],[60,17,60,18],[57,17,57,18],[43,17,43,18],[49,17,49,18],[47,17,47,18],[45,17,45,18],[59,19,59,26],[61,19,61,26],[52,19,52,26],[58,19,58,26],[53,19,53,26],[57,19,57,26],[12,0,12,12],[30,27,30,34],[28,19,28,26],[23,19,23,26],[27,19,27,26],[28,17,28,18],[29,17,29,18],[16,13,16,34],[16,0,16,12],[12,13,12,34],[42,19,42,26],[38,27,38,34],[39,27,39,34],[40,19,40,26],[40,27,40,34],[38,19,38,26],[41,19,41,26],[42,27,42,34],[54,27,54,34],[58,27,58,34],[37,27,37,34],[34,27,34,34],[35,27,35,34],[36,19,36,26],[36,27,36,34],[35,19,35,26],[37,19,37,26],[41,27,41,34],[57,27,57,34],[51,27,51,34],[47,27,47,34],[48,27,48,34],[49,27,49,34],[59,27,59,34],[55,27,55,34],[52,27,52,34],[53,27,53,34],[56,27,56,34],[46,19,46,26],[44,19,44,26],[47,19,47,26],[49,19,49,26],[45,19,45,26],[50,27,50,34],[46,27,46,34],[45,27,45,34],[17,36,21,42],[43,27,43,34],[44,27,44,34],[43,19,43,26],[31,19,31,26],[32,19,32,26],[32,27,32,34],[33,19,33,26],[33,27,33,34],[39,19,39,26]]}
[null,null,null,null,null,null,null,null,null,null,null,null,null,null,null,null,null,null,null,null,null,null,null,null,null,null,"Приложение 2"]
[null,null,null,null,null,null,null,null,null,null,null,null,null,null,null,null,null,null,null,null,null,null,null,null,null,null,"к Национальному стандарту"]
[null,null,null,null,null,null,null,null,null,null,null,null,null,null,null,null,null,null,null,null,null,null,null,null,null,null,"бухгалтерского учета и"]
[null,null,null,null,null,null,null,null,null,null,null,null,null,null,null,null,null,null,null,null,null,null,null,null,null,null,"отчетности «Индивидуальная"]
[null,null,null,null,null,null,null,null,null,null,null,null,null,null,null,null,null,null,null,null,null,null,null,null,null,null,"бухгалтерская отчетность» "]
[]
[null,null,null,null,null,null,null,null,null,null,null,null,null,null,null,null,null,null,null,null,null,null,null,null,null,null,null,null,null,null,null,null,null,null,"Форма"]
[]
["ОТЧЕТ\nо прибылях и убытках"]
[null,null,null,null,null,null,null,null,null,null,null,null,null,"за",{"$f":"CONCATENATE(Баланс!$AR$15,\"–\",Баланс!$AR$16,\" \",Баланс!$AQ$17)","v":"январь–декабрь 2018"},null,null,null,null,null,null,null,"г."]
[]
[]
["Организация",null,null,null,null,null,null,null,null,null,null,null,null,{"$f":"IF(Баланс!M24=\"\",\"\",Баланс!M24)","v":""}]
["Учетный номер плательщика",null,null,null,null,null,null,null,null,null,null,null,null,{"$f":"IF(Баланс!M25=\"\",\"\",Баланс!M25)","v":""}]
["Вид экономической деятельности",null,null,null,null,null,null,null,null,null,null,null,null,{"$f":"IF(Баланс!M26=\"\",\"\",Баланс!M26)","v":""}]
["Организационно-правовая форма",null,null,null,null,null,null,null,null,null,null,null,null,{"$f":"IF(Баланс!M27=\"\",\"\",Баланс!M27)","v":""}]
["Орган управления",null,null,null,null,null,null,null,null,null,null,null,null,{"$f":"IF(Баланс!M28=\"\",\"\",Баланс!M28)","v":""}]
["Единица измерения",null,null,null,null,null,null,null,null,null,null,null,null,{"$f":"IF(Баланс!M29=\"\",\"\",Баланс!M29)","v":""},null,null,null,null,null,null,null,null,null,null,null,null,null,null,null,null,null,null,null,null,null,null,"№ счетов бухгалтерского учета (постановление Министерства финансов Республики Беларусь\nот 29.06.2011 № 50)"]
["Адрес",null,null,null,null,null,null,null,null,null,null,null,null,{"$f":"IF(Баланс!M30=\"\",\"\",Баланс!M30)","v":""}]
[]
["Наименование показателей",null,null,null,null,null,null,null,null,null,null,null,null,null,null,null,null,"Код строки",null,"За",{"$f":"O10","v":"январь–декабрь 2018"},null,null,null,null,null,"г.","За",{"$f":"CONCATENATE(Баланс!$AR$15,\"–\",Баланс!$AR$16,\" \",Баланс!$AQ$18)","v":"январь–декабрь 2017"},null,null,null,null,null,"г."]
[]
[1,null,null,null,null,null,null,null,null,null,null,null,null,null,null,null,null,2,null,3,null,null,null,null,null,null,null,4]
["Выручка от реализации продукции, товаров, работ, услуг",null,null,null,null,null,null,null,null,null,null,null,null,null,null,null,null,"010",null,null,null,null,null,null,null,null,null,null,null,null,null,null,null,null,null,null,"90, 90-1, 90-2, 90-3"]
["Себестоимость реализованной продукции, товаров, работ, услуг",null,null,null,null,null,null,null,null,null,null,null,null,null,null,null,null,"020",null,null,null,null,null,null,null,null,null,null,null,null,null,null,null,null,null,null,"90, 90-4"]
["Валовая прибыль",null,null,null,null,null,null,null,null,null,null,null,null,null,null,null,null,"030",null,{"$f":"T24-T25","v":0},null,null,null,null,null,null,null,{"$f":"AB24-AB25","v":0}]
["Управленческие расходы",null,null,null,null,null,null,null,null,null,null,null,null,null,null,null,null,"040",null,null,null,null,null,null,null,null,null,null,null,null,null,null,null,null,null,null,"90, 90-5"]
["Расходы на реализацию",null,null,null,null,null,null,null,null,null,null,null,null,null,null,null,null,"050",null,null,null,null,null,null,null,null,null,null,null,null,null,null,null,null,null,null,"90, 90-6"]
["Прибыль (убыток) от реализации продукции, товаров, работ, услуг",null,null,null,null,null,null,null,null,null,null,null,null,null,null,null,null,"060",null,{"$f":"T26-T27-T28","v":0},null,null,null,null,null,null,null,{"$f":"AB26-AB27-AB28","v":0}]
["Прочие доходы по текущей деятельности",null,null,null,null,null,null,null,null,null,null,null,null,null,null,null,null,"070",null,null,null,null,null,null,null,null,null,null,null,null,null,null,null,null,null,null,"90, 90-7, 90-8, 90-9"]
["Прочие расходы по текущей деятельности",null,null,null,null,null,null,null,null,null,null,null,null,null,null,null,null,"080",null,null,null,null,null,null,null,null,null,null,null,null,null,null,null,null,null,null,"90, 90-10"]
["Прибыль (убыток) от текущей деятельности",null,null,null,null,null,null,null,null,null,null,null,null,null,null,null,null,"090",null,{"$f":"T29+T30-T31","v":0},null,null,null,null,null,null,null,{"$f":"AB29+AB30-AB31","v":0}]
["Доходы по инвестиционной деятельности",null,null,null,null,null,null,null,null,null,null,null,null,null,null,null,null,"100",null,{"$f":"SUM(T35,T36,T37,T38)","v":0},null,null,null,null,null,null,null,{"$f":"SUM(AB35,AB36,AB37,AB38)","v":0},null,null,null,null,null,null,null,null,"91, 91-1, 91-2, 91-3"]
["в том числе:"]
["доходы от выбытия основных средств, нематериаль-\nных активов и других долгосрочных активов",null,null,null,null,null,null,null,null,null,null,null,null,null,null,null,null,101]
["доходы от участия в уставных капиталах других организаций",null,null,null,null,null,null,null,null,null,null,null,null,null,null,null,null,102]
["проценты к получению",null,null,null,null,null,null,null,null,null,null,null,null,null,null,null,null,103]
["прочие доходы по инвестиционной деятельности",null,null,null,null,null,null,null,null,null,null,null,null,null,null,null,null,104]
["Расходы по инвестиционной деятельности",null,null,null,null,null,null,null,null,null,null,null,null,null,null,null,null,110,null,{"$f":"SUM(T41,T42)","v":0},null,null,null,null,null,null,null,{"$f":"SUM(AB41,AB42)","v":0},null,null,null,null,null,null,null,null,"91, 91-4"]
["в том числе:"]
["расходы от выбытия основных средств, нематериаль-\nных активов и других долгосрочных активов",null,null,null,null,null,null,null,null,null,null,null,null,null,null,null,null,111]
["прочие расходы по инвестиционной деятельности",null,null,null,null,null,null,null,null,null,null,null,null,null,null,null,null,112]
["Доходы по финансовой деятельности",null,null,null,null,null,null,null,null,null,null,null,null,null,null,null,null,120,null,{"$f":"SUM(T45,T46)","v":0},null,null,null,null,null,null,null,{"$f":"SUM(AB45,AB46)","v":0},null,null,null,null,null,null,null,null,"91, 91-1, 91-2, 91-3"]
["в том числе:"]
["курсовые разницы от пересчета активов и обязательств",null,null,null,null,null,null,null,null,null,null,null,null,null,null,null,null,121]
["прочие доходы по финансовой деятельности",null,null,null,null,null,null,null,null,null,null,null,null,null,null,null,null,122]
["Расходы по финансовой деятельности",null,null,null,null,null,null,null,null,null,null,null,null,null,null,null,null,130,null,{"$f":"SUM(T49,T50,T51)","v":0},null,null,null,null,null,null,null,{"$f":"SUM(AB49,AB50,AB51)","v":0},null,null,null,null,null,null,null,null,"91, 91-4"]
["в том числе:"]
["проценты к уплате",null,null,null,null,null,null,null,null,null,null,null,null,null,null,null,null,131]
["курсовые разницы от пересчета активов и обязательств",null,null,null,null,null,null,null,null,null,null,null,null,null,null,null,null,132]
["прочие расходы по финансовой деятельности",null,null,null,null,null,null,null,null,null,null,null,null,null,null,null,null,133]
["Прибыль (убыток) от инвестиционной и финансовой деятельности",null,null,null,null,null,null,null,null,null,null,null,null,null,null,null,null,140,null,{"$f":"T33-T39+T43-T47","v":0},null,null,null,null,null,null,null,{"$f":"AB33-AB39+AB43-AB47","v":0}]
["Прибыль (убыток) до налогообложения",null,null,null,null,null,null,null,null,null,null,null,null,null,null,null,null,150,null,{"$f":"T32+T52","v":0},null,null,null,null,null,null,null,{"$f":"AB32+AB52","v":0}]
["Налог на прибыль",null,null,null,null,null,null,null,null,null,null,null,null,null,null,null,null,160,null,null,null,null,null,null,null,null,null,null,null,null,null,null,null,null,null,null,99]
["Изменение отложенных налоговых активов",null,null,null,null,null,null,null,null,null,null,null,null,null,null,null,null,170,null,null,null,null,null,null,null,null,null,null,null,null,null,null,null,null,null,null,"09"]
["Изменение отложенных налоговых обязательств",null,null,null,null,null,null,null,null,null,null,null,null,null,null,null,null,180,null,null,null,null,null,null,null,null,null,null,null,null,null,null,null,null,null,null,65]
["Прочие налоги и сборы, исчисляемые из прибыли (дохода)",null,null,null,null,null,null,null,null,null,null,null,null,null,null,null,null,190,null,null,null,null,null,null,null,null,null,null,null,null,null,null,null,null,null,null,99]
["Прочие платежи, исчисляемые из прибыли (дохода)",null,null,null,null,null,null,null,null,null,null,null,null,null,null,null,null,200,null,null,null,null,null,null,null,null,null,null,null,null,null,null,null,null,null,null,99]
["Чистая прибыль (убыток)",null,null,null,null,null,null,null,null,null,null,null,null,null,null,null,null,210,null,{"$f":"T53-T54+T55+T56-T57-T58","v":0},null,null,null,null,null,null,null,{"$f":"AB53-AB54+AB55+AB56-AB57-AB58","v":0},null,null,null,null,null,null,null,null,{"$f":"Баланс!T85","v":0}]
["Результат от переоценки долгосрочных активов, не включаемый в чистую прибыль (убыток)",null,null,null,null,null,null,null,null,null,null,null,null,null,null,null,null,220,null,null,null,null,null,null,null,null,null,null,null,null,null,null,null,null,null,null,83]
["Результат от прочих операций, не включаемый в чистую прибыль (убыток)",null,null,null,null,null,null,null,null,null,null,null,null,null,null,null,null,230]
["Совокупная прибыль (убыток)",null,null,null,null,null,null,null,null,null,null,null,null,null,null,null,null,240,null,{"$f":"T59+T60+T61","v":0},null,null,null,null,null,null,null,{"$f":"AB59+AB60+AB61","v":0}]
["Базовая прибыль (убыток) на акцию",null,null,null,null,null,null,null,null,null,null,null,null,null,null,null,null,250]
["Разводненная прибыль (убыток) на акцию",null,null,null,null,null,null,null,null,null,null,null,null,null,null,null,null,260]
[]
[]
[]
["Руководитель",null,null,null,null,null,null,null,null,null,null,null,null,null,null,null,null,null,null,null,null,null,null,null,null,null,{"$f":"Баланс!AA118","v":0}]
[null,null,null,null,null,null,null,null,null,null,"(подпись)",null,null,null,null,null,null,null,null,null,null,null,null,null,null,null,"(инициалы, фамилия)"]
[]
["Главный бухгалтер",null,null,null,null,null,null,null,null,null,null,null,null,null,null,null,null,null,null,null,null,null,null,null,null,null,{"$f":"Баланс!AA121","v":0}]
[null,null,null,null,null,null,null,null,null,null,"(подпись)",null,null,null,null,null,null,null,null,null,null,null,null,null,null,null,"(инициалы, фамилия)"]
[]
[{"$f":"TODAY()","v":"2020-09-25"}]

{"sheet":"Ф. 3","index":3,"n_rows":103,"n_cols":57,"rows_kept":103,"cut":false,"hidden":false,"merged":[[49,0,49,10],[48,0,48,10],[49,16,49,18],[51,16,51,18],[59,13,59,15],[53,11,53,12],[52,13,52,15],[57,11,58,12],[57,13,58,15],[49,11,49,12],[46,0,46,10],[44,0,44,10],[61,11,61,12],[61,13,61,15],[91,53,92,55],[91,3,91,6],[57,3,57,6],[63,0,63,2],[65,1,65,7],[77,0,77,10],[86,0,86,10],[83,0,83,10],[82,0,82,10],[73,0,73,10],[33,0,33,10],[91,56,92,58],[91,47,92,49],[91,50,92,52],[37,11,37,12],[39,19,39,21],[62,11,64,12],[62,38,64,40],[62,41,64,43],[91,34,92,36],[91,44,92,46],[32,22,32,24],[32,25,32,27],[61,22,61,24],[61,25,61,27],[61,28,61,30],[22,28,23,30],[42,31,42,33],[42,25,42,27],[102,0,102,8],[29,9,29,10],[38,0,38,10],[57,31,58,33],[57,28,58,30],[59,22,59,24],[59,25,59,27],[22,34,23,36],[26,22,28,24],[26,25,28,27],[26,28,28,30],[26,31,28,33],[22,31,23,33],[22,25,23,27],[25,22,25,24],[25,34,25,36],[24,22,24,24],[25,25,25,27],[36,11,36,12],[34,28,34,30],[33,16,33,18],[35,11,35,12],[33,11,33,12],[34,16,34,18],[35,13,35,15],[31,13,31,15],[31,22,31,24],[26,16,28,18],[26,19,28,21],[33,25,33,27],[37,22,37,24],[33,13,33,15],[31,19,31,21],[31,16,31,18],[34,22,34,24],[29,25,30,27],[31,25,31,27],[22,13,23,15],[22,16,23,18],[22,19,23,21],[22,3,22,6],[27,0,27,2],[29,1,29,7],[25,19,25,21],[22,11,23,12],[26,11,28,12],[26,13,28,15],[14,0,14,14],[15,0,15,14],[16,0,16,14],[17,0,17,14],[20,0,20,10],[18,0,18,14],[20,11,20,12],[8,0,8,36],[12,15,12,36],[13,15,13,36],[12,0,12,14],[13,0,13,14],[9,15,9,22],[15,15,15,36],[16,15,16,36],[17,15,17,36],[18,15,18,36],[20,31,20,33],[20,28,20,30],[20,22,20,24],[20,19,20,21],[20,25,20,27],[21,0,21,10],[21,11,21,12],[21,13,21,15],[14,15,14,36],[20,16,20,18],[20,13,20,15],[21,16,21,18],[20,34,20,36],[21,19,21,21],[21,34,21,36],[21,22,21,24],[33,34,33,36],[31,31,31,33],[32,28,32,30],[33,28,33,30],[24,31,24,33],[24,25,24,27],[24,28,24,30],[22,22,23,24],[29,22,30,24],[29,34,30,36],[32,31,32,33],[32,34,32,36],[29,31,30,33],[31,34,31,36],[21,28,21,30],[21,31,21,33],[24,34,24,36],[25,31,25,33],[26,34,28,36],[38,28,38,30],[34,19,34,21],[31,0,31,10],[30,0,30,10],[32,13,32,15],[29,11,30,12],[31,11,31,12],[29,13,30,15],[32,0,32,10],[31,28,31,30],[29,16,30,18],[33,22,33,24],[38,31,38,33],[35,16,35,18],[35,19,35,21],[36,28,36,30],[38,25,38,27],[33,31,33,33],[33,19,33,21],[34,31,34,33],[42,16,42,18],[42,19,42,21],[29,28,30,30],[29,19,30,21],[34,11,34,12],[32,11,32,12],[34,25,34,27],[32,19,32,21],[34,13,34,15],[32,16,32,18],[39,16,39,18],[38,16,38,18],[43,11,43,12],[41,31,41,33],[40,28,40,30],[39,28,39,30],[41,28,41,30],[40,31,40,33],[42,11,42,12],[42,13,42,15],[35,22,35,24],[41,19,41,21],[37,19,37,21],[40,19,40,21],[38,22,38,24],[39,22,39,24],[36,19,36,21],[38,19,38,21],[40,16,40,18],[45,28,45,30],[45,19,45,21],[44,25,44,27],[43,28,43,30],[43,16,43,18],[43,19,43,21],[42,22,42,24],[42,28,42,30],[41,16,41,18],[44,16,44,18],[44,22,44,24],[44,19,44,21],[51,19,51,21],[52,19,52,21],[47,22,47,24],[51,22,51,24],[46,22,46,24],[45,22,45,24],[57,19,58,21],[50,11,50,12],[50,13,50,15],[50,16,50,18],[52,11,52,12],[51,11,51,12],[51,13,51,15],[54,11,54,12],[52,16,52,18],[54,13,54,15],[100,12,100,18],[69,13,69,15],[54,16,54,18],[53,16,53,18],[65,16,66,18],[73,13,73,15],[83,13,83,15],[72,11,72,12],[77,13,77,15],[74,13,74,15],[72,19,72,21],[67,19,67,21],[99,28,99,36],[68,25,68,27],[68,16,68,18],[68,19,68,21],[69,16,69,18],[72,16,72,18],[70,19,70,21],[73,19,73,21],[54,19,54,21],[55,16,56,18],[61,16,61,18],[61,19,61,21],[55,19,56,21],[100,28,100,36],[65,19,66,21],[65,31,66,33],[97,28,97,36],[69,25,69,27],[67,22,67,24],[57,16,58,18],[65,22,66,24],[55,22,56,24],[54,22,54,24],[53,19,53,21],[60,19,60,21],[60,22,60,24],[59,19,59,21],[59,16,59,18],[21,25,21,27],[46,19,46,21],[41,22,41,24],[40,22,40,24],[41,25,41,27],[40,25,40,27],[36,22,36,24],[36,25,36,27],[39,25,39,27],[24,19,24,21],[73,11,73,12],[77,11,77,12],[82,13,82,15],[81,13,81,15],[82,11,82,12],[75,11,75,12],[96,12,96,18],[86,16,86,18],[84,13,84,15],[90,13,90,15],[84,11,84,12],[74,16,74,18],[76,16,76,18],[89,11,89,12],[91,11,92,12],[80,13,80,15],[97,12,97,18],[86,13,86,15],[73,16,73,18],[79,11,79,12],[79,13,79,15],[80,11,80,12],[79,16,79,18],[75,16,75,18],[80,16,80,18],[85,16,85,18],[79,22,79,24],[90,16,90,18],[87,16,87,18],[83,19,83,21],[85,19,85,21],[84,19,84,21],[81,16,81,18],[84,22,84,24],[81,19,81,21],[89,22,89,24],[36,13,36,15],[36,16,36,18],[37,13,37,15],[37,16,37,18],[99,12,99,18],[76,31,76,33],[76,11,76,12],[81,31,81,33],[79,31,79,33],[80,25,80,27],[25,28,25,30],[24,13,24,15],[24,16,24,18],[25,13,25,15],[25,16,25,18],[53,22,53,24],[52,22,52,24],[49,19,49,21],[50,19,50,21],[49,28,49,30],[53,25,53,27],[49,22,49,24],[49,25,49,27],[43,31,43,33],[45,31,45,33],[50,28,50,30],[51,28,51,30],[49,31,49,33],[48,22,48,24],[47,25,47,27],[34,34,34,36],[96,28,96,36],[38,34,38,36],[39,34,39,36],[76,34,76,36],[79,34,79,36],[39,31,39,33],[80,28,80,30],[82,28,82,30],[81,28,81,30],[45,25,45,27],[46,25,46,27],[41,34,41,36],[42,34,42,36],[44,34,44,36],[43,34,43,36],[45,34,45,36],[43,22,43,24],[44,31,44,33],[44,28,44,30],[50,22,50,24],[50,31,50,33],[52,34,52,36],[48,34,48,36],[46,34,46,36],[46,28,46,30],[48,25,48,27],[50,25,50,27],[47,28,47,30],[51,25,51,27],[40,34,40,36],[51,34,51,36],[50,34,50,36],[51,31,51,33],[48,31,48,33],[47,34,47,36],[46,31,46,33],[52,28,52,30],[52,25,52,27],[47,31,47,33],[43,25,43,27],[36,34,36,36],[37,31,37,33],[37,34,37,36],[36,31,36,33],[49,34,49,36],[48,28,48,30],[57,22,58,24],[57,25,58,27],[54,28,54,30],[54,25,54,27],[35,34,35,36],[35,31,35,33],[37,25,37,27],[37,28,37,30],[35,25,35,27],[35,28,35,30],[62,34,64,36],[55,25,56,27],[57,34,58,36],[62,53,64,55],[59,31,59,33],[55,28,56,30],[59,28,59,30],[62,44,64,46],[62,47,64,49],[61,31,61,33],[59,34,59,36],[53,34,53,36],[55,31,56,33],[55,34,56,36],[52,31,52,33],[62,56,64,58],[53,31,53,33],[54,34,54,36],[54,31,54,33],[62,50,64,52],[61,38,61,58],[60,34,60,36],[72,31,72,33],[69,31,69,33],[72,34,72,36],[68,31,68,33],[71,31,71,33],[71,34,71,36],[61,34,61,36],[65,34,66,36],[73,25,73,27],[73,31,73,33],[73,22,73,24],[70,22,70,24],[72,22,72,24],[72,28,72,30],[71,25,71,27],[70,25,70,27],[72,25,72,27],[73,28,73,30],[70,31,70,33],[60,31,60,33],[60,28,60,30],[69,22,69,24],[68,22,68,24],[71,22,71,24],[65,25,66,27],[67,25,67,27],[67,31,67,33],[60,25,60,27],[53,28,53,30],[74,28,74,30],[71,28,71,30],[70,28,70,30],[68,28,68,30],[67,28,67,30],[69,28,69,30],[65,28,66,30],[75,19,75,21],[75,22,75,24],[74,22,74,24],[75,28,75,30],[76,28,76,30],[77,25,77,27],[76,25,76,27],[74,19,74,21],[78,22,78,24],[78,25,78,27],[77,22,77,24],[83,28,83,30],[82,22,82,24],[81,22,81,24],[78,28,78,30],[82,25,82,27],[81,25,81,27],[83,25,83,27],[88,22,88,24],[89,25,89,27],[84,28,84,30],[86,25,86,27],[87,25,87,27],[85,22,85,24],[85,25,85,27],[87,22,87,24],[84,25,84,27],[87,34,87,36],[88,34,88,36],[89,34,89,36],[89,28,89,30],[90,31,90,33],[90,19,90,21],[90,22,90,24],[90,25,90,27],[90,34,90,36],[88,25,88,27],[90,28,90,30],[88,31,88,33],[89,31,89,33],[87,28,87,30],[85,28,85,30],[86,28,86,30],[88,28,88,30],[85,31,85,33],[87,31,87,33],[84,34,84,36],[86,31,86,33],[86,34,86,36],[83,34,83,36],[83,31,83,33],[85,34,85,36],[84,31,84,33],[82,34,82,36],[74,34,74,36],[78,34,78,36],[80,34,80,36],[81,34,81,36],[75,34,75,36],[77,34,77,36],[69,34,69,36],[67,34,67,36],[70,34,70,36],[68,34,68,36],[73,34,73,36],[24,0,24,10],[25,11,25,12],[25,0,25,10],[24,11,24,12],[26,0,26,10],[82,31,82,33],[77,31,77,33],[78,31,78,33],[80,31,80,33],[75,25,75,27],[74,25,74,27],[75,31,75,33],[74,31,74,33],[62,0,62,10],[59,0,59,10],[34,0,34,10],[41,0,41,10],[40,0,40,10],[39,0,39,10],[37,0,37,10],[35,0,35,10],[54,0,54,10],[55,3,55,6],[40,11,40,12],[39,11,39,12],[39,13,39,15],[48,13,48,15],[47,13,47,15],[48,11,48,12],[47,11,47,12],[43,13,43,15],[40,13,40,15],[41,13,41,15],[38,11,38,12],[38,13,38,15],[45,0,45,10],[48,16,48,18],[45,11,45,12],[44,13,44,15],[43,0,43,10],[44,11,44,12],[41,11,41,12],[42,0,42,10],[53,13,53,15],[48,19,48,21],[47,19,47,21],[46,11,46,12],[45,16,45,18],[46,13,46,15],[45,13,45,15],[47,16,47,18],[46,16,46,18],[49,13,49,15],[69,19,69,21],[71,19,71,21],[36,0,36,10],[55,11,56,12],[55,13,56,15],[47,0,47,10],[53,0,53,10],[52,0,52,10],[51,0,51,10],[50,0,50,10],[60,0,60,10],[61,0,61,10],[68,13,68,15],[70,16,70,18],[71,16,71,18],[60,13,60,15],[60,16,60,18],[67,16,67,18],[60,11,60,12],[70,11,70,12],[59,11,59,12],[79,0,79,10],[85,0,85,10],[84,0,84,10],[71,0,71,10],[70,0,70,10],[69,0,69,10],[72,0,72,10],[83,11,83,12],[81,11,81,12],[88,0,88,10],[90,0,90,10],[89,0,89,10],[68,0,68,10],[85,11,85,12],[86,11,86,12],[87,11,87,12],[74,0,74,10],[81,0,81,10],[80,0,80,10],[80,19,80,21],[82,16,82,18],[82,19,82,21],[90,11,90,12],[87,0,87,10],[91,38,92,40],[89,13,89,15],[87,13,87,15],[88,13,88,15],[88,11,88,12],[91,41,92,43],[83,16,83,18],[83,22,83,24],[87,19,87,21],[86,19,86,21],[86,22,86,24],[89,19,89,21],[89,16,89,18],[88,16,88,18],[88,19,88,21],[66,0,66,10],[69,11,69,12],[67,11,67,12],[71,13,71,15],[74,11,74,12],[65,11,66,12],[70,13,70,15],[72,13,72,15],[65,13,66,15],[67,13,67,15],[78,0,78,10],[78,16,78,18],[78,19,78,21],[78,11,78,12],[78,13,78,15],[71,11,71,12],[76,0,76,10],[75,0,75,10],[75,13,75,15],[76,13,76,15],[68,11,68,12],[67,0,67,10],[77,16,77,18],[79,19,79,21],[79,25,79,27],[79,28,79,30],[77,28,77,30],[76,19,76,21],[76,22,76,24],[77,19,77,21],[80,22,80,24],[85,13,85,15],[91,25,92,27],[91,28,92,30],[91,31,92,33],[91,13,92,15],[91,16,92,18],[91,19,92,21],[91,22,92,24],[84,16,84,18],[33,38,34,49],[69,38,70,49],[89,38,90,58],[62,13,64,15],[62,16,64,18],[62,19,64,21],[62,22,64,24],[62,25,64,27],[62,28,64,30],[62,31,64,33]]}
[null,null,null,null,null,null,null,null,null,null,null,null,null,null,null,null,null,null,null,null,null,null,null,null,null,null,null,null,"Приложение 3"]
[null,null,null,null,null,null,null,null,null,null,null,null,null,null,null,null,null,null,null,null,null,null,null,null,null,null,null,null,"к Национальному стандарту"]
[null,null,null,null,null,null,null,null,null,null,null,null,null,null,null,null,null,null,null,null,null,null,null,null,null,null,null,null,"бухгалтерского учета и"]
[null,null,null,null,null,null,null,null,null,null,null,null,null,null,null,null,null,null,null,null,null,null,null,null,null,null,null,null,"отчетности «Индивидуальная"]
[null,null,null,null,null,null,null,null,null,null,null,null,null,null,null,null,null,null,null,null,null,null,null,null,null,null,null,null,"бухгалтерская отчетность» "]
[]
[null,null,null,null,null,null,null,null,null,null,null,null,null,null,null,null,null,null,null,null,null,null,null,null,null,null,null,null,null,null,null,null,null,null,null,null,"Форма"]
[]
["ОТЧЕТ\nоб изменении собственного капитала"]
[null,null,null,null,null,null,null,null,null,null,null,null,null,null,"за",{"$f":"CONCATENATE(Баланс!$AR$15,\"–\",Баланс!$AR$16,\" \",Баланс!$AQ$17)","v":"январь–декабрь 2018"},null,null,null,null,null,null,null,"г."]
[]
[]
["Организация",null,null,null,null,null,null,null,null,null,null,null,null,null,null,{"$f":"IF(Баланс!M24=\"\",\"\",Баланс!M24)","v":""}]
["Учетный номер плательщика",null,null,null,null,null,null,null,null,null,null,null,null,null,null,{"$f":"IF(Баланс!M25=\"\",\"\",Баланс!M25)","v":""}]
["Вид экономической деятельности",null,null,null,null,null,null,null,null,null,null,null,null,null,null,{"$f":"IF(Баланс!M26=\"\",\"\",Баланс!M26)","v":""}]
["Организационно-правовая форма",null,null,null,null,null,null,null,null,null,null,null,null,null,null,{"$f":"IF(Баланс!M27=\"\",\"\",Баланс!M27)","v":""}]
["Орган управления",null,null,null,null,null,null,null,null,null,null,null,null,null,null,{"$f":"IF(Баланс!M28=\"\",\"\",Баланс!M28)","v":""}]
["Единица измерения",null,null,null,null,null,null,null,null,null,null,null,null,null,null,{"$f":"IF(Баланс!M29=\"\",\"\",Баланс!M29)","v":""}]
["Адрес",null,null,null,null,null,null,null,null,null,null,null,null,null,null,{"$f":"IF(Баланс!M30=\"\",\"\",Баланс!M30)","v":""}]
[]
["Наименование показателей",null,null,null,null,null,null,null,null,null,null,"Код строки",null,"Уставный капитал",null,null,"Неоплачен-ная часть уставного капитала",null,null,"Собствен-ные акции (доли в уставном капитале)",null,null,"Резервный капитал",null,null,"Добавоч-ный капитал",null,null,"Нераспре-деленная прибыль (непокры-тый убыток)",null,null,"Чистая прибыль (убыток)",null,null,"Итого"]
[1,null,null,null,null,null,null,null,null,null,null,2,null,3,null,null,4,null,null,5,null,null,6,null,null,7,null,null,8,null,null,9,null,null,10]
["Остаток на",null,null,{"$f":"IF(Баланс!$AC$39=\"\",\"\",DATE(YEAR(Баланс!$AC$39),MONTH(0),DAY(0)))","v":"2016-12-31"},null,null,null,null,null,null,null,"010",null,null,null,null,null,null,null,null,null,null,null,null,null,null,null,null,null,null,null,null,null,null,{"$f":"N23-Q23-T23+W23+Z23+AC23+AF23","v":0}]
[]
["Корректировки в связи с изменением учетной политики",null,null,null,null,null,null,null,null,null,null,"020",null,null,null,null,null,null,null,null,null,null,null,null,null,null,null,null,null,null,null,null,null,null,{"$f":"SUM(N25:AH25)","v":0}]
["Корректировки в связи с исправлением ошибок",null,null,null,null,null,null,null,null,null,null,"030",null,null,null,null,null,null,null,null,null,null,null,null,null,null,null,null,null,null,null,null,null,null,{"$f":"SUM(N26:AH26)","v":0}]
["Скорректированный остаток на",null,null,null,null,null,null,null,null,null,null,"040",null,{"$f":"SUM(N23,N25,N26)","v":0},null,null,{"$f":"SUM(Q25,Q26)-Q23","v":0},null,null,{"$f":"SUM(T25,T26)-T23","v":0},null,null,{"$f":"SUM(W23,W25,W26)","v":0},null,null,{"$f":"SUM(Z23,Z25,Z26)","v":0},null,null,{"$f":"SUM(AC23,AC25,AC26)","v":0},null,null,{"$f":"SUM(AF23,AF25,AF26)","v":0},null,null,{"$f":"SUM(AI23:AK26)","v":0}]
[{"$f":"D23","v":"2016-12-31"}]
[]
["За",{"$f":"CONCATENATE(Баланс!$AR$15,\"–\",Баланс!$AR$16,\" \",Баланс!$AQ$18)","v":"январь–декабрь 2017"},null,null,null,null,null,null,"г.",null,null,"050",null,{"$f":"SUM(N33:P41)","v":0},null,null,{"$f":"SUM(Q33:S41)","v":0},null,null,{"$f":"SUM(T33:V41)","v":0},null,null,{"$f":"SUM(W33:Y41)","v":0},null,null,{"$f":"SUM(Z33:AB41)","v":0},null,null,{"$f":"SUM(AC33:AE41)","v":0},null,null,{"$f":"SUM(AF33:AH41)","v":0},null,null,{"$f":"SUM(AI33:AK41)","v":0}]
["Увеличение собственного капитала – всего"]
["в том числе:"]
["чистая прибыль",null,null,null,null,null,null,null,null,null,null,"051",null,null,null,null,null,null,null,null,null,null,null,null,null,null,null,null,null,null,null,null,null,null,{"$f":"SUM(N33:AH33)","v":0}]
["переоценка долгосрочных активов",null,null,null,null,null,null,null,null,null,null,"052",null,null,null,null,null,null,null,null,null,null,null,null,null,null,null,null,null,null,null,null,null,null,0,null,null,null,{"$f":"IF(Z34-Z45='Ф. 2'!AB60,\"\",\"Обратите внимание! Разность строки 052 графы 7 и строки 062 графы 7 не равна строке 220 графы 4 Формы 2.\")","v":""}]
["доходы от прочих операций, не включаемые в чистую прибыль (убыток)",null,null,null,null,null,null,null,null,null,null,"053",null,null,null,null,null,null,null,null,null,null,null,null,null,null,null,null,null,null,null,null,null,null,0]
["выпуск дополнительных акций",null,null,null,null,null,null,null,null,null,null,"054",null,null,null,null,null,null,null,null,null,null,null,null,null,null,null,null,null,null,null,null,null,null,0]
["увеличение номинальной стоимости акций",null,null,null,null,null,null,null,null,null,null,"055",null,null,null,null,null,null,null,null,null,null,null,null,null,null,null,null,null,null,null,null,null,null,0]
["вклады собственника \nимущества (учредителей, участников)",null,null,null,null,null,null,null,null,null,null,"056",null,null,null,null,null,null,null,null,null,null,null,null,null,null,null,null,null,null,null,null,null,null,0]
["реорганизация",null,null,null,null,null,null,null,null,null,null,"057",null,null,null,null,null,null,null,null,null,null,null,null,null,null,null,null,null,null,null,null,null,null,0]
[null,null,null,null,null,null,null,null,null,null,null,"058",null,null,null,null,null,null,null,null,null,null,null,null,null,null,null,null,null,null,null,null,null,null,0]
[null,null,null,null,null,null,null,null,null,null,null,"059",null,null,null,null,null,null,null,null,null,null,null,null,null,null,null,null,null,null,null,null,null,null,0]
["Уменьшение собственного капитала – всего",null,null,null,null,null,null,null,null,null,null,"060",null,{"$f":"SUM(N44:P52)","v":0},null,null,{"$f":"SUM(Q44:S52)","v":0},null,null,{"$f":"SUM(T44:V52)","v":0},null,null,{"$f":"SUM(W44:Y52)","v":0},null,null,{"$f":"SUM(Z44:AB52)","v":0},null,null,{"$f":"SUM(AC44:AE52)","v":0},null,null,{"$f":"SUM(AF44:AH52)","v":0},null,null,{"$f":"SUM(AI44:AK52)","v":0}]
["в том числе:"]
["убыток",null,null,null,null,null,null,null,null,null,null,"061",null,null,null,null,null,null,null,null,null,null,null,null,null,null,null,null,null,null,null,null,null,null,{"$f":"SUM(N44:AH44)","v":0}]
["переоценка долгосрочных активов",null,null,null,null,null,null,null,null,null,null,"062",null,null,null,null,null,null,null,null,null,null,null,null,null,null,null,null,null,null,null,null,null,null,0]
["расходы от прочих операций, не включаемые в чистую прибыль (убыток)",null,null,null,null,null,null,null,null,null,null,"063",null,null,null,null,null,null,null,null,null,null,null,null,null,null,null,null,null,null,null,null,null,null,0]
["уменьшение номинальной стоимости акций",null,null,null,null,null,null,null,null,null,null,"064",null,null,null,null,null,null,null,null,null,null,null,null,null,null,null,null,null,null,null,null,null,null,0]
["выкуп акций (долей в уставном капитале)",null,null,null,null,null,null,null,null,null,null,"065",null,null,null,null,null,null,null,null,null,null,null,null,null,null,null,null,null,null,null,null,null,null,0]
["дивиденды и другие доходы от участия в уставном капитале организации",null,null,null,null,null,null,null,null,null,null,"066",null,null,null,null,null,null,null,null,null,null,null,null,null,null,null,null,null,null,null,null,null,null,0]
["реорганизация",null,null,null,null,null,null,null,null,null,null,"067",null,null,null,null,null,null,null,null,null,null,null,null,null,null,null,null,null,null,null,null,null,null,0]
[null,null,null,null,null,null,null,null,null,null,null,"068",null,null,null,null,null,null,null,null,null,null,null,null,null,null,null,null,null,null,null,null,null,null,0]
[null,null,null,null,null,null,null,null,null,null,null,"069",null,null,null,null,null,null,null,null,null,null,null,null,null,null,null,null,null,null,null,null,null,null,0]
["Изменение уставного капитала",null,null,null,null,null,null,null,null,null,null,"070",null,null,null,null,null,null,null,null,null,null,null,null,null,null,null,null,null,null,null,null,null,null,0]
["Изменение резервного капитала",null,null,null,null,null,null,null,null,null,null,"080",null,null,null,null,null,null,null,null,null,null,null,null,null,null,null,null,null,null,null,null,null,null,0]
["Изменение добавочного капитала",null,null,null,null,null,null,null,null,null,null,"090",null,null,null,null,null,null,null,null,null,null,null,null,null,null,null,null,null,null,null,null,null,null,0]
["Остаток на",null,null,{"$f":"IF(Баланс!$AS$2=\"\",\"\",DATE(YEAR(Баланс!$AS$2)-1,MONTH(Баланс!$AS$2),DAY(Баланс!$AS$2)))","v":"2017-12-31"},null,null,null,null,null,null,null,"100",null,{"$f":"N27+N30+N42+N53+N54+N55","v":0},null,null,{"$f":"Q27+Q30+Q42+Q53+Q54+Q55","v":0},null,null,{"$f":"T27+T30+T42+T53+T54+T55","v":0},null,null,{"$f":"W27+W30+W42+W53+W54+W55","v":0},null,null,{"$f":"Z27+Z30+Z42+Z53+Z54+Z55","v":0},null,null,{"$f":"AC27+AC30+AC42+AC53+AC54+AC55","v":0},null,null,{"$f":"AF27+AF30+AF42+AF53+AF54+AF55","v":0},null,null,{"$f":"AI27+AI30+AI42+AI53+AI54+AI55","v":0}]
[]
["Остаток на",null,null,{"$f":"Баланс!$AC$39","v":"2017-12-31"},null,null,null,null,null,null,null,110,null,{"$f":"IF(OR(Баланс!$U$5=\"I\",Баланс!$U$5=\"II\",Баланс!$U$5=\"III\",Баланс!$U$5=\"IV\",Баланс!$K$8<>0,Баланс!$K$10<>0),0,N56)","v":0},null,null,{"$f":"IF(OR(Баланс!$U$5=\"I\",Баланс!$U$5=\"II\",Баланс!$U$5=\"III\",Баланс!$U$5=\"IV\",Баланс!$K$8<>0,Баланс!$K$10<>0),0,Q56)","v":0},null,null,{"$f":"IF(OR(Баланс!$U$5=\"I\",Баланс!$U$5=\"II\",Баланс!$U$5=\"III\",Баланс!$U$5=\"IV\",Баланс!$K$8<>0,Баланс!$K$10<>0),0,T56)","v":0},null,null,{"$f":"IF(OR(Баланс!$U$5=\"I\",Баланс!$U$5=\"II\",Баланс!$U$5=\"III\",Баланс!$U$5=\"IV\",Баланс!$K$8<>0,Баланс!$K$10<>0),0,W56)","v":0},null,null,{"$f":"IF(OR(Баланс!$U$5=\"I\",Баланс!$U$5=\"II\",Баланс!$U$5=\"III\",Баланс!$U$5=\"IV\",Баланс!$K$8<>0,Баланс!$K$10<>0),0,Z56)","v":0},null,null,{"$f":"IF(OR(Баланс!$U$5=\"I\",Баланс!$U$5=\"II\",Баланс!$U$5=\"III\",Баланс!$U$5=\"IV\",Баланс!$K$8<>0,Баланс!$K$10<>0),0,AC56)","v":0},null,null,{"$f":"IF(OR(Баланс!$U$5=\"I\",Баланс!$U$5=\"II\",Баланс!$U$5=\"III\",Баланс!$U$5=\"IV\",Баланс!$K$8<>0,Баланс!$K$10<>0),0,AF56)","v":0},null,null,{"$f":"IF(OR(Баланс!$U$5=\"I\",Баланс!$U$5=\"II\",Баланс!$U$5=\"III\",Баланс!$U$5=\"IV\",Баланс!$K$8<>0,Баланс!$K$10<>0),N58-Q58-T58+W58+Z58+AC58+AF58,AI56)","v":0}]
[]
["Корректировки в связи с изменением учетной политики",null,null,null,null,null,null,null,null,null,null,120,null,null,null,null,null,null,null,null,null,null,null,null,null,null,null,null,null,null,null,null,null,null,{"$f":"SUM(N60:AH60)","v":0}]
["Корректировки в связи с исправлением ошибок",null,null,null,null,null,null,null,null,null,null,130,null,null,null,null,null,null,null,null,null,null,null,null,null,null,null,null,null,null,null,null,null,null,{"$f":"SUM(N61:AH61)","v":0}]
["Корректировки на сумму разниц от пересчета активов и обязательств в эквиваленте на 31.12.2017 г.",null,null,null,null,null,null,null,null,null,null,"131",null,null,null,null,null,null,null,null,null,null,null,null,null,null,null,null,null,null,null,null,null,null,{"$f":"SUM(N62:AH62)","v":0},null,null,null,"Красная заливка ячейки означает, что сумма стр. 110, 120, 130  по данной графе не равна показателю, перенесенному из гр. 4 стр. 410-470 Баланса"]
["Скорректированный остаток на",null,null,null,null,null,null,null,null,null,null,140,null,{"$f":"Баланс!AB79","v":0},null,null,{"$f":"Баланс!AB80","v":0},null,null,{"$f":"Баланс!AB81","v":0},null,null,{"$f":"Баланс!AB82","v":0},null,null,{"$f":"Баланс!AB83","v":0},null,null,{"$f":"Баланс!AB84","v":0},null,null,{"$f":"Баланс!AB85","v":0},null,null,{"$f":"N63-Q63-T63+W63+Z63+AC63+AF63","v":0},null,null,null,{"$f":"N58+N60+N61+N62","v":0},null,null,{"$f":"Q60-Q58+Q61+Q62","v":0},null,null,{"$f":"T60-T58+T61+T62","v":0},null,null,{"$f":"W58+W60+W61+W62","v":0},null,null,{"$f":"Z58+Z60+Z61+Z62","v":0},null,null,{"$f":"AC58+AC60+AC61+AC62","v":0},null,null,{"$f":"AF58+AF60+AF61+AF62","v":0}]
[{"$f":"Баланс!$AC$39","v":"2017-12-31"}]
[]
["За",{"$f":"$P$10","v":"январь–декабрь 2018"},null,null,null,null,null,null,"г.",null,null,150,null,{"$f":"SUM(N69:P77)","v":0},null,null,{"$f":"SUM(Q69:S77)","v":0},null,null,{"$f":"SUM(T69:V77)","v":0},null,null,{"$f":"SUM(W69:Y77)","v":0},null,null,{"$f":"SUM(Z69:AB77)","v":0},null,null,{"$f":"SUM(AC69:AE77)","v":0},null,null,{"$f":"SUM(AF69:AH77)","v":0},null,null,{"$f":"SUM(N66:AH67)","v":0}]
["Увеличение собственного капитала – всего"]
["в том числе:"]
["чистая прибыль",null,null,null,null,null,null,null,null,null,null,151,null,null,null,null,null,null,null,null,null,null,null,null,null,null,null,null,null,null,null,null,null,null,{"$f":"SUM(N69:AH69)","v":0}]
["переоценка долгосрочных активов",null,null,null,null,null,null,null,null,null,null,152,null,null,null,null,null,null,null,null,null,null,null,null,null,null,null,null,null,null,null,null,null,null,0,null,null,null,{"$f":"IF(Z70-Z81='Ф. 2'!$T$60,\"\",\"Обратите внимание! Разность строки 152 графы 7 и строки 162 графы 7 не равна строке 220 графы 3 Формы 2.\")","v":""}]
["доходы от прочих операций, не включаемые в чистую прибыль (убыток)",null,null,null,null,null,null,null,null,null,null,153,null,null,null,null,null,null,null,null,null,null,null,null,null,null,null,null,null,null,null,null,null,null,0]
["выпуск дополнительных акций",null,null,null,null,null,null,null,null,null,null,154,null,null,null,null,null,null,null,null,null,null,null,null,null,null,null,null,null,null,null,null,null,null,0]
["увеличение номинальной стоимости акций",null,null,null,null,null,null,null,null,null,null,155,null,null,null,null,null,null,null,null,null,null,null,null,null,null,null,null,null,null,null,null,null,null,0]
["вклады собственника \nимущества (учредителей, участников)",null,null,null,null,null,null,null,null,null,null,156,null,null,null,null,null,null,null,null,null,null,null,null,null,null,null,null,null,null,null,null,null,null,0]
["реорганизация",null,null,null,null,null,null,null,null,null,null,157,null,null,null,null,null,null,null,null,null,null,null,null,null,null,null,null,null,null,null,null,null,null,0]
[null,null,null,null,null,null,null,null,null,null,null,158,null,null,null,null,null,null,null,null,null,null,null,null,null,null,null,null,null,null,null,null,null,null,0]
[null,null,null,null,null,null,null,null,null,null,null,159,null,null,null,null,null,null,null,null,null,null,null,null,null,null,null,null,null,null,null,null,null,null,0]
["Уменьшение собственного капитала – всего",null,null,null,null,null,null,null,null,null,null,160,null,{"$f":"SUM(N80:P88)","v":0},null,null,{"$f":"SUM(Q80:S88)","v":0},null,null,{"$f":"SUM(T80:V88)","v":0},null,null,{"$f":"SUM(W80:Y88)","v":0},null,null,{"$f":"SUM(Z80:AB88)","v":0},null,null,{"$f":"SUM(AC80:AE88)","v":0},null,null,{"$f":"SUM(AF80:AH88)","v":0},null,null,0]
["в том числе:"]
["убыток",null,null,null,null,null,null,null,null,null,null,161,null,null,null,null,null,null,null,null,null,null,null,null,null,null,null,null,null,null,null,null,null,null,{"$f":"SUM(N80:AH80)","v":0}]
["переоценка долгосрочных активов",null,null,null,null,null,null,null,null,null,null,162,null,null,null,null,null,null,null,null,null,null,null,null,null,null,null,null,null,null,null,null,null,null,{"$f":"SUM(N81:AH81)","v":0}]
["расходы от прочих операций, не включаемые в чистую прибыль (убыток)",null,null,null,null,null,null,null,null,null,null,163,null,null,null,null,null,null,null,null,null,null,null,null,null,null,null,null,null,null,null,null,null,null,0]
["уменьшение номинальной стоимости акций",null,null,null,null,null,null,null,null,null,null,164,null,null,null,null,null,null,null,null,null,null,null,null,null,null,null,null,null,null,null,null,null,null,0]
["выкуп акций (долей в уставном капитале)",null,null,null,null,null,null,null,null,null,null,165,null,null,null,null,null,null,null,null,null,null,null,null,null,null,null,null,null,null,null,null,null,null,0]
["дивиденды и другие доходы от участия в уставном капитале организации",null,null,null,null,null,null,null,null,null,null,166,null,null,null,null,null,null,null,null,null,null,null,null,null,null,null,null,null,null,null,null,null,null,0]
["реорганизация",null,null,null,null,null,null,null,null,null,null,167,null,null,null,null,null,null,null,null,null,null,null,null,null,null,null,null,null,null,null,null,null,null,0]
[null,null,null,null,null,null,null,null,null,null,null,168,null,null,null,null,null,null,null,null,null,null,null,null,null,null,null,null,null,null,null,null,null,null,0]
[null,null,null,null,null,null,null,null,null,null,null,169,null,null,null,null,null,null,null,null,null,null,null,null,null,null,null,null,null,null,null,null,null,null,0]
["Изменение уставного капитала",null,null,null,null,null,null,null,null,null,null,170,null,null,null,null,null,null,null,null,null,null,null,null,null,null,null,null,null,null,null,null,null,null,0]
["Изменение резервного капитала",null,null,null,null,null,null,null,null,null,null,180,null,null,null,null,null,null,null,null,null,null,null,null,null,null,null,null,null,null,null,null,null,null,0,null,null,null,"Красная заливка ячейки означает, что сумма стр. 140, 150, 160, 170, 180, 190  по данной графе не равна показателю, перенесенному из гр. 3 стр. 410-470 Баланса"]
["Изменение добавочного капитала",null,null,null,null,null,null,null,null,null,null,190,null,null,null,null,null,null,null,null,null,null,null,null,null,null,null,null,null,null,null,null,null,null,0]
["Остаток на",null,null,{"$f":"Баланс!$AS$2","v":"2018-12-31"},null,null,null,null,null,null,null,"200",null,{"$f":"Баланс!T79","v":0},null,null,{"$f":"-Баланс!T80","v":0},null,null,{"$f":"-Баланс!T81","v":0},null,null,{"$f":"Баланс!T82","v":0},null,null,{"$f":"Баланс!T83","v":0},null,null,{"$f":"Баланс!T84","v":0},null,null,{"$f":"Баланс!T85","v":0},null,null,{"$f":"SUM(N92:AH93)","v":0},null,null,null,{"$f":"N63+N66+N78+N89+N90+N91","v":0},null,null,{"$f":"-Q63+Q66+Q78+Q89+Q90+Q91","v":0},null,null,{"$f":"-T63+T66+T78+T89+T90+T91","v":0},null,null,{"$f":"W63+W66+W78+W89+W90+W91","v":0},null,null,{"$f":"Z63+Z66+Z78+Z89+Z90+Z91","v":0},null,null,{"$f":"AC63+AC66+AC78+AC89+AC90+AC91","v":0},null,null,{"$f":"AF63+AF66+AF78+AF89+AF90+AF91","v":0}]
[]
[]
[]
[]
["Руководитель",null,null,null,null,null,null,null,null,null,null,null,null,null,null,null,null,null,null,null,null,null,null,null,null,null,null,null,{"$f":"Баланс!AA118","v":0}]
[null,null,null,null,null,null,null,null,null,null,null,null,"(подпись)",null,null,null,null,null,null,null,null,null,null,null,null,null,null,null,"(инициалы, фамилия)"]
[]
["Главный бухгалтер",null,null,null,null,null,null,null,null,null,null,null,null,null,null,null,null,null,null,null,null,null,null,null,null,null,null,null,{"$f":"Баланс!AA121","v":0}]
[null,null,null,null,null,null,null,null,null,null,null,null,"(подпись)",null,null,null,null,null,null,null,null,null,null,null,null,null,null,null,"(инициалы, фамилия)"]
[]
[{"$f":"TODAY()","v":"2020-09-25"}]

{"sheet":"Ф. 4","index":4,"n_rows":85,"n_cols":37,"rows_kept":85,"cut":false,"hidden":false,"merged":[[66,17,66,18],[60,27,60,34],[59,19,59,26],[61,27,61,34],[61,19,61,26],[57,27,57,34],[58,19,58,26],[58,27,58,34],[59,27,59,34],[64,27,64,34],[62,19,62,26],[62,27,62,34],[66,19,66,26],[68,27,70,34],[67,19,67,26],[63,27,63,34],[74,27,74,34],[71,19,73,26],[71,27,73,34],[66,27,66,34],[66,0,66,16],[61,17,61,18],[62,17,62,18],[63,19,63,26],[65,19,65,26],[63,17,63,18],[62,0,62,16],[67,17,67,18],[67,0,67,16],[64,17,64,18],[60,19,60,26],[59,0,59,16],[64,0,64,16],[65,0,65,16],[65,17,65,18],[64,19,64,26],[47,17,47,18],[50,0,50,16],[48,17,48,18],[57,19,57,26],[51,19,51,26],[47,19,47,26],[50,17,50,18],[54,19,54,26],[53,17,53,18],[48,19,48,26],[82,10,82,16],[82,26,82,34],[79,10,79,16],[79,26,79,34],[81,26,81,34],[65,27,65,34],[67,27,67,34],[81,10,81,16],[78,26,78,34],[74,19,74,26],[68,0,68,16],[68,17,70,18],[68,19,70,26],[78,10,78,16],[74,0,74,16],[71,0,71,16],[71,17,73,18],[72,4,72,7],[69,4,69,7],[74,17,74,18],[33,27,33,34],[34,19,34,26],[34,27,34,34],[35,27,35,34],[35,19,35,26],[44,27,44,34],[42,27,42,34],[40,27,40,34],[44,19,44,26],[42,19,42,26],[63,0,63,16],[39,0,39,16],[41,0,41,16],[42,17,42,18],[56,0,56,16],[55,0,55,16],[54,0,54,16],[61,0,61,16],[58,0,58,16],[57,0,57,16],[49,19,49,26],[45,19,45,26],[46,19,46,26],[46,27,46,34],[43,19,43,26],[43,27,43,34],[39,27,39,34],[47,27,47,34],[45,27,45,34],[41,19,41,26],[41,27,41,34],[46,0,46,16],[47,0,47,16],[39,19,39,26],[45,17,45,18],[44,17,44,18],[60,0,60,16],[49,0,49,16],[46,17,46,18],[50,27,50,34],[48,0,48,16],[58,17,58,18],[57,17,57,18],[55,27,55,34],[54,27,54,34],[51,17,51,18],[49,17,49,18],[48,27,48,34],[40,19,40,26],[56,27,56,34],[56,17,56,18],[45,0,45,16],[51,0,51,16],[53,27,53,34],[49,27,49,34],[50,19,50,26],[51,27,51,34],[53,19,53,26],[60,17,60,18],[59,17,59,18],[52,0,52,34],[54,17,54,18],[55,17,55,18],[53,0,53,16],[56,19,56,26],[55,19,55,26],[33,19,33,26],[33,17,33,18],[39,17,39,18],[38,19,38,26],[36,19,36,26],[36,17,36,18],[34,17,34,18],[41,17,41,18],[40,0,40,16],[40,17,40,18],[44,0,44,16],[43,0,43,16],[42,0,42,16],[43,17,43,18],[36,0,36,16],[35,0,35,16],[34,0,34,16],[37,0,37,34],[38,27,38,34],[36,27,36,34],[38,0,38,16],[38,17,38,18],[35,17,35,18],[30,0,30,16],[24,17,24,18],[33,0,33,16],[31,0,31,16],[32,0,32,16],[26,0,26,16],[28,0,28,16],[27,0,27,16],[29,0,29,16],[25,0,25,16],[31,17,31,18],[32,17,32,18],[32,27,32,34],[29,19,29,26],[32,19,32,26],[30,17,30,18],[22,27,22,34],[26,19,26,26],[31,27,31,34],[26,27,26,34],[30,19,30,26],[30,27,30,34],[29,27,29,34],[28,27,28,34],[27,27,27,34],[28,19,28,26],[13,0,13,12],[15,13,15,34],[25,27,25,34],[24,27,24,34],[24,19,24,26],[22,0,22,16],[24,0,24,16],[23,0,23,34],[22,17,22,18],[22,19,22,26],[28,17,28,18],[84,0,84,8],[8,0,8,34],[17,0,17,12],[17,13,17,34],[18,0,18,12],[18,13,18,34],[12,0,12,12],[12,13,12,34],[16,0,16,12],[14,0,14,12],[14,13,14,34],[15,0,15,12],[25,19,25,26],[31,19,31,26],[27,19,27,26],[29,17,29,18],[25,17,25,18],[26,17,26,18],[27,17,27,18],[68,36,69,41],[71,36,72,41],[74,36,76,41],[9,14,9,21],[20,20,20,25],[20,28,20,33],[16,13,16,34],[13,13,13,34],[20,0,21,16],[20,17,21,18]]}
[null,null,null,null,null,null,null,null,null,null,null,null,null,null,null,null,null,null,null,null,null,null,null,null,null,null,"Приложение 4"]
[null,null,null,null,null,null,null,null,null,null,null,null,null,null,null,null,null,null,null,null,null,null,null,null,null,null,"к Национальному стандарту"]
[null,null,null,null,null,null,null,null,null,null,null,null,null,null,null,null,null,null,null,null,null,null,null,null,null,null,"бухгалтерского учета и"]
[null,null,null,null,null,null,null,null,null,null,null,null,null,null,null,null,null,null,null,null,null,null,null,null,null,null,"отчетности «Индивидуальная"]
[null,null,null,null,null,null,null,null,null,null,null,null,null,null,null,null,null,null,null,null,null,null,null,null,null,null,"бухгалтерская отчетность» "]
[]
[null,null,null,null,null,null,null,null,null,null,null,null,null,null,null,null,null,null,null,null,null,null,null,null,null,null,null,null,null,null,null,null,null,null,"Форма"]
[]
["ОТЧЕТ\nо движении денежных средств"]
[null,null,null,null,null,null,null,null,null,null,null,null,null,"за",{"$f":"CONCATENATE(Баланс!$AR$15,\"–\",Баланс!$AR$16,\" \",Баланс!$AQ$17)","v":"январь–декабрь 2018"},null,null,null,null,null,null,null,"г."]
[]
[]
["Организация",null,null,null,null,null,null,null,null,null,null,null,null,{"$f":"IF(Баланс!M24=\"\",\"\",Баланс!M24)","v":""}]
["Учетный номер плательщика",null,null,null,null,null,null,null,null,null,null,null,null,{"$f":"IF(Баланс!M25=\"\",\"\",Баланс!M25)","v":""}]
["Вид экономической деятельности",null,null,null,null,null,null,null,null,null,null,null,null,{"$f":"IF(Баланс!M26=\"\",\"\",Баланс!M26)","v":""}]
["Организационно-правовая форма",null,null,null,null,null,null,null,null,null,null,null,null,{"$f":"IF(Баланс!M27=\"\",\"\",Баланс!M27)","v":""}]
["Орган управления",null,null,null,null,null,null,null,null,null,null,null,null,{"$f":"IF(Баланс!M28=\"\",\"\",Баланс!M28)","v":""}]
["Единица измерения",null,null,null,null,null,null,null,null,null,null,null,null,{"$f":"IF(Баланс!M29=\"\",\"\",Баланс!M29)","v":""}]
["Адрес",null,null,null,null,null,null,null,null,null,null,null,null,{"$f":"IF(Баланс!M30=\"\",\"\",Баланс!M30)","v":""}]
[]
["Наименование показателей",null,null,null,null,null,null,null,null,null,null,null,null,null,null,null,null,"Код строки",null,"За",{"$f":"O10","v":"январь–декабрь 2018"},null,null,null,null,null,"г.","За",{"$f":"CONCATENATE(Баланс!$AR$15,\"–\",Баланс!$AR$16,\" \",Баланс!$AQ$18)","v":"январь–декабрь 2017"},null,null,null,null,null,"г."]
[]
[1,null,null,null,null,null,null,null,null,null,null,null,null,null,null,null,null,2,null,3,null,null,null,null,null,null,null,4]
["Движение денежных средств по текущей деятельности"]
["Поступило денежных средств – всего",null,null,null,null,null,null,null,null,null,null,null,null,null,null,null,null,"020",null,{"$f":"SUM(T27:AA30)","v":0},null,null,null,null,null,null,null,{"$f":"SUM(AB27:AI30)","v":0}]
["в том числе:"]
["от покупателей продукции, товаров, заказчиков работ, услуг",null,null,null,null,null,null,null,null,null,null,null,null,null,null,null,null,"021"]
["от покупателей материалов и других запасов",null,null,null,null,null,null,null,null,null,null,null,null,null,null,null,null,"022"]
["роялти",null,null,null,null,null,null,null,null,null,null,null,null,null,null,null,null,"023"]
["прочие поступления",null,null,null,null,null,null,null,null,null,null,null,null,null,null,null,null,"024"]
["Направлено денежных средств – всего",null,null,null,null,null,null,null,null,null,null,null,null,null,null,null,null,"030",null,{"$f":"SUM(T33:AA36)","v":0},null,null,null,null,null,null,null,{"$f":"SUM(AB33:AI36)","v":0}]
["в том числе:"]
["на приобретение запасов, работ, услуг",null,null,null,null,null,null,null,null,null,null,null,null,null,null,null,null,"031"]
["на оплату труда",null,null,null,null,null,null,null,null,null,null,null,null,null,null,null,null,"032"]
["на уплату налогов и сборов",null,null,null,null,null,null,null,null,null,null,null,null,null,null,null,null,"033"]
["на прочие выплаты",null,null,null,null,null,null,null,null,null,null,null,null,null,null,null,null,"034"]
["Результат движения денежных средств по текущей деятельности",null,null,null,null,null,null,null,null,null,null,null,null,null,null,null,null,"040",null,{"$f":"T25-T31","v":0},null,null,null,null,null,null,null,{"$f":"AB25-AB31","v":0}]
["Движение денежных средств по инвестиционной деятельности"]
["Поступило денежных средств – всего",null,null,null,null,null,null,null,null,null,null,null,null,null,null,null,null,"050",null,{"$f":"SUM(T41:AA45)","v":0},null,null,null,null,null,null,null,{"$f":"SUM(AB41:AI45)","v":0}]
["в том числе:"]
["от покупателей основных средств, нематериальных активов и других долгосрочных активов",null,null,null,null,null,null,null,null,null,null,null,null,null,null,null,null,"051"]
["возврат предоставленных займов",null,null,null,null,null,null,null,null,null,null,null,null,null,null,null,null,"052"]
["доходы от участия в уставных капиталах других организаций",null,null,null,null,null,null,null,null,null,null,null,null,null,null,null,null,"053"]
["проценты",null,null,null,null,null,null,null,null,null,null,null,null,null,null,null,null,"054"]
["прочие поступления",null,null,null,null,null,null,null,null,null,null,null,null,null,null,null,null,"055"]
["Направлено денежных средств – всего",null,null,null,null,null,null,null,null,null,null,null,null,null,null,null,null,"060",null,{"$f":"SUM(T48:AA51)","v":0},null,null,null,null,null,null,null,{"$f":"SUM(AB48:AI51)","v":0}]
["в том числе:"]
["на приобретение и создание основных средств, нематериальных активов и других долгосрочных активов",null,null,null,null,null,null,null,null,null,null,null,null,null,null,null,null,"061"]
["на предоставление займов",null,null,null,null,null,null,null,null,null,null,null,null,null,null,null,null,"062"]
["на вклады в уставные капиталы других организаций",null,null,null,null,null,null,null,null,null,null,null,null,null,null,null,null,"063"]
["прочие выплаты",null,null,null,null,null,null,null,null,null,null,null,null,null,null,null,null,"064"]
["Результат движения денежных средств по инвестиционной деятельности",null,null,null,null,null,null,null,null,null,null,null,null,null,null,null,null,"070",null,{"$f":"T39-T46","v":0},null,null,null,null,null,null,null,{"$f":"AB39-AB46","v":0}]
["Движение денежных средств по финансовой деятельности"]
["Поступило денежных средств – всего",null,null,null,null,null,null,null,null,null,null,null,null,null,null,null,null,"080",null,{"$f":"SUM(T56:AA59)","v":0},null,null,null,null,null,null,null,{"$f":"SUM(AB56:AI59)","v":0}]
["в том числе:"]
["кредиты и займы",null,null,null,null,null,null,null,null,null,null,null,null,null,null,null,null,"081"]
["от выпуска акций",null,null,null,null,null,null,null,null,null,null,null,null,null,null,null,null,"082"]
["вклады собственника имущества (учредителей, участников)",null,null,null,null,null,null,null,null,null,null,null,null,null,null,null,null,"083"]
["прочие поступления",null,null,null,null,null,null,null,null,null,null,null,null,null,null,null,null,"084"]
["Направлено денежных средств – всего",null,null,null,null,null,null,null,null,null,null,null,null,null,null,null,null,"090",null,{"$f":"SUM(T62:AA66)","v":0},null,null,null,null,null,null,null,{"$f":"SUM(AB62:AI66)","v":0}]
["в том числе:"]
["на погашение кредитов и займов",null,null,null,null,null,null,null,null,null,null,null,null,null,null,null,null,"091"]
["на выплаты дивидендов и других доходов от участия в уставном капитале организации",null,null,null,null,null,null,null,null,null,null,null,null,null,null,null,null,"092"]
["на выплаты процентов",null,null,null,null,null,null,null,null,null,null,null,null,null,null,null,null,"093"]
["на лизинговые платежи",null,null,null,null,null,null,null,null,null,null,null,null,null,null,null,null,"094"]
["прочие выплаты",null,null,null,null,null,null,null,null,null,null,null,null,null,null,null,null,"095"]
["Результат движения денежных средств по финансовой деятельности",null,null,null,null,null,null,null,null,null,null,null,null,null,null,null,null,100,null,{"$f":"T54-T60","v":0},null,null,null,null,null,null,null,{"$f":"AB54-AB60","v":0}]
["Результат движения денежных средств по текущей, инвестиционной и финансовой деятельности ",null,null,null,null,null,null,null,null,null,null,null,null,null,null,null,null,110,null,{"$f":"T37+T52+T67","v":0},null,null,null,null,null,null,null,{"$f":"AB37+AB52+AB67","v":0}]
["Остаток денежных средств и эквивалентов денежных",null,null,null,null,null,null,null,null,null,null,null,null,null,null,null,null,120,null,null,null,null,null,null,null,null,null,null,null,null,null,null,null,null,null,null,{"$f":"IF(T69=Баланс!$AB$70,\"\",\"Обратите внимание! Стр. 120 гр. 3 не равна стр. 270 гр. 4 Баланса.\")","v":""}]
["средств на",null,null,null,{"$f":"Баланс!$AC$39","v":"2017-12-31"}]
[]
["Остаток денежных средств и эквивалентов денежных",null,null,null,null,null,null,null,null,null,null,null,null,null,null,null,null,130,null,{"$f":"T68+T69","v":0},null,null,null,null,null,null,null,{"$f":"AB68+AB69","v":0},null,null,null,null,null,null,null,null,{"$f":"IF(T72=Баланс!$T$70,\"\",\"Обратите внимание! Стр. 130 гр. 3 не равна стр. 270 гр. 3 Баланса.\")","v":""}]
["средств на",null,null,null,{"$f":"Баланс!$U$39","v":"2018-12-31"}]
[]
["Влияние изменений курсов иностранных валют",null,null,null,null,null,null,null,null,null,null,null,null,null,null,null,null,140,null,null,null,null,null,null,null,null,null,null,null,null,null,null,null,null,null,null,{"$f":"IF(OR(Баланс!$U$5=\"I\",Баланс!$U$5=\"II\",Баланс!$U$5=\"III\",Баланс!$U$5=\"IV\",Баланс!$K$8>0,Баланс!$K$10>0),\"\",IF(AB72=Баланс!$AB$70,\"\",\"Обратите внимание! При составлении годовой бухгалтерской отчетности значение стр. 130 гр. 4 должно быть равно значению ячейки стр. 270 гр. 4 Баланса.\"))","v":""}]
[]
[]
[]
["Руководитель",null,null,null,null,null,null,null,null,null,null,null,null,null,null,null,null,null,null,null,null,null,null,null,null,null,{"$f":"Баланс!AA118","v":0}]
[null,null,null,null,null,null,null,null,null,null,"(подпись)",null,null,null,null,null,null,null,null,null,null,null,null,null,null,null,"(инициалы, фамилия)"]
[]
["Главный бухгалтер",null,null,null,null,null,null,null,null,null,null,null,null,null,null,null,null,null,null,null,null,null,null,null,null,null,{"$f":"Баланс!AA121","v":0}]
[null,null,null,null,null,null,null,null,null,null,"(подпись)",null,null,null,null,null,null,null,null,null,null,null,null,null,null,null,"(инициалы, фамилия)"]
[]
[{"$f":"TODAY()","v":"2020-09-25"}]

{"sheet":"Ф. 5","index":5,"n_rows":58,"n_cols":37,"rows_kept":58,"cut":false,"hidden":false,"merged":[[35,17,35,18],[35,19,35,26],[35,27,35,34],[25,17,25,18],[25,19,25,26],[25,27,25,34],[32,17,32,18],[32,19,32,26],[32,27,32,34],[26,17,26,18],[11,0,11,12],[11,13,11,34],[13,0,13,12],[13,13,13,34],[16,0,16,12],[16,13,16,34],[15,13,15,34],[12,0,12,12],[12,13,12,34],[14,0,14,12],[14,13,14,34],[26,19,26,26],[26,27,26,34],[17,0,17,12],[8,0,8,34],[27,19,27,26],[27,27,27,34],[19,0,20,16],[19,17,20,18],[21,27,21,34],[24,0,24,16],[19,28,19,33],[17,13,17,34],[15,0,15,12],[24,19,24,26],[24,27,24,34],[21,0,21,16],[21,17,21,18],[21,19,21,26],[22,17,23,18],[22,19,23,26],[22,27,23,34],[29,0,29,16],[26,0,26,16],[25,0,25,16],[27,0,27,16],[28,0,28,16],[24,17,24,18],[27,17,27,18],[29,19,29,26],[29,27,29,34],[31,19,31,26],[31,27,31,34],[28,17,28,18],[28,19,28,26],[29,17,29,18],[31,17,31,18],[28,27,28,34],[34,17,34,18],[34,19,34,26],[34,27,34,34],[30,0,30,16],[30,17,30,18],[30,19,30,26],[30,27,30,34],[41,19,41,26],[41,27,41,34],[31,0,31,16],[35,0,35,16],[32,0,32,16],[33,0,33,16],[34,0,34,16],[33,19,33,26],[33,27,33,34],[33,17,33,18],[36,0,36,16],[37,0,37,16],[43,19,43,26],[43,27,43,34],[38,17,38,18],[38,19,38,26],[38,27,38,34],[42,19,42,26],[42,27,42,34],[39,17,39,18],[36,27,36,34],[37,17,37,18],[37,19,37,26],[37,27,37,34],[36,19,36,26],[36,17,36,18],[39,27,39,34],[40,17,40,18],[40,19,40,26],[40,27,40,34],[39,19,39,26],[38,0,38,16],[42,0,42,16],[42,17,42,18],[39,0,39,16],[44,0,44,16],[44,17,44,18],[43,0,43,16],[43,17,43,18],[41,0,41,16],[41,17,41,18],[40,0,40,16],[44,19,44,26],[44,27,44,34],[46,27,46,34],[45,17,45,18],[45,19,45,26],[45,27,45,34],[57,0,57,8],[54,10,54,16],[54,26,54,34],[55,10,55,16],[55,26,55,34],[47,27,48,34],[52,10,52,16],[52,26,52,34],[51,10,51,16],[51,26,51,34],[9,14,9,21],[22,6,22,10],[47,6,47,10],[19,20,19,25],[45,0,45,16],[46,0,46,16],[46,17,46,18],[46,19,46,26],[47,17,48,18],[47,19,48,26],[44,41,46,45],[47,41,47,45],[22,36,22,40],[19,36,21,40],[44,36,46,40],[47,36,47,40]]}
[null,null,null,null,null,null,null,null,null,null,null,null,null,null,null,null,null,null,null,null,null,null,null,null,null,null,"Приложение 5"]
[null,null,null,null,null,null,null,null,null,null,null,null,null,null,null,null,null,null,null,null,null,null,null,null,null,null,"к Национальному стандарту"]
[null,null,null,null,null,null,null,null,null,null,null,null,null,null,null,null,null,null,null,null,null,null,null,null,null,null,"бухгалтерского учета и"]
[null,null,null,null,null,null,null,null,null,null,null,null,null,null,null,null,null,null,null,null,null,null,null,null,null,null,"отчетности «Индивидуальная"]
[null,null,null,null,null,null,null,null,null,null,null,null,null,null,null,null,null,null,null,null,null,null,null,null,null,null,"бухгалтерская отчетность» "]
[]
[null,null,null,null,null,null,null,null,null,null,null,null,null,null,null,null,null,null,null,null,null,null,null,null,null,null,null,null,null,null,null,null,null,null,"Форма"]
[]
["ОТЧЕТ\nоб использовании целевого финансирования"]
[null,null,null,null,null,null,null,null,null,null,null,null,null,"за",{"$f":"CONCATENATE(Баланс!$AR$15,\"–\",Баланс!$AR$16,\" \",Баланс!$AQ$17)","v":"январь–декабрь 2018"},null,null,null,null,null,null,null,"г."]
[]
["Организация",null,null,null,null,null,null,null,null,null,null,null,null,{"$f":"IF(Баланс!M24=\"\",\"\",Баланс!M24)","v":""}]
["Учетный номер плательщика",null,null,null,null,null,null,null,null,null,null,null,null,{"$f":"IF(Баланс!M25=\"\",\"\",Баланс!M25)","v":""}]
["Вид экономической деятельности",null,null,null,null,null,null,null,null,null,null,null,null,{"$f":"IF(Баланс!M26=\"\",\"\",Баланс!M26)","v":""}]
["Организационно-правовая форма",null,null,null,null,null,null,null,null,null,null,null,null,{"$f":"IF(Баланс!M27=\"\",\"\",Баланс!M27)","v":""}]
["Орган управления",null,null,null,null,null,null,null,null,null,null,null,null,{"$f":"IF(Баланс!M28=\"\",\"\",Баланс!M28)","v":""}]
["Единица измерения",null,null,null,null,null,null,null,null,null,null,null,null,{"$f":"IF(Баланс!M29=\"\",\"\",Баланс!M29)","v":""}]
["Адрес",null,null,null,null,null,null,null,null,null,null,null,null,{"$f":"IF(Баланс!M30=\"\",\"\",Баланс!M30)","v":""}]
[]
["Наименование показателей",null,null,null,null,null,null,null,null,null,null,null,null,null,null,null,null,"Код строки",null,"За",{"$f":"O10","v":"январь–декабрь 2018"},null,null,null,null,null,"г.","За",{"$f":"CONCATENATE(Баланс!$AR$15,\"–\",Баланс!$AR$16,\" \",Баланс!$AQ$18)","v":"январь–декабрь 2017"},null,null,null,null,null,"г.",null,"Значения графы 4 строки 480 Баланса"]
[]
[1,null,null,null,null,null,null,null,null,null,null,null,null,null,null,null,null,2,null,3,null,null,null,null,null,null,null,4]
["Остаток средств на",null,null,null,null,null,{"$f":"Баланс!$AC$39","v":"2017-12-31"},null,null,null,null,null,null,null,null,null,null,100,null,{"$f":"AB48","v":0},null,null,null,null,null,null,null,null,null,null,null,null,null,null,null,null,{"$f":"Баланс!AB86","v":0}]
[]
["Поступило средств",null,null,null,null,null,null,null,null,null,null,null,null,null,null,null,null,200,null,{"$f":"SUM(T27:AA31)","v":0},null,null,null,null,null,null,null,{"$f":"SUM(AB27:AI31)","v":0}]
["в том числе:"]
["вступительные взносы",null,null,null,null,null,null,null,null,null,null,null,null,null,null,null,null,210]
["членские взносы",null,null,null,null,null,null,null,null,null,null,null,null,null,null,null,null,220]
["целевые взносы",null,null,null,null,null,null,null,null,null,null,null,null,null,null,null,null,230]
["безвозмездная (спонсорская) помощь",null,null,null,null,null,null,null,null,null,null,null,null,null,null,null,null,240]
["прочие поступления",null,null,null,null,null,null,null,null,null,null,null,null,null,null,null,null,250]
["Использовано средств",null,null,null,null,null,null,null,null,null,null,null,null,null,null,null,null,300,null,{"$f":"T34+T39+T47","v":0},null,null,null,null,null,null,null,{"$f":"AB34+AB39+AB47","v":0}]
["в том числе:"]
["на целевые мероприятия",null,null,null,null,null,null,null,null,null,null,null,null,null,null,null,null,310,null,{"$f":"SUM(T35:AA38)","v":0},null,null,null,null,null,null,null,{"$f":"SUM(AB35:AI38)","v":0}]
["в том числе:"]
["безвозмездная (спонсорская) помощь",null,null,null,null,null,null,null,null,null,null,null,null,null,null,null,null,311]
["представительские и иные аналогичные мероприятия",null,null,null,null,null,null,null,null,null,null,null,null,null,null,null,null,312]
["иные мероприятия",null,null,null,null,null,null,null,null,null,null,null,null,null,null,null,null,313]
["на содержание аппарата управления",null,null,null,null,null,null,null,null,null,null,null,null,null,null,null,null,320,null,{"$f":"SUM(T40:AA46)","v":0},null,null,null,null,null,null,null,{"$f":"SUM(AB40:AI46)","v":0}]
["в том числе:"]
["на оплату труда",null,null,null,null,null,null,null,null,null,null,null,null,null,null,null,null,321]
["на служебные командировки",null,null,null,null,null,null,null,null,null,null,null,null,null,null,null,null,322]
["содержание основных средств и иного имущества",null,null,null,null,null,null,null,null,null,null,null,null,null,null,null,null,323]
["ремонт основных средств и иного имущества",null,null,null,null,null,null,null,null,null,null,null,null,null,null,null,null,324]
["амортизация основных средств и иного имущества",null,null,null,null,null,null,null,null,null,null,null,null,null,null,null,null,325,null,null,null,null,null,null,null,null,null,null,null,null,null,null,null,null,null,null,"Значения графы 3 строки 480 Баланса"]
["прочие",null,null,null,null,null,null,null,null,null,null,null,null,null,null,null,null,326]
["на иные цели",null,null,null,null,null,null,null,null,null,null,null,null,null,null,null,null,330]
["Остаток средств на",null,null,null,null,null,{"$f":"Баланс!$AS$2","v":"2018-12-31"},null,null,null,null,null,null,null,null,null,null,400,null,{"$f":"T23+T25-T32","v":0},null,null,null,null,null,null,null,{"$f":"AB23+AB25-AB32","v":0},null,null,null,null,null,null,null,null,{"$f":"Баланс!$T$86","v":0}]
[]
[]
[]
["Руководитель",null,null,null,null,null,null,null,null,null,null,null,null,null,null,null,null,null,null,null,null,null,null,null,null,null,{"$f":"Баланс!AA118","v":0}]
[null,null,null,null,null,null,null,null,null,null,"(подпись)",null,null,null,null,null,null,null,null,null,null,null,null,null,null,null,"(инициалы, фамилия)"]
[]
["Главный бухгалтер",null,null,null,null,null,null,null,null,null,null,null,null,null,null,null,null,null,null,null,null,null,null,null,null,null,{"$f":"Баланс!AA121","v":0}]
[null,null,null,null,null,null,null,null,null,null,"(подпись)",null,null,null,null,null,null,null,null,null,null,null,null,null,null,null,"(инициалы, фамилия)"]
[]
[{"$f":"TODAY()","v":"2020-09-25"}]

{"sheet":"Чистые активы","index":6,"n_rows":56,"n_cols":36,"rows_kept":56,"cut":false,"hidden":false,"merged":[[9,35,11,35],[53,0,53,1],[53,2,53,18],[53,19,53,26],[53,27,53,34],[52,0,52,1],[52,2,52,18],[52,19,52,26],[52,27,52,34],[51,0,51,1],[51,19,51,26],[51,27,51,34],[50,0,50,1],[50,2,50,18],[50,19,50,26],[50,27,50,34],[48,0,48,1],[48,2,48,18],[48,19,48,26],[48,27,48,34],[49,0,49,1],[49,2,49,18],[49,19,49,26],[49,27,49,34],[46,0,46,1],[46,2,46,18],[46,19,46,26],[46,27,46,34],[47,0,47,1],[47,2,47,18],[47,19,47,26],[47,27,47,34],[43,27,43,34],[44,0,44,1],[44,2,44,18],[44,19,44,26],[44,27,44,34],[43,2,43,18],[43,19,43,26],[41,27,41,34],[42,0,42,1],[42,2,42,18],[42,19,42,26],[42,27,42,34],[41,2,41,18],[41,19,41,26],[23,2,23,18],[28,2,28,18],[20,2,20,18],[21,0,21,1],[21,2,21,18],[24,0,24,1],[25,0,25,1],[26,0,26,1],[27,0,27,1],[28,0,28,1],[16,2,16,18],[9,0,10,1],[9,2,10,18],[22,0,22,1],[22,2,22,18],[12,0,12,1],[13,0,13,1],[14,0,14,1],[15,0,15,1],[16,0,16,1],[4,0,4,34],[5,0,5,34],[6,2,6,32],[7,14,7,21],[11,0,11,1],[11,2,11,18],[11,19,11,26],[11,27,11,34],[9,20,9,26],[9,28,9,34],[29,0,29,1],[30,0,30,1],[31,0,31,1],[17,0,17,1],[18,0,18,1],[19,0,19,1],[20,0,20,1],[23,0,23,1],[15,19,15,26],[15,27,15,34],[36,0,36,1],[37,0,37,1],[45,0,45,1],[38,0,38,1],[39,0,39,1],[40,0,40,1],[41,0,41,1],[43,0,43,1],[12,19,12,26],[12,27,12,34],[13,19,13,26],[13,27,13,34],[14,19,14,26],[14,27,14,34],[16,19,16,26],[16,27,16,34],[17,19,17,26],[17,27,17,34],[54,0,54,1],[55,0,55,1],[32,0,32,1],[34,0,34,1],[33,0,33,1],[35,0,35,1],[22,27,22,34],[23,19,23,26],[23,27,23,34],[21,19,21,26],[18,19,18,26],[18,27,18,34],[19,19,19,26],[19,27,19,34],[25,19,25,26],[25,27,25,34],[26,19,26,26],[26,27,26,34],[20,19,20,26],[20,27,20,34],[24,19,24,26],[24,27,24,34],[21,27,21,34],[22,19,22,26],[29,19,29,26],[29,27,29,34],[30,19,30,26],[30,27,30,34],[27,19,27,26],[27,27,27,34],[28,19,28,26],[28,27,28,34],[34,19,34,26],[34,27,34,34],[33,19,33,26],[33,27,33,34],[31,19,31,26],[31,27,31,34],[32,19,32,26],[32,27,32,34],[39,19,39,26],[39,27,39,34],[40,19,40,26],[40,27,40,34],[35,19,35,26],[35,27,35,34],[36,19,36,26],[36,27,36,34],[54,27,54,34],[55,27,55,34],[54,19,54,26],[55,19,55,26],[37,19,37,26],[37,27,37,34],[45,19,45,26],[45,27,45,34],[38,19,38,26],[38,27,38,34],[35,2,35,18],[36,2,36,18],[37,2,37,18],[29,2,29,18],[30,2,30,18],[31,2,31,18],[32,2,32,18],[55,2,55,18],[25,2,25,18],[26,2,26,18],[27,2,27,18],[34,2,34,18],[33,2,33,18],[38,2,38,18],[39,2,39,18],[51,2,51,18],[45,2,45,18],[54,2,54,18],[17,2,17,18],[18,2,18,18],[19,2,19,18],[24,2,24,18],[12,2,12,18],[13,2,13,18],[14,2,14,18],[15,2,15,18],[40,2,40,18]]}
[null,null,null,null,null,null,null,null,null,null,null,null,null,null,null,null,null,null,null,null,null,null,null,null,null,null,"Приложение 1"]
[null,null,null,null,null,null,null,null,null,null,null,null,null,null,null,null,null,null,null,null,null,null,null,null,null,null,"к Инструкции о порядке расчета"]
[null,null,null,null,null,null,null,null,null,null,null,null,null,null,null,null,null,null,null,null,null,null,null,null,null,null,"стоимости чистых активов"]
[]
["РАСЧЕТ"]
["стоимости чистых активов организации"]
[null,null,{"$f":"IF(Баланс!$M$24=\"\",\"\",Баланс!$M$24)","v":""}]
[null,null,null,null,null,null,null,null,null,null,null,null,null,"на",{"$f":"Баланс!$N$21","v":"2018-12-31"}]
[]
["№ п/п",null,"Наименование показателей",null,null,null,null,null,null,null,null,null,null,null,null,null,null,null,null,"На",{"$f":"Баланс!$U$39","v":"2018-12-31"},null,null,null,null,null,null,"На",{"$f":"Баланс!$AC$39","v":"2017-12-31"},null,null,null,null,null,null,"Код строки бухгалтерского баланса"]
[]
[1,null,2,null,null,null,null,null,null,null,null,null,null,null,null,null,null,null,null,3,null,null,null,null,null,null,null,4]
[1,null,"АКТИВЫ"]
[null,null,"В том числе:"]
["1.1",null,"долгосрочные активы",null,null,null,null,null,null,null,null,null,null,null,null,null,null,null,null,{"$f":"SUM(T17:AA24)","v":0},null,null,null,null,null,null,null,{"$f":"SUM(AB17:AI24)","v":0},null,null,null,null,null,null,null,190]
[null,null,"в том числе:"]
["1.1.1",null,"основные средства",null,null,null,null,null,null,null,null,null,null,null,null,null,null,null,null,{"$f":"Баланс!T43","v":0},null,null,null,null,null,null,null,{"$f":"Баланс!AB43","v":0},null,null,null,null,null,null,null,110]
["1.1.2",null,"нематериальные активы",null,null,null,null,null,null,null,null,null,null,null,null,null,null,null,null,{"$f":"Баланс!T44","v":0},null,null,null,null,null,null,null,{"$f":"Баланс!AB44","v":0},null,null,null,null,null,null,null,120]
["1.1.3",null,"доходные вложения в материальные активы",null,null,null,null,null,null,null,null,null,null,null,null,null,null,null,null,{"$f":"Баланс!T45","v":0},null,null,null,null,null,null,null,{"$f":"Баланс!AB45","v":0},null,null,null,null,null,null,null,130]
["1.1.4",null,"вложения в долгосрочные активы",null,null,null,null,null,null,null,null,null,null,null,null,null,null,null,null,{"$f":"Баланс!T50","v":0},null,null,null,null,null,null,null,{"$f":"Баланс!AB50","v":0},null,null,null,null,null,null,null,140]
["1.1.5",null,"долгосрочные финансовые вложения",null,null,null,null,null,null,null,null,null,null,null,null,null,null,null,null,{"$f":"Баланс!T51","v":0},null,null,null,null,null,null,null,{"$f":"Баланс!AB51","v":0},null,null,null,null,null,null,null,150]
["1.1.6",null,"отложенные налоговые активы",null,null,null,null,null,null,null,null,null,null,null,null,null,null,null,null,{"$f":"Баланс!T52","v":0},null,null,null,null,null,null,null,{"$f":"Баланс!AB52","v":0},null,null,null,null,null,null,null,160]
["1.1.7",null,"долгосрочная дебиторская задолженность",null,null,null,null,null,null,null,null,null,null,null,null,null,null,null,null,{"$f":"Баланс!T53","v":0},null,null,null,null,null,null,null,{"$f":"Баланс!AB53","v":0},null,null,null,null,null,null,null,170]
["1.1.8",null,"прочие долгосрочные активы",null,null,null,null,null,null,null,null,null,null,null,null,null,null,null,null,{"$f":"Баланс!T54","v":0},null,null,null,null,null,null,null,{"$f":"Баланс!AB54","v":0},null,null,null,null,null,null,null,180]
["1.2",null,"краткосрочные активы",null,null,null,null,null,null,null,null,null,null,null,null,null,null,null,null,{"$f":"SUM(T27:AA34)","v":0},null,null,null,null,null,null,null,{"$f":"SUM(AB27:AI34)","v":0},null,null,null,null,null,null,null,290]
[null,null,"в том числе:"]
["1.2.1",null,"запасы",null,null,null,null,null,null,null,null,null,null,null,null,null,null,null,null,{"$f":"Баланс!T57","v":0},null,null,null,null,null,null,null,{"$f":"Баланс!AB57","v":0},null,null,null,null,null,null,null,210]
["1.2.2",null,"долгосрочные активы, предназначенные для реализации",null,null,null,null,null,null,null,null,null,null,null,null,null,null,null,null,{"$f":"Баланс!T65","v":0},null,null,null,null,null,null,null,{"$f":"Баланс!AB65","v":0},null,null,null,null,null,null,null,220]
["1.2.3",null,"расходы будущих периодов",null,null,null,null,null,null,null,null,null,null,null,null,null,null,null,null,{"$f":"Баланс!T66","v":0},null,null,null,null,null,null,null,{"$f":"Баланс!AB66","v":0},null,null,null,null,null,null,null,230]
["1.2.4",null,"налог на добавленную стоимость по приобретенным товарам, работам, услугам",null,null,null,null,null,null,null,null,null,null,null,null,null,null,null,null,{"$f":"Баланс!T67","v":0},null,null,null,null,null,null,null,{"$f":"Баланс!AB67","v":0},null,null,null,null,null,null,null,240]
["1.2.5",null,"краткосрочная дебиторская задолженность",null,null,null,null,null,null,null,null,null,null,null,null,null,null,null,null,{"$f":"Баланс!T68","v":0},null,null,null,null,null,null,null,{"$f":"Баланс!AB68","v":0},null,null,null,null,null,null,null,250]
["1.2.6",null,"краткосрочные финансовые вложения",null,null,null,null,null,null,null,null,null,null,null,null,null,null,null,null,{"$f":"Баланс!T69","v":0},null,null,null,null,null,null,null,{"$f":"Баланс!AB69","v":0},null,null,null,null,null,null,null,260]
["1.2.7",null,"денежные средства и их эквиваленты",null,null,null,null,null,null,null,null,null,null,null,null,null,null,null,null,{"$f":"Баланс!T70","v":0},null,null,null,null,null,null,null,{"$f":"Баланс!AB70","v":0},null,null,null,null,null,null,null,270]
["1.2.8",null,"прочие краткосрочные активы",null,null,null,null,null,null,null,null,null,null,null,null,null,null,null,null,{"$f":"Баланс!T71","v":0},null,null,null,null,null,null,null,{"$f":"Баланс!AB71","v":0},null,null,null,null,null,null,null,280]
["2",null,"АКТИВЫ, принимаемые к расчету\n(строка 1.1 + строка 1.2)",null,null,null,null,null,null,null,null,null,null,null,null,null,null,null,null,{"$f":"T15+T25","v":0},null,null,null,null,null,null,null,{"$f":"AB15+AB25","v":0}]
["3",null,"ОБЯЗАТЕЛЬСТВА"]
[null,null,"В том числе:"]
["3.1",null,"долгосрочные обязательства",null,null,null,null,null,null,null,null,null,null,null,null,null,null,null,null,{"$f":"SUM(T40:AA45)","v":0},null,null,null,null,null,null,null,{"$f":"SUM(AB40:AI45)","v":0},null,null,null,null,null,null,null,590]
[null,null,"в том числе:"]
["3.1.1",null,"долгосрочные кредиты и займы",null,null,null,null,null,null,null,null,null,null,null,null,null,null,null,null,{"$f":"Баланс!T89","v":0},null,null,null,null,null,null,null,{"$f":"Баланс!AB89","v":0},null,null,null,null,null,null,null,510]
["3.1.2",null,"долгосрочные обязательства по лизинговым платежам",null,null,null,null,null,null,null,null,null,null,null,null,null,null,null,null,{"$f":"Баланс!T90","v":0},null,null,null,null,null,null,null,{"$f":"Баланс!AB90","v":0},null,null,null,null,null,null,null,520]
["3.1.3",null,"отложенные налоговые обязательства",null,null,null,null,null,null,null,null,null,null,null,null,null,null,null,null,{"$f":"Баланс!T91","v":0},null,null,null,null,null,null,null,{"$f":"Баланс!AB91","v":0},null,null,null,null,null,null,null,530]
["3.1.4",null,"доходы будущих периодов",null,null,null,null,null,null,null,null,null,null,null,null,null,null,null,null,{"$f":"Баланс!T92","v":0},null,null,null,null,null,null,null,{"$f":"Баланс!AB92","v":0},null,null,null,null,null,null,null,540]
["3.1.5",null,"резервы предстоящих платежей",null,null,null,null,null,null,null,null,null,null,null,null,null,null,null,null,{"$f":"Баланс!T93","v":0},null,null,null,null,null,null,null,{"$f":"Баланс!AB93","v":0},null,null,null,null,null,null,null,550]
["3.1.6",null,"прочие долгосрочные обязательства",null,null,null,null,null,null,null,null,null,null,null,null,null,null,null,null,{"$f":"Баланс!T94","v":0},null,null,null,null,null,null,null,{"$f":"Баланс!AB94","v":0},null,null,null,null,null,null,null,560]
["3.2",null,"краткосрочные обязательства",null,null,null,null,null,null,null,null,null,null,null,null,null,null,null,null,{"$f":"SUM(T48:AA54)","v":0},null,null,null,null,null,null,null,{"$f":"SUM(AB48:AI54)","v":0},null,null,null,null,null,null,null,690]
[null,null,"в том числе:"]
["3.2.1",null,"краткосрочные кредиты и займы",null,null,null,null,null,null,null,null,null,null,null,null,null,null,null,null,{"$f":"Баланс!T97","v":0},null,null,null,null,null,null,null,{"$f":"Баланс!AB97","v":0},null,null,null,null,null,null,null,610]
["3.2.2",null,"краткосрочная часть долгосрочных обязательств",null,null,null,null,null,null,null,null,null,null,null,null,null,null,null,null,{"$f":"Баланс!T98","v":0},null,null,null,null,null,null,null,{"$f":"Баланс!AB98","v":0},null,null,null,null,null,null,null,620]
["3.2.3",null,"краткосрочная кредиторская задолженность",null,null,null,null,null,null,null,null,null,null,null,null,null,null,null,null,{"$f":"Баланс!T99","v":0},null,null,null,null,null,null,null,{"$f":"Баланс!AB99","v":0},null,null,null,null,null,null,null,630]
["3.2.4",null,"обязательства, предназначенные для реализации",null,null,null,null,null,null,null,null,null,null,null,null,null,null,null,null,{"$f":"Баланс!T109","v":0},null,null,null,null,null,null,null,{"$f":"Баланс!AB109","v":0},null,null,null,null,null,null,null,640]
["3.2.5",null,"доходы будущих периодов",null,null,null,null,null,null,null,null,null,null,null,null,null,null,null,null,{"$f":"Баланс!T110","v":0},null,null,null,null,null,null,null,{"$f":"Баланс!AB110","v":0},null,null,null,null,null,null,null,650]
["3.2.6",null,"резервы предстоящих платежей",null,null,null,null,null,null,null,null,null,null,null,null,null,null,null,null,{"$f":"Баланс!T111","v":0},null,null,null,null,null,null,null,{"$f":"Баланс!AB111","v":0},null,null,null,null,null,null,null,660]
["3.2.7",null,"прочие краткосрочные обязательства",null,null,null,null,null,null,null,null,null,null,null,null,null,null,null,null,{"$f":"Баланс!T112","v":0},null,null,null,null,null,null,null,{"$f":"Баланс!AB112","v":0},null,null,null,null,null,null,null,670]
[4,null,"ОБЯЗАТЕЛЬСТВА, принимаемые к расчету (строка 3.1 + строка 3.2)",null,null,null,null,null,null,null,null,null,null,null,null,null,null,null,null,{"$f":"T38+T46","v":0},null,null,null,null,null,null,null,{"$f":"AB38+AB46","v":0}]
[5,null,"Стоимость чистых активов (строка 2 – строка 4)",null,null,null,null,null,null,null,null,null,null,null,null,null,null,null,null,{"$f":"T35-T55","v":0},null,null,null,null,null,null,null,{"$f":"AB35-AB55","v":0}]

{"sheet":"Расчет коэф.","index":7,"n_rows":24,"n_cols":10,"rows_kept":24,"cut":false,"hidden":false,"merged":[[1,2,1,4],[15,0,15,4],[3,0,3,4],[5,0,5,4],[6,0,6,4],[7,2,7,3]]}
[null,204,null,null,null,null,{"$f":"INDEX('Норм. знач. К1,К2,К3'!C6:C256,'Расчет коэф.'!B1)","v":"Прочая профессиональная, научная и техническая деятельность, не включенная в другие группировки"}]
[null,null,"Приложение\nк Инструкции о порядке расчета коэффициентов платежеспособности и проведения анализа финансового состояния и платежеспособности субъектов хозяйствования"]
[]
["Результаты расчета коэффициентов платежеспособности субъекта хозяйствования"]
[]
[{"$f":"IF(Баланс!M24=\"\",\"\",Баланс!M24)","v":""}]
["(наименование субъекта хозяйствования)"]
[null,"по состоянию на",{"$f":"Баланс!$N$21","v":"2018-12-31"}]
[]
["№ п/п","Наименование показателя","На начало периода","На момент установления неплатежеспо-собности","Нормативное значение коэффициента",null,"Наименование показателя","На начало периода","На конец периода","Нормативное значение коэффициента"]
[1,2,3,4,5,null,"К1",{"$f":"C12","v":0},0,{"$f":"INDEX('Норм. знач. К1,К2,К3'!D6:D256,'Расчет коэф.'!B1)","v":1.2}]
[1,"Коэффициент текущей ликвидности (К1):\nК1 = КА / КО, т. е. \nК1 = стр. 290 / стр. 690",{"$f":"IF(Баланс!AB113=0,0,Баланс!AB72/Баланс!AB113)","v":0},{"$f":"IF(Баланс!T113=0,0,Баланс!T72/Баланс!T113)","v":0},{"$f":"\"K1>=\"&J11","v":"K1>=1,2"},null,"К2",0,0,{"$f":"INDEX('Норм. знач. К1,К2,К3'!E6:E256,'Расчет коэф.'!B1)","v":0.15}]
[2,"Коэффициент обеспеченности собственными оборотными средствами (К2):\nК2 = (СК + ДО - ДА) / КА, т. е.\nК2 = (стр. 490 + стр. 590 - стр. 190) / стр. 290",{"$f":"IF(Баланс!AB72=0,0,(Баланс!AB87+Баланс!AB95-Баланс!AB55)/Баланс!AB72)","v":0},{"$f":"IF(Баланс!T72=0,0,(Баланс!T87+Баланс!T95-Баланс!T55)/Баланс!T72)","v":0},{"$f":"\"K2>=\"&J12","v":"K2>=0,15"},null,"К3",0,0,0.85]
[3,"Коэффициент обеспеченности обязательств активами (К3):\nК3 = (КО + ДО) / ИБ, т. е.\nК3 = (стр. 690 + стр. 590) / стр. 300",{"$f":"IF(Баланс!AB73=0,0,(Баланс!AB95+Баланс!AB113)/Баланс!AB73)","v":0},{"$f":"IF(Баланс!T73=0,0,(Баланс!T113+Баланс!T95)/Баланс!T73)","v":0},"К3 <= 0,85"]
[]
["Расчет других коэффициентов"]
[]
["№ п/п","Наименование показателя","На начало периода","На момент установления неплатежеспо-собности","Нормативное значение коэффициента"]
[1,2,3,4,5]
[1,"Коэффициент абсолютной ликвидности (Кабсл):\nКабсл = (ФВк + ДС) / КО, т. е.\nКабсл = (стр. 260 + стр. 270) / стр. 690",{"$f":"IF(Баланс!AB113=0,0,(Баланс!AB69+Баланс!AB70)/Баланс!AB113)","v":0},{"$f":"IF(Баланс!T113=0,0,(Баланс!T69+Баланс!T70)/Баланс!T113)","v":0},"Кабсл >= 0,2"]
[2,"Коэффициент капитализации:\nКкап = (стр. 590 + стр. 690) / стр. 490",{"$f":"IF(Баланс!AB87=0,0,(Баланс!AB95+Баланс!AB113)/Баланс!AB87)","v":0},{"$f":"IF(Баланс!T87=0,0,(Баланс!T95+Баланс!T113)/Баланс!T87)","v":0},"Ккап <= 1,0"]
[3,"Коэффициент финансовой независимости (автономии):\nКфн = стр. 490 / стр. 700",{"$f":"IF(Баланс!AB114=0,0,Баланс!AB87/Баланс!AB114)","v":0},{"$f":"IF(Баланс!T114=0,0,Баланс!T87/Баланс!T114)","v":0},"Кфн >= 0,4-0,6"]
[4,"Коэффициент общей оборачиваемости капитала:\nКоок = стр. 010 Ф. 2 / ((стр. 300 гр. 3 + стр. 300 гр. 4) / 2)",null,{"$f":"IF(Баланс!T73+Баланс!AB73=0,0,'Ф. 2'!T24*2/(Баланс!T73+Баланс!AB73))","v":0},{"$f":"IF(AND(C23=0,D23=0),\"Нет исходных данных\",IF(C23>D23,\"Общая оборачиваемость капитала снизилась\",\"Общая оборачиваемость капитала увеличилась\"))","v":"Нет исходных данных"}]
[5,"Коэффициент оборачиваемости оборотных средств (краткосрочных активов):\nКоос = стр. 010 Ф. 2 / ((стр. 290 гр. 3 + стр. 290 гр. 4) / 2)",null,{"$f":"IF(Баланс!T72+Баланс!AB72=0,0,'Ф. 2'!T24*2/(Баланс!T72+Баланс!AB72))","v":0},{"$f":"IF(AND(C24=0,D24=0),\"Нет исходных данных\",IF(C24:C24>D24,\"Оборачиваемость оборотных средств снизилась\",\"Оборачиваемость оборотных средств увеличилась\"))","v":"Нет исходных данных"}]

{"sheet":"Анализ I-II","index":8,"n_rows":24,"n_cols":9,"rows_kept":24,"cut":false,"hidden":false,"merged":[[0,0,0,8],[2,0,4,0],[2,1,4,1],[2,2,4,2],[2,3,2,8],[3,3,3,4],[3,7,3,8],[3,5,3,6]]}
["Анализ структуры долгосрочных и краткосрочных активов"]
[]
["№ пп","Наименование статьи баланса","Код строки баланса","Показатели бухгалтерского баланса"]
[null,null,null,"на конец периода",null,"на начало периода",null,"прирост(+),\nснижение(-)"]
[null,null,null,"абсолютная величина, руб.","удельный вес, %","абсолютная величина, руб.","удельный вес, %","абсолютная величина, руб.","удельный вес, %"]
[1,"ДОЛГОСРОЧНЫЕ АКТИВЫ",190,{"$f":"Баланс!T55","v":0},{"$f":"IF(D24=0,0,D6/D24)","v":0},{"$f":"Баланс!AB55","v":0},{"$f":"IF(F24=0,0,F6/F24)","v":0},{"$f":"D6-F6","v":0},{"$f":"E6-G6","v":0}]
["1.1","Основные средства",110,{"$f":"Баланс!T43","v":0},{"$f":"IF(D24=0,0,D7/D24)","v":0},{"$f":"Баланс!AB43","v":0},{"$f":"IF(F24=0,0,F7/F24)","v":0},{"$f":"D7-F7","v":0},{"$f":"E7-G7","v":0}]
["1.2","Нематериальные активы",120,{"$f":"Баланс!T44","v":0},{"$f":"IF(D24=0,0,D8/D24)","v":0},{"$f":"Баланс!AB44","v":0},{"$f":"IF(F24=0,0,F8/F24)","v":0},{"$f":"D8-F8","v":0},{"$f":"E8-G8","v":0}]
["1.3","Доходные вложения в материальные активы",130,{"$f":"Баланс!T45","v":0},{"$f":"IF(D24=0,0,D9/D24)","v":0},{"$f":"Баланс!AB45","v":0},{"$f":"IF(F24=0,0,F9/F24)","v":0},0,{"$f":"E9-G9","v":0}]
["1.4","Вложения в долгосрочные активы",140,{"$f":"Баланс!T50","v":0},{"$f":"IF(D24=0,0,D10/D24)","v":0},{"$f":"Баланс!AB50","v":0},{"$f":"IF(F24=0,0,F10/F24)","v":0},0,0]
["1.5","Долгосрочные финансовые вложения",150,{"$f":"Баланс!T51","v":0},{"$f":"IF(D24=0,0,D11/D24)","v":0},{"$f":"Баланс!AB51","v":0},{"$f":"IF(F24=0,0,F11/F24)","v":0},0,0]
["1.6","Отложенные налоговые активы",160,{"$f":"Баланс!T52","v":0},{"$f":"IF(D24=0,0,D12/D24)","v":0},{"$f":"Баланс!AB52","v":0},{"$f":"IF(F24=0,0,F12/F24)","v":0},0,0]
["1.7","Долгосрочная дебиторская задолженность",170,{"$f":"Баланс!T53","v":0},{"$f":"IF(D24=0,0,D13/D24)","v":0},{"$f":"Баланс!AB53","v":0},{"$f":"IF(F24=0,0,F13/F24)","v":0},0,0]
["1.8","Прочие долгосрочные активы",180,{"$f":"Баланс!T54","v":0},{"$f":"IF(D24=0,0,D14/D24)","v":0},{"$f":"Баланс!AB54","v":0},{"$f":"IF(F24=0,0,F14/F24)","v":0},0,0]
[2,"КРАТКОСРОЧНЫЕ АКТИВЫ",290,{"$f":"Баланс!T72","v":0},{"$f":"IF(D24=0,0,D15/D24)","v":0},{"$f":"Баланс!AB72","v":0},{"$f":"IF(F24=0,0,F15/F24)","v":0},{"$f":"D15-F15","v":0},0]
["2.1","Запасы",210,{"$f":"Баланс!T57","v":0},{"$f":"IF(D24=0,0,D16/D24)","v":0},{"$f":"Баланс!AB57","v":0},{"$f":"IF(F24=0,0,F16/F24)","v":0},0,0]
["2.2","Долгосрочные активы, предназначенные для реализации",220,{"$f":"Баланс!T65","v":0},{"$f":"IF(D24=0,0,D17/D24)","v":0},{"$f":"Баланс!AB65","v":0},{"$f":"IF(F24=0,0,F17/F24)","v":0},0,0]
["2.3","Расходы будущих периодов",230,{"$f":"Баланс!T66","v":0},{"$f":"IF(D24=0,0,D18/D24)","v":0},{"$f":"Баланс!AB66","v":0},{"$f":"IF(F24=0,0,F18/F24)","v":0},0,0]
["2.4","Налог на добавленную стоимость по приобретенным товарам, работам, услугам",240,{"$f":"Баланс!T67","v":0},{"$f":"IF(D24=0,0,D19/D24)","v":0},{"$f":"Баланс!AB67","v":0},{"$f":"IF(F24=0,0,F19/F24)","v":0},{"$f":"D19-F19","v":0},{"$f":"E19-G19","v":0}]
["2.5","Краткосрочная дебиторская задолженность",250,{"$f":"Баланс!T68","v":0},{"$f":"IF(D24=0,0,D20/D24)","v":0},{"$f":"Баланс!AB68","v":0},{"$f":"IF(F24=0,0,F20/F24)","v":0},0,{"$f":"E20-G20","v":0}]
["2.6","Краткосрочные финансовые вложения",260,{"$f":"Баланс!T69","v":0},{"$f":"IF(D24=0,0,D21/D24)","v":0},{"$f":"Баланс!AB69","v":0},{"$f":"IF(F24=0,0,F21/F24)","v":0},0,{"$f":"E21-G21","v":0}]
["2.7","Денежные средства и их эквиваленты",270,{"$f":"Баланс!T70","v":0},{"$f":"IF(D24=0,0,D22/D24)","v":0},{"$f":"Баланс!AB70","v":0},{"$f":"IF(F24=0,0,F22/F24)","v":0},0,{"$f":"E22-G22","v":0}]
["2.8","Прочие краткосрочные активы",280,{"$f":"Баланс!T71","v":0},{"$f":"IF(D24=0,0,D23/D24)","v":0},{"$f":"Баланс!AB71","v":0},{"$f":"IF(F24=0,0,F23/F24)","v":0},0,{"$f":"E23-G23","v":0}]
["3","БАЛАНС",300,{"$f":"Баланс!T73","v":0},1,{"$f":"Баланс!AB73","v":0},1,0,"Х"]

{"sheet":"Анализ III–V","index":9,"n_rows":18,"n_cols":9,"rows_kept":18,"cut":false,"hidden":false,"merged":[[0,0,0,8],[2,0,4,0],[2,1,4,1],[2,2,4,2],[2,3,2,8],[3,3,3,4],[3,5,3,6],[3,7,3,8]]}
["Анализ структуры разделов III–V бухгалтерского баланса"]
[]
["№ пп","Наименование статьи баланса","Код строки баланса","Показатели бухгалтерского баланса"]
[null,null,null,"на конец периода",null,"на начало периода",null,"прирост(+),\nснижение(-)"]
[null,null,null,"абсолютная величина, руб.","удельный вес, %","абсолютная величина, руб.","удельный вес, %","абсолютная величина, руб.","удельный вес, %"]
[1,"СОБСТВЕННЫЙ КАПИТАЛ",490,{"$f":"Баланс!T87","v":0},{"$f":"IF(D18=0,0,D6/D18)","v":0},{"$f":"Баланс!AB87","v":0},{"$f":"IF(F18=0,0,F6/F18)","v":0},{"$f":"D6-F6","v":0},{"$f":"E6-G6","v":0}]
[2,"ДОЛГОСРОЧНЫЕ ОБЯЗАТЕЛЬСТВА",590,{"$f":"Баланс!T95","v":0},{"$f":"IF(D18=0,0,D7/D18)","v":0},{"$f":"Баланс!AB95","v":0},{"$f":"IF(F18=0,0,F7/F18)","v":0},{"$f":"D7-F7","v":0},{"$f":"E7-G7","v":0}]
[3,"КРАТКОСРОЧНЫЕ ОБЯЗАТЕЛЬСТВА",690,{"$f":"Баланс!T113","v":0},{"$f":"IF(D18=0,0,D8/D18)","v":0},{"$f":"Баланс!AB113","v":0},{"$f":"IF(F18=0,0,F8/F18)","v":0},0,0]
["3.1","Краткосрочные кредиты и займы",610,{"$f":"Баланс!T97","v":0},{"$f":"IF(D18=0,0,D9/D18)","v":0},{"$f":"Баланс!AB97","v":0},{"$f":"IF(F18=0,0,F9/F18)","v":0},0,0]
["3.2","Краткосрочная часть долгосрочных обязательств",620,{"$f":"Баланс!T98","v":0},{"$f":"IF(D18=0,0,D10/D18)","v":0},{"$f":"Баланс!AB98","v":0},{"$f":"IF(F18=0,0,F10/F18)","v":0},0,0]
["3.3","Краткосрочная кредиторская задолженность",630,{"$f":"Баланс!T99","v":0},{"$f":"IF(D18=0,0,D11/D18)","v":0},{"$f":"Баланс!AB99","v":0},{"$f":"IF(F18=0,0,F11/F18)","v":0},0,0]
["3.3.1","по налогам и сборам",633,{"$f":"Баланс!T103","v":0},{"$f":"IF(D18=0,0,D12/D18)","v":0},{"$f":"Баланс!AB103","v":0},{"$f":"IF(F18=0,0,F12/F18)","v":0},0,0]
["3.3.2","по социальному страхованию и обеспечению",634,{"$f":"Баланс!T104","v":0},{"$f":"IF(D18=0,0,D13/D18)","v":0},{"$f":"Баланс!AB104","v":0},{"$f":"IF(F18=0,0,F13/F18)","v":0},0,0]
["3.4","Обязательства, предназначенные для реализации",640,{"$f":"Баланс!T109","v":0},{"$f":"IF(D18=0,0,D14/D18)","v":0},{"$f":"Баланс!AB109","v":0},{"$f":"IF(F18=0,0,F14/F18)","v":0},0,0]
["3.5","Доходы будущих периодов",650,{"$f":"Баланс!T110","v":0},{"$f":"IF(D18=0,0,D15/D18)","v":0},{"$f":"Баланс!AB110","v":0},{"$f":"IF(F18=0,0,F15/F18)","v":0},0,0]
["3.6","Резервы предстоящих платежей",660,{"$f":"Баланс!T111","v":0},{"$f":"IF(D18=0,0,D16/D18)","v":0},{"$f":"Баланс!AB111","v":0},{"$f":"IF(F18=0,0,F16/F18)","v":0},0,0]
["3.7","Прочие краткосрочные обязательства",670,{"$f":"Баланс!T112","v":0},{"$f":"IF(D18=0,0,D17/D18)","v":0},{"$f":"Баланс!AB112","v":0},{"$f":"IF(F18=0,0,F17/F18)","v":0},0,0]
[4,"БАЛАНС",700,{"$f":"Баланс!T114","v":0},1,{"$f":"Баланс!AB114","v":0},1,{"$f":"D18-F18","v":0},"Х"]

{"sheet":"Рентабельность","index":10,"n_rows":12,"n_cols":5,"rows_kept":12,"cut":false,"hidden":false,"merged":[[1,0,1,3],[2,0,2,3],[3,0,3,3],[0,0,0,3]]}
["Внимание! Формулы, применяемые для расчета показателей рентабельности субъекта хозяйствования, носят рекомендательный характер. Вашей организацией может применятся отличная от нашей методика расчета показателей эффективности работы."]
["Анализ рентабельности субъекта хозяйствования"]
[{"$f":"IF(Баланс!M24=\"\",\"\",Баланс!M24)","v":""}]
["(наименование субъекта хозяйствования)"]
["№ п/п","Наименование показателя","На начало периода","На конец периода"]
[1,2,3,4]
[1,"Рентабельность затрат (Р3):\nР3 = прибыль от реализации продукции /\nсумма затрат по реализованной продукции\nР3 = стр. 060 Ф. 2 / (стр. 020 Ф. 2 + стр. 040 Ф. 2 + стр. 050 Ф. 2) х 100",{"$f":"IF(OR('Ф. 2'!AB29<0,'Ф. 2'!AB25+'Ф. 2'!AB27+'Ф. 2'!AB28=0),0,'Ф. 2'!AB29/('Ф. 2'!AB25+'Ф. 2'!AB27+'Ф. 2'!AB28))","v":0},{"$f":"IF(OR('Ф. 2'!T29<0,'Ф. 2'!T25+'Ф. 2'!T27+'Ф. 2'!T28=0),0,'Ф. 2'!T29/('Ф. 2'!T25+'Ф. 2'!T27+'Ф. 2'!T28))","v":0}]
[2,"Рентабельность операционной деятельности (Род):\nРод = брутто-прибыль от текущей деятельности /\nобщая сумма затрат по текущей деятельности\nРод = стр. 090 Ф. 2 / (стр. 020 Ф. 2 + стр. 040 Ф. 2 + стр. 050 Ф. 2 + стр. 080 Ф. 2) х 100",{"$f":"IF(OR('Ф. 2'!AB32<0,'Ф. 2'!AB25+'Ф. 2'!AB27+'Ф. 2'!AB28+'Ф. 2'!AB31=0),0,'Ф. 2'!AB32/('Ф. 2'!AB25+'Ф. 2'!AB27+'Ф. 2'!AB28+'Ф. 2'!AB31))","v":0},{"$f":"IF(OR('Ф. 2'!T32<0,'Ф. 2'!T25+'Ф. 2'!T27+'Ф. 2'!T28+'Ф. 2'!T31=0),0,'Ф. 2'!T32/('Ф. 2'!T25+'Ф. 2'!T27+'Ф. 2'!T28+'Ф. 2'!T31))","v":0}]
[3,"Рентабельность финансовых инвестиций (Рфи):\nРфи = сумма прибыли от финансовых инвестиций /\nсредняя сумма долгосрочных и краткосрочных финансовых инвестиций\nРфи = (стр. 102 Ф. 2 + стр. 103 Ф. 2 + стр. 104 Ф. 2) / 1/2 (стр. 150 гр. 3  Баланса + стр. 150 гр. 4 Баланса + стр. 260 гр. 3 Баланса + стр. 260 гр. 4 Баланса) х 100",{"$f":"IF(OR('Ф. 2'!AB36+'Ф. 2'!AB37+'Ф. 2'!AB38<0,Баланс!T51+Баланс!AB51+Баланс!T69+Баланс!AB69=0),0,('Ф. 2'!AB36+'Ф. 2'!AB37+'Ф. 2'!AB38)/((Баланс!T51+Баланс!AB51+Баланс!T69+Баланс!AB69)/2))","v":0},{"$f":"IF(OR('Ф. 2'!T36+'Ф. 2'!T37+'Ф. 2'!T38<0,Баланс!T51+Баланс!AB51+Баланс!T69+Баланс!AB69=0),0,('Ф. 2'!T36+'Ф. 2'!T37+'Ф. 2'!T38)/((Баланс!T51+Баланс!AB51+Баланс!T69+Баланс!AB69)/2))","v":0}]
[4,"Рентабельность продаж (Рп):\nРп = прибыль от реализации продукции, работ и услуг /\nсумма полученной выручки\nРп = стр. 060 Ф. 2 / стр. 010 Ф. 2 х 100",{"$f":"IF(OR('Ф. 2'!AB29<0,'Ф. 2'!AB24=0),0,'Ф. 2'!AB29/'Ф. 2'!AB24)","v":0},{"$f":"IF(OR('Ф. 2'!T29<0,'Ф. 2'!T24=0),0,'Ф. 2'!T29/'Ф. 2'!T24)","v":0}]
[5,"Рентабельность совокупных активов (Робщ):\nРобщ = общая сумма брутто-прибыли до выплаты процентов и налогов /\nсреднегодовая сумма совокупных активов \nРобщ = (стр. 150 Ф. 2 + стр. 131 Ф. 2) / 1/2 (стр. 300 гр.3 Баланса + стр. 300 гр. 4 Баланса) х 12 / n х 100, где n - число месяцев в отчетном периоде",{"$f":"IF(OR('Ф. 2'!AB53+'Ф. 2'!AB49<0,Баланс!T73+Баланс!AB73=0),0,(('Ф. 2'!AB53+'Ф. 2'!AB49)/((Баланс!T73+Баланс!AB73)/2))*(12/$E$11))","v":0},{"$f":"IF(OR('Ф. 2'!T53+'Ф. 2'!T49<0,Баланс!T73+Баланс!AB73=0),0,(('Ф. 2'!T53+'Ф. 2'!T49)/((Баланс!T73+Баланс!AB73)/2))*(12/$E$11))","v":0},{"$f":"IF(Баланс!U5=\"I\",3,IF(Баланс!U5=\"II\",6,IF(Баланс!U5=\"III\",9,12)))","v":12}]
[6,"Рентабельность собственного капитала (Рск):\nРск = сумма чистой прибыли отчетного периода /\nсредняя величина собственного капитала \nРск = стр. 210 Ф. 2 / 1/2 (стр. 490 гр.3 Баланса +  стр. 490 гр. 4 Баланса) х 12 / n х 100, где n - число месяцев в отчетном периоде",{"$f":"IF(OR('Ф. 2'!AB59<0,Баланс!T87+Баланс!AB87=0),0,(('Ф. 2'!AB59)/((Баланс!T87+Баланс!AB87)/2))*(12/$E$11))","v":0},{"$f":"IF(OR('Ф. 2'!T59<0,Баланс!T87+Баланс!AB87=0),0,(('Ф. 2'!T59)/((Баланс!T87+Баланс!AB87)/2))*(12/$E$11))","v":0}]

{"sheet":"Взаимоувязка внутри форм","index":11,"n_rows":58,"n_cols":2,"rows_kept":58,"cut":false,"hidden":false,"merged":[[51,0,51,1],[0,0,0,1],[3,0,3,1],[16,0,16,1],[28,0,28,1],[39,0,39,1],[38,0,38,1]]}
["Взаимоувязка показателей форм годовой бухгалтерской отчетности"]
[]
["Сопоставимые показатели","Показатели, с которыми производится сопоставление"]
["Бухгалтерский баланс"]
["Строка 130 (гр.3 и 4)","Сумма строк 131, 132, 133 (гр.3 и 4)"]
["Строка 190 (гр.3 и 4)","Сумма строк 110, 120, 130, 140, 150, 160, 170, 180 (гр.3 и 4)"]
["Строка 210 (гр.3 и 4)","Сумма строк 211, 212, 213, 214, 215, 216 (гр.3 и 4)"]
["Строка 290 (гр.3 и 4)","Сумма строк 210, 220, 230, 240, 250, 260, 270, 280 (гр.3 и 4)"]
["Строка 300 (гр.3 и 4)","Сумма строк 190, 290 (гр.3 и 4)"]
["Строка 300 (гр.3 и 4)","Строка 700 (гр.3 и 4)"]
["Строка 490 (гр.3 и 4)","Строка 410 - строка 420 - строка 430 ± строка 440 ± строка 450 ± строка 460 ± строка 470 (только при составлении промежуточной бухгалтерской отчетности) + строка 480 (гр.3 и 4)"]
["Строка 590 (гр.3 и 4)","Сумма строк 510, 520, 530, 540, 550, 560 (гр.3 и 4)"]
["Строка 630 (гр.3 и 4)","Сумма строк 631, 632, 633, 634, 635, 636, 637, 638 (гр.3 и 4)"]
["Строка 690 (гр.3 и 4)","Сумма строк 610, 620, 630, 640, 650, 660, 670 (гр.3 и 4)"]
["Строка 700 (гр.3 и 4)","Сумма строк 490, 590, 690 (гр.3 и 4)"]
["Строка 700 (гр.3 и 4)","Строка 300 (гр.3 и 4)"]
["Отчет о прибылях и убытках"]
["Строка 030 (гр.3 и 4)","Строка 010 - строка 020 (гр.3 и 4)"]
["Строка 060 (гр.3 и 4)","± строка 030 - строка 040 - строка 050 (гр.3 и 4)"]
["Строка 090 (гр.3 и 4)","± строка 060 + строка 070 - строка 080 (гр.3 и 4)"]
["Строка 100 (гр.3 и 4)","Сумма строк 101, 102, 103, 104 (гр.3 и 4)"]
["Строка 110 (гр.3 и 4)","Сумма строк 111, 112 (гр.3 и 4)"]
["Строка 120 (гр.3 и 4)","Сумма строк 121, 122 (гр.3 и 4)"]
["Строка 130 (гр.3 и 4)","Сумма строк 131, 132, 133 (гр.3 и 4)"]
["Строка 140 (гр.3 и 4)","Строка 100 - строка 110 + строка 120 - строка 130 (гр.3 и 4)"]
["Строка 150 (гр.3 и 4)","± строка 090 ± строка 140 (гр.3 и 4)"]
["Строка 210 (гр.3 и 4)","± строка 150 - строка 160 ± строка 170 ± строка 180 - строка 190 - строка 200 (гр.3 и 4)"]
["Строка 240 (гр.3 и 4)","± строка 210 ± строка 220 ± строка 230 (гр.3 и 4)"]
["Отчет об изменении собственного капитала"]
["Строка 040 (гр.3-10)","± строка 010 ± строка 020 ± строка 030 (гр.3-10)"]
["Строка 050 (гр.3-10)","Сумма строк 051, 052, 053, 054, 055, 056, 057, 058, 059 (гр.3-10)"]
["Строка 060 (гр.3-10)","Сумма строк 061, 062, 063, 064, 065, 066, 067, 068, 069 (гр.3-10)"]
["Строка 100 (гр.3-10)","± строка 040 ± строка 050 ± строка 060 ± строка 070 ± строка 080 ± строка 090 (гр.3-10)"]
["Строка 110 (гр.3-10)","Строка 100 (гр. 3-10)*"]
["Строка 140 (гр.3-10)","± строка 110 ± строка 120 ± строка 130 (гр.3-10)"]
["Строка 150 (гр.3-10)","Сумма строк 151, 152, 153, 154, 155, 156, 157, 158, 159 (гр.3-10)"]
["Строка 160 (гр.3-10)","Сумма строк 161, 162, 163, 164, 165, 166, 167, 168, 169 (гр.3-10)"]
["Строка 200 (гр.3-10)","± строка 140 ± строка 150 ± строка 160 ± строка 170 ± строка 180 ± строка 190 (гр.3-10)"]
["* Только при составлении годовой бухгалтерской отчетности."]
["Отчет о движении денежных средств"]
["Строка 020 (гр.3 и 4)","Сумма строк 021, 022, 023, 024 (гр.3 и 4)"]
["Строка 030 (гр.3 и 4)","Сумма строк 031, 032, 033, 034 (гр.3 и 4)"]
["Строка 040 (гр.3 и 4)","Строка 020 - строка 030 (гр.3 и 4)"]
["Строка 050 (гр.3 и 4)","Сумма строк 051, 052, 053, 054, 055 (гр.3 и 4)"]
["Строка 060 (гр.3 и 4)","Сумма строк 061, 062, 063, 064 (гр.3 и 4)"]
["Строка 070 (гр.3 и 4)","Строка 050 - строка 060 (гр.3 и 4)"]
["Строка 080 (гр.3 и 4)","Сумма строк 081, 082, 083, 084 (гр.3 и 4)"]
["Строка 090 (гр.3 и 4)","Сумма строк 091, 092, 093, 094, 095 (гр.3 и 4)"]
["Строка 100 (гр.3 и 4)","Строка 080 - строка 090 (гр.3 и 4)"]
["Строка 110 (гр.3 и 4)","± строка 040 ± строка 070 ± строка 100 (гр.3 и 4)"]
["Строка 130 (гр.3 и 4)","Строка 120 ± строка 110 (гр.3 и 4)"]
["Отчет об использовании целевого финансирования"]
["Строка 100 гр. 3","Строка 400 гр. 4"]
["Строка 200 (гр.3 и 4)","Сумма строк 210, 220, 230, 240, 250 (гр.3 и 4)"]
["Строка 300 (гр.3 и 4)","Сумма строк 310, 320, 330 (гр.3 и 4)"]
["Строка 310 (гр.3 и 4)","Сумма строк 311, 312, 313 (гр.3 и 4)"]
["строка 320 (гр.3 и 4)","Сумма строк 321, 322, 323, 324, 325, 326 (гр.3 и 4)"]
["Строка 400 (гр.3 и 4)","Строка 100 + строка 200 - строка 300 (гр.3 и 4)"]

{"sheet":"Увязка между формами","index":12,"n_rows":30,"n_cols":2,"rows_kept":30,"cut":false,"hidden":false,"merged":[[0,0,0,1],[29,0,29,1]]}
["Увязки показателей между формами годовой бухгалтерской отчетности"]
[]
["Сопоставимые показатели","Показатели, с которыми производится сопоставление"]
["Бухгалтерский баланс","Отчет о прибылях и убытках"]
["Строка 470 гр. 3 (только при составлении промежуточной бухгалтерской отчетности)","Строка 210 гр. 3 (только при составлении промежуточной бухгалтерской отчетности)"]
["Бухгалтерский баланс","Отчет об изменении собственного капитала"]
["Строка 410 гр.3","Строка 200 гр.3"]
["Строка 410 гр.4","Строка 140 гр.3"]
["Строка 420 гр.3","Строка 200 гр.4"]
["Строка 420 гр.4","Строка 140 гр.4"]
["Строка 430 гр.3","Строка 200 гр.5"]
["Строка 430 гр.4","Строка 140 гр.5"]
["Строка 440 гр.3","Строка 200 гр.6"]
["Строка 440 гр.4","Строка 140 гр.6"]
["Строка 450 гр.3","Строка 200 гр.7"]
["Строка 450 гр.4","Строка 140 гр.7"]
["Строка 460 гр.3","Строка 200 гр.8"]
["Строка 460 гр.4","Строка 140 гр.8"]
["Строка 470 гр.3 (только при составлении промежуточной бухгалтерской отчетности в указанных графах будут иметься данные)","Строка 200 гр.9 (только при составлении промежуточной бухгалтерской отчетности в указанных графах будут иметься данные)"]
["Строка 470 гр.4 (показатель отсутствует, в графе проставлен прочерк)","Строка 140 гр.9 (показатель отсутствует, в графе проставлен прочерк)"]
["Бухгалтерский баланс","Отчет о движении денежных средств"]
["Строка 270 гр.3","Строка 130 гр.3"]
["Строка 270 гр.4","Строка 120 гр.3\nСтрока 130 гр. 4 (только при составлении годовой бухгалтерской отчетности)"]
["Бухгалтерский баланс","Отчет об использовании целевого финансирования"]
["Строка 480 гр.3","Строка 400 гр.3"]
["Строка 480 гр.4","Строка 400 гр. 4\nСтрока 100 гр.3"]
["Отчет о прибылях и убытках*","Отчет об изменении собственного капитала*"]
["Строка 220 гр.3","Строка 152 гр.7 - строка 162 гр.7"]
["Строка 220 гр.4","Строка 052 гр.7 - строка 062 гр.7"]
["     * При отсутствии в отчетном году исправления ошибок, допущенных в предыдущем году и связанных с переоценкой долгосрочных активов, отражаемой на счете 83 \"Добавочный капитал\". В противном случае взаимоувязка между данными формами может отсутствовать."]

{"sheet":"Норм. знач. коэф. ликвид.","index":13,"n_rows":256,"n_cols":6,"rows_kept":256,"cut":false,"hidden":false,"merged":[[5,0,17,0],[18,0,27,0],[28,0,123,0],[124,0,126,0],[178,0,184,0],[127,0,132,0],[133,0,141,0],[142,0,162,0],[163,0,177,0],[245,0,247,0],[0,3,0,5],[226,0,244,0],[249,0,254,0],[5,5,255,5],[2,0,2,5],[185,0,197,0],[198,0,207,0],[208,0,210,0],[211,0,225,0]]}
[null,null,null,"УТВЕРЖДЕНО\nПостановление Совета Министров\nРеспублики Беларусь\n12.12.2011 № 1672\n(в редакции постановления Совета Министров\nРеспублики Беларусь\n22.01.2016 № 48)"]
[]
["Нормативные значения коэффициентов платежеспособности, дифференцированные по видам экономической деятельности"]
[]
["Наименование секций","Группы","Вид деятельности","Коэффициент текущей ликвидности – норматив (К1)","Коэффициент обеспеченности собственными оборотными средствами – норматив (К2)","Коэффициент обеспеченности финансовых обязательств активами – норматив (К3)"]
["1. А. Сельское, лесное и рыбное хозяйство","011","Выращивание одно- или двухлетних культур",1.5,0.2,"для всех видов экономической деятельности согласно Общегосударственному классификатору видов экономической деятельности в Республике Беларусь – не более 0,85"]
[null,"012","Выращивание многолетних культур",1.5,0.2]
[null,"013","Производство продукции питомников",1.5,0.2]
[null,"014","Животноводство",1.5,0.2]
[null,"015","Смешанное сельское хозяйство",1.5,0.2]
[null,"016","Деятельность, способствующая выращиванию сельскохозяйственных культур и разведению животных",1.5,0.2]
[null,"017","Охота и отлов, включая предоставление услуг в этих областях",1.5,0.2]
[null,"021","Лесоводство и прочая лесохозяйственная деятельность",1.5,0.2]
[null,"022","Лесозаготовки",1.5,0.2]
[null,"023","Сбор дикорастущей недревесной продукции",1.5,0.2]
[null,"024","Услуги, связанные с лесоводством и лесозаготовками",1.5,0.2]
[null,"031","Рыболовство",1.5,0.2]
[null,"032","Рыбоводство",1.5,0.2]
["2. В. Горнодобывающая промышленность","051","Добыча каменного угля и антрацита",1.7,0.3]
[null,"052","Добыча бурого угля ",1.7,0.3]
[null,"061","Добыча нефти",1.7,0.3]
[null,"062","Добыча природного газа",1.7,0.3]
[null,"071","Добыча железных руд",1.7,0.3]
[null,"072","Добыча руд (кроме железных)",1.7,0.3]
[null,"081","Добыча камня, песка и глины",1.7,0.3]
[null,"089","Добыча полезных ископаемых, не включенных в другие группировки",1.7,0.3]
[null,"091","Предоставление услуг, способствующих добыче нефти и природного газа",1.7,0.3]
[null,"099","Предоставление услуг, способствующих добыче других полезных ископаемых",1.2,0.15]
["3. С. Обрабатывающая промышленность","101","Переработка и консервирование мяса и производство мясной и мясосодержащей продукции",1.3,0.2]
[null,"102","Переработка и консервирование рыбы, ракообразных и моллюсков",1.7,0.3]
[null,"103","Переработка и консервирование фруктов и овощей",1.7,0.3]
[null,"104","Производство растительных и животных масел и жиров",1.3,0.2]
[null,"105","Производство молочных продуктов",1.3,0.2]
[null,"106","Производство мукомольно-крупяных продуктов, крахмалов и крахмальных продуктов",1.3,0.2]
[null,"107","Производство хлебобулочных, макаронных и мучных кондитерских изделий",1.3,0.2]
[null,"108","Производство прочих продуктов питания",1.3,0.2]
[null,"109","Производство готовых кормов для животных",1.3,0.2]
[null,"110","Производство напитков",1.7,0.3]
[null,"120","Производство табачных изделий",1.7,0.3]
[null,"131","Подготовка и прядение текстильных волокон",1.3,0.2]
[null,"132","Ткацкое производство",1.3,0.2]
[null,"133","Отделка тканей и текстильных изделий",1.3,0.2]
[null,"139","Производство прочих текстильных изделий, кроме одежды",1.3,0.2]
[null,"141","Производство одежды, кроме одежды из меха",1.3,0.2]
[null,"142","Производство меховых изделий",1.3,0.2]
[null,"143","Производство вязаной и трикотажной одежды",1.3,0.2]
[null,"151","Дубление и выделка кожи; выделка и крашение меха; производство дорожных принадлежностей, шорно-седельных изделий",1.3,0.2]
[null,"152","Производство обуви",1.3,0.2]
[null,"161","Распиловка, строгание и пропитка древесины",1.3,0.2]
[null,"162","Производство изделий из древесины, пробки, соломки и материалов для плетения",1.3,0.2]
[null,"171","Производство целлюлозы, древесной массы, бумаги и картона",1.3,0.2]
[null,"172","Производство изделий из бумаги и картона",1.3,0.2]
[null,"181","Полиграфическая деятельность и предоставление услуг в данной области",1.3,0.2]
[null,"182","Тиражирование записанных носителей информации",1.3,0.2]
[null,"191","Производство продукции коксовых печей",1.4,0.2]
[null,"192","Производство продуктов нефтепереработки, брикетов из торфа и угля",1.7,0.3]
[null,"19201","Производство продуктов нефтепереработки",1.4,0.2]
[null,"201","Производство основных химических веществ, удобрений и азотных соединений, пластмасс и синтетического каучука в первичных формах",1.4,0.2]
[null,"202","Производство пестицидов и прочих агрохимических продуктов",1.4,0.2]
[null,"203","Производство красок, лаков и аналогичных покрытий, типографских красок и мастик",1.4,0.2]
[null,"204","Производство мыла и моющих, чистящих и полирующих средств, парфюмерных и косметических средств",1.4,0.2]
[null,"205","Производство различных химических продуктов, не включенных в другие группировки",1.4,0.2]
[null,"206","Производство искусственных и синтетических волокон",1.4,0.2]
[null,"211","Производство основных фармацевтических продуктов",1.4,0.2]
[null,"212","Производство фармацевтических препаратов и медицинских материалов",1.4,0.2]
[null,"221","Производство резиновых изделий",1.3,0.2]
[null,"222","Производство пластмассовых изделий",1.3,0.2]
[null,"231","Производство стекла и изделий из стекла",1.2,0.15]
[null,"232","Производство огнеупоров",1.2,0.15]
[null,"233","Производство строительных материалов из глины",1.2,0.15]
[null,"234","Производство прочих фарфоровых и керамических изделий",1.2,0.15]
[null,"235","Производство цемента, извести и строительного гипса",1.2,0.15]
[null,"236","Производство изделий из бетона, цемента и строительного гипса",1.2,0.15]
[null,"237","Резка, обработка и отделка камня",1.2,0.15]
[null,"239","Производство абразивных изделий и других неметаллических минеральных продуктов",1.2,0.15]
[null,"241","Производство чугуна, стали и ферросплавов",1.3,0.2]
[null,"242","Производство труб, трубопроводов, профилей, фитингов из стали",1.3,0.2]
[null,"243","Производство прочих стальных изделий путем первичной обработки",1.2,0.15]
[null,"244","Производство основных благородных и цветных металлов",1.3,0.2]
[null,"245","Литье металлов",1.3,0.2]
[null,"251","Производство строительных металлических конструкций и изделий",1.2,0.15]
[null,"252","Производство радиаторов, котлов центрального отопления, металлических цистерн, резервуаров, контейнеров ",1.3,0.2]
[null,"253","Производство паровых и водогрейных котлов, кроме котлов центрального отопления",1.3,0.2]
[null,"254","Производство оружия и боеприпасов",1.3,0.2]
[null,"255","Ковка, прессование, штамповка, профилирование металла; производство изделий методом порошковой металлургии",1.3,0.2]
[null,"256","Обработка металлов и нанесение покрытий на металлы; основные технологические процессы машиностроения",1.3,0.2]
[null,"257","Производство ножевых изделий, инструментов и замочно-скобяных изделий",1.3,0.2]
[null,"259","Производство прочих готовых металлических изделий",1.3,0.2]
[null,"261","Производство электронных элементов и плат",1.3,0.2]
[null,"262","Производство компьютеров и периферийного оборудования",1.3,0.2]
[null,"263","Производство коммуникационного оборудования",1.3,0.2]
[null,"264","Производство электронной бытовой техники",1.3,0.2]
[null,"265","Производство инструментов и приборов для измерения, тестирования и навигации; производство часов",1.3,0.2]
[null,"266","Производство облучающего, электромедицинского и электротерапевтического оборудования",1.3,0.2]
[null,"267","Производство оптических приборов, фото- и кинооборудования",1.3,0.2]
[null,"268","Производство магнитных и оптических носителей информации",1.4,0.2]
[null,"271","Производство электродвигателей, генераторов, трансформаторов, электрораспределительной и регулирующей аппаратуры",1.3,0.2]
[null,"272","Производство электрических аккумуляторов и аккумуляторных батарей",1.3,0.2]
[null,"273","Производство электропроводки и электромонтажных устройств",1.3,0.2]
[null,"274","Производство электроосветительного оборудования",1.3,0.2]
[null,"275","Производство бытовой техники",1.3,0.2]
[null,"279","Производство прочего электрооборудования",1.3,0.2]
[null,"281","Производство оборудования общего назначения",1.3,0.2]
[null,"282","Производство отдельных машин и оборудования общего назначения",1.3,0.2]
[null,"283","Производство машин и оборудования для сельского и лесного хозяйства ",1.6,0.1]
[null,"284","Производство станков",1.3,0.2]
[null,"289","Производство отдельных машин и оборудования специального назначения",1.3,0.2]
[null,"291","Производство автомобилей",1.3,0.2]
[null,"292","Производство кузовов для автомобилей; производство прицепов и полуприцепов",1.3,0.2]
[null,"293","Производство частей и принадлежностей автомобилей",1.3,0.2]
[null,"301","Строительство судов",1.3,0.2]
[null,"302","Производство железнодорожных локомотивов и подвижного состава",1.3,0.2]
[null,"303","Производство летательных аппаратов, оборудования для них",1.3,0.2]
[null,"304","Производство военных боевых автомобилей",1.3,0.2]
[null,"309","Производство прочих транспортных средств и оборудования",1.3,0.2]
[null,"310","Производство мебели",1.7,0.3]
[null,"321","Производство ювелирных изделий, бижутерии и аналогичных изделий",1.7,0.3]
[null,"322","Производство музыкальных инструментов",1.7,0.3]
[null,"323","Производство спортивных товаров",1.3,0.2]
[null,"324","Производство игр и игрушек",1.7,0.3]
[null,"325","Производство медицинских и стоматологических инструментов и принадлежностей",1.3,0.2]
[null,"329","Производство различных изделий, не включенных в другие группировки",1.7,0.3]
[null,"331","Ремонт готовых металлических изделий, машин и оборудования",1.3,0.2]
[null,"332","Монтаж, установка промышленных машин и оборудования",1.3,0.2]
["4. D. Снабжение электроэнергией, газом, паром, горячей водой и кондиционированным воздухом",351,"Производство, передача и распределение электроэнергии ",1.1000000000000001,0.25]
[null,352,"Производство и распределение газообразного топлива",1.01,0.3]
[null,353,"Производство, передача, распределение и продажа пара и горячей воды; кондиционирование воздуха",1.1000000000000001,0.1]
["5. Е.  Водоснабжение; сбор, обработка и удаление отходов, деятельность по ликвидации загрязнений","360","Сбор, обработка и распределение воды",1.1000000000000001,0.1]
[null,"370","Сбор и обработка сточных вод",1.1000000000000001,0.1]
[null,"381","Сбор отходов",1.1000000000000001,0.1]
[null,"382","Обработка, удаление и захоронение отходов",1.1000000000000001,0.1]
[null,"383","Деятельность по обработке вторичных материальных ресурсов",1.7,0.3]
[null,"390","Деятельность по ликвидации загрязнений и прочие услуги в области удаления отходов",1.1000000000000001,0.1]
["6. F. Строительство","411","Реализация проектов, связанных со строительством зданий",1.1000000000000001,0.1]
[null,"412","Общее строительство зданий",1.2,0.15]
[null,"421","Строительство автомобильных и железных дорог",1.2,0.15]
[null,"422","Строительство распределительных инженерных сооружений",1.2,0.15]
[null,"429","Строительство прочих инженерных сооружений",1.2,0.15]
[null,"431","Снос зданий и сооружений; подготовка строительного участка",1.2,0.15]
[null,"432","Монтаж и установка инженерного оборудования зданий и сооружений",1.2,0.15]
[null,"433","Отделочные работы",1.2,0.15]
[null,"439","Прочие специальные строительные работы",1.2,0.15]
["7. G. Оптовая и розничная торговля; ремонт автомобилей и мотоциклов","451","Торговля автомобилями",1,0.1]
[null,"452","Техническое обслуживание и ремонт автомобилей",1,0.1]
[null,"453","Торговля автомобильными деталями, узлами и принадлежностями",1,0.1]
[null,"454","Торговля мотоциклами, их деталями, узлами и принадлежностями; техническое обслуживание и ремонт мотоциклов",1,0.1]
[null,"461","Оптовая торговля за вознаграждение или на договорной основе",1,0.1]
[null,"462","Оптовая торговля сельскохозяйственным сырьем и живыми животными",1,0.1]
[null,"463","Оптовая торговля продуктами питания, напитками и табачными изделиями",1,0.1]
[null,"464","Оптовая торговля непродовольственными потребительскими товарами",1,0.1]
[null,"465","Оптовая торговля компьютерами, программным обеспечением и коммуникационным оборудованием",1,0.1]
[null,"466","Оптовая торговля прочей техникой, оборудованием, деталями и принадлежностями к ним",1,0.1]
[null,"467","Прочая специализированная оптовая торговля",1,0.1]
[null,"469","Неспециализированная оптовая торговля товарами",1,0.1]
[null,"471","Розничная торговля в неспециализированных магазинах",1,0.1]
[null,"472","Розничная торговля продуктами питания, напитками и табачными изделиями в специализированных магазинах",1,0.1]
[null,"473","Розничная торговля топливом в специализированных магазинах",1,0.1]
[null,"474","Розничная торговля компьютерами, программным обеспечением и коммуникационным оборудованием в специализированных магазинах",1,0.1]
[null,"475","Розничная торговля прочими бытовыми товарами в специализированных магазинах",1,0.1]
[null,"476","Розничная торговля товарами культурно-развлекательного характера в специализированных магазинах",1,0.1]
[null,"477","Розничная торговля прочими товарами в специализированных магазинах, не включенными в другие группировки",1,0.1]
[null,"478","Розничная торговля в палатках, киосках и на рынках",1,0.1]
[null,"479","Розничная торговля вне магазинов, палаток, киосков, рынков",1,0.1]
["8. H. Транспортная деятельность, складирование, почтовая и курьерская деятельность","491","Деятельность пассажирского железнодорожного транспорта в междугородном и международном сообщениях",1.1499999999999999,0.15]
[null,"492","Деятельность грузового железнодорожного транспорта",1.1499999999999999,0.15]
[null,"493","Деятельность прочего пассажирского сухопутного транспорта",1.1499999999999999,0.15]
[null,"494","Деятельность грузового автомобильного транспорта и предоставление услуг по переезду (перемещению)",1.1499999999999999,0.15]
[null,"495","Деятельность трубопроводного транспорта",1.1499999999999999,0.15]
[null,"501","Деятельность пассажирского морского и прибрежного транспорта",1.1499999999999999,0.15]
[null,"502","Деятельность грузового морского и прибрежного транспорта",1.1499999999999999,0.15]
[null,"503","Деятельность пассажирского речного транспорта",1.1499999999999999,0.15]
[null,"504","Деятельность грузового речного транспорта",1.1499999999999999,0.15]
[null,"511","Деятельность пассажирского воздушного транспорта",1.1499999999999999,0.15]
[null,"512","Деятельность грузового воздушного транспорта и космического транспорта",1.1499999999999999,0.15]
[null,"521","Складирование и хранение",1.1499999999999999,0.15]
[null,"522","Вспомогательная деятельность в области перевозок",1.1499999999999999,0.15]
[null,"531","Почтовая деятельность в рамках предоставления услуг общего пользования",1,0.05]
[null,"532","Прочая почтовая и курьерская деятельность",1,0.05]
["9. I. Услуги по временному проживанию и питанию","551","Предоставление услуг гостиницами и аналогичными местами для проживания",1.1000000000000001,0.1]
[null,"552","Предоставление жилья на выходные дни и прочие периоды краткосрочного проживания ",1.1000000000000001,0.1]
[null,"553","Предоставление мест для проживания на территории кемпингов, лагерей ",1.1000000000000001,0.1]
[null,"559","Предоставление услуг прочими местами для проживания ",1.1000000000000001,0.1]
[null,"561","Деятельность ресторанов",1,0.1]
[null,"562","Обслуживание мероприятий и прочие услуги по общественному питанию ",1,0.1]
[null,"563","Деятельность баров ",1,0.1]
["10.J.  Информация и связь",581,"Издание книг, периодических публикаций и другие виды издательской деятельности",1.1000000000000001,0.15]
[null,582,"Издание программного обеспечения",1.3,0.2]
[null,591,"Деятельность по производству, распространению кино-, видеофильмов и телевизионных программ, показу кинофильмов",1.1000000000000001,0.1]
[null,592,"Деятельность в сфере звукозаписи и издания музыкальных произведений",1.1000000000000001,0.15]
[null,"601","Радиовещание",1.1000000000000001,0.15]
[null,"602","Деятельность по созданию телевизионных программ и телевещание ",1.1000000000000001,0.15]
[null,"611","Деятельность в области проводной связи",1.1000000000000001,0.15]
[null,"612","Деятельность в области беспроводной связи",1.1000000000000001,0.15]
[null,"613","Деятельность в области спутниковой связи",1.1000000000000001,0.15]
[null,"619","Прочая деятельность в области телекоммуникаций",1.1000000000000001,0.15]
[null,"620","Компьютерное программирование, консультационные и другие сопутствующие услуги",1.3,0.2]
[null,"631","Обработка данных, предоставление услуг по размещению информации и связанная с этим деятельность; деятельность веб-порталов",1.3,0.2]
[null,"639","Деятельность информационных агентств и прочие виды информационного обслуживания",1.1000000000000001,0.1]
["11. K.Финансовая и страховая деятельность","641","Денежное посредничество",1.5,0.2]
[null,"642","Деятельность холдинговых компаний",1.5,0.2]
[null,"643","Деятельность трастовых компаний, инвестиционных фондов и аналогичных финансовых организаций",1.5,0.2]
[null,"649","Прочие финансовые услуги, кроме страхования и дополнительного пенсионного обеспечения",1.1000000000000001,0.1]
[null,"651","Страхование",1.5,0.2]
[null,"652","Перестрахование",1.5,0.2]
[null,"653","Дополнительное пенсионное обеспечение",1.5,0.2]
[null,"661","Вспомогательная деятельность в сфере финансовых услуг, кроме страхования и дополнительного пенсионного обеспечения",1.5,0.2]
[null,"662","Вспомогательная деятельность в сфере страхования и дополнительного пенсионного обеспечения",1.5,0.2]
[null,"663","Деятельность по управлению фондами",1.5,0.2]
["12. L. Операции с недвижимым имуществом","681","Покупка и продажа собственного недвижимого имущества",1.1000000000000001,0.1]
[null,"682","Сдача внаем собственного и арендуемого недвижимого имущества",1.1000000000000001,0.1]
[null,"683","Операции с недвижимым имуществом за вознаграждение или на договорной основе",1,0.05]
["13. М. Профессиональная, научная и техническая деятельность","691","Деятельность в области права",1,0.05]
[null,"692","Деятельность в области бухгалтерского учета и аудита; консультирование по налогообложению",1,0.05]
[null,"701","Деятельность головных организаций",1,0.05]
[null,"702","Консультирование по вопросам управления",1,0.05]
[null,"711","Деятельность в области архитектуры, инженерных изысканий и предоставление технических консультаций в этих областях",1,0.05]
[null,712,"Технические испытания, исследования, анализ и сертификация",1.2,0.15]
[null,"721","Научные исследования и разработки в области естественных и технических наук",1.1499999999999999,0.2]
[null,"722","Научные исследования и разработки в области общественных и гуманитарных наук",1.1499999999999999,0.2]
[null,731,"Рекламная деятельность",1.2,0.15]
[null,732,"Исследование конъюнктуры рынка и изучение общественного мнения",1,0.05]
[null,"741","Специализированные работы по дизайну",1.2,0.15]
[null,742,"Деятельность в области фотографии",1.1000000000000001,0.1]
[null,"743","Деятельность по письменному и устному переводу",1.2,0.15]
[null,"749","Прочая профессиональная, научная и техническая деятельность, не включенная в другие группировки",1.2,0.15]
[null,750,"Ветеринарная деятельность",1.5,0.2]
["14. N. Деятельность в сфере административных и вспомогательных услуг","771","Аренда и лизинг автомобилей",1.1000000000000001,0.1]
[null,"772","Аренда и лизинг предметов личного потребления и бытовых товаров",1.1000000000000001,0.1]
[null,"773","Аренда и лизинг прочих машин, оборудования и материальных активов",1.1000000000000001,0.1]
[null,774,"Аренда и лизинг продуктов интеллектуальной собственности и аналогичных продуктов, кроме объектов авторского права",1,0.05]
[null,"781","Деятельность агентств по трудоустройству",1.2,0.15]
[null,"782","Деятельность по предоставлению временной рабочей силы",1.2,0.15]
[null,"783","Прочая деятельность по обеспечению рабочей силой",1.2,0.15]
[null,"791","Туристическая деятельность",1.1499999999999999,0.15]
[null,"799","Прочие услуги по бронированию и сопутствующая деятельность",1.1499999999999999,0.15]
[null,"801","Деятельность по обеспечению безопасности частных лиц и имущества",1.2,0.15]
[null,"802","Деятельность в области систем обеспечения безопасности",1.2,0.15]
[null,"803","Деятельность по проведению расследований",1.2,0.15]
[null,"811","Комплексные услуги по обслуживанию зданий",1.1000000000000001,0.1]
[null,"812","Деятельность по чистке и уборке",1.1000000000000001,0.1]
[null,813,"Деятельность по благоустройству и обслуживанию ландшафтных территорий",1.5,0.2]
[null,"821","Деятельность в области офисного административного и вспомогательного обслуживания",1.2,0.15]
[null,"822","Деятельность телефонных справочно-информационных служб",1.2,0.15]
[null,"823","Организация конференций и профессиональных выставок",1.2,0.15]
[null,"829","Деятельность по предоставлению вспомогательных коммерческих услуг, не включенная в другие группировки",1.2,0.15]
["15. Q. Здравоохранение и социальные услуги",861,"Деятельность организаций, оказывающих медицинскую помощь",1.1000000000000001,0.1]
[null,869,"Прочая деятельность по охране здоровья",1.5,0.2]
[null,86902,"Деятельность служб скорой (неотложной) медицинской помощи",1.1000000000000001,0.1]
["16. R. Творчество, спорт, развлечения и отдых",931,"Деятельность в области физической культуры и спорта",1.1000000000000001,0.1]
["17. S. Предоставление прочих видов услуг",941,"Деятельность организаций, основанных на членстве, объединяющих по сферам предпринимательской и профессиональной деятельности",1.1000000000000001,0.1]
[null,942,"Деятельность профессиональных союзов",1.1000000000000001,0.1]
[null,949,"Деятельность прочих организаций, основанных на членстве",1.1000000000000001,0.1]
[null,951,"Ремонт компьютеров и коммуникационного оборудования",1.3,0.2]
[null,952,"Ремонт предметов личного пользования и бытовых изделий",1,0.1]
[null,960,"Предоставление прочих индивидуальных услуг",1.1000000000000001,0.1]
["18. Прочие виды экономической деятельности",null,null,1.5,0.2]

{"sheet":"Норм. знач. К1,К2,К3","index":14,"n_rows":256,"n_cols":5,"rows_kept":256,"cut":false,"hidden":true,"merged":[]}
[]
[]
[]
[]
[]
[null,"771","Аренда и лизинг автомобилей",1.1000000000000001,0.1]
[null,"772","Аренда и лизинг предметов личного потребления и бытовых товаров",1.1000000000000001,0.1]
[null,774,"Аренда и лизинг продуктов интеллектуальной собственности и аналогичных продуктов, кроме объектов авторского права",1,0.05]
[null,"773","Аренда и лизинг прочих машин, оборудования и материальных активов",1.1000000000000001,0.1]
[null,750,"Ветеринарная деятельность",1.5,0.2]
[null,"522","Вспомогательная деятельность в области перевозок",1.1499999999999999,0.15]
[null,"662","Вспомогательная деятельность в сфере страхования и дополнительного пенсионного обеспечения",1.5,0.2]
[null,"661","Вспомогательная деятельность в сфере финансовых услуг, кроме страхования и дополнительного пенсионного обеспечения",1.5,0.2]
[null,"012","Выращивание многолетних культур",1.5,0.2]
[null,"011","Выращивание одно- или двухлетних культур",1.5,0.2]
[null,"641","Денежное посредничество",1.5,0.2]
[null,"781","Деятельность агентств по трудоустройству",1.2,0.15]
[null,"563","Деятельность баров ",1,0.1]
[null,"711","Деятельность в области архитектуры, инженерных изысканий и предоставление технических консультаций в этих областях",1,0.05]
[null,"612","Деятельность в области беспроводной связи",1.1000000000000001,0.15]
[null,"692","Деятельность в области бухгалтерского учета и аудита; консультирование по налогообложению",1,0.05]
[null,"821","Деятельность в области офисного административного и вспомогательного обслуживания",1.2,0.15]
[null,"691","Деятельность в области права",1,0.05]
[null,"611","Деятельность в области проводной связи",1.1000000000000001,0.15]
[null,"802","Деятельность в области систем обеспечения безопасности",1.2,0.15]
[null,"613","Деятельность в области спутниковой связи",1.1000000000000001,0.15]
[null,931,"Деятельность в области физической культуры и спорта",1.1000000000000001,0.1]
[null,742,"Деятельность в области фотографии",1.1000000000000001,0.1]
[null,592,"Деятельность в сфере звукозаписи и издания музыкальных произведений",1.1000000000000001,0.15]
[null,"701","Деятельность головных организаций",1,0.05]
[null,"494","Деятельность грузового автомобильного транспорта и предоставление услуг по переезду (перемещению)",1.1499999999999999,0.15]
[null,"512","Деятельность грузового воздушного транспорта и космического транспорта",1.1499999999999999,0.15]
[null,"492","Деятельность грузового железнодорожного транспорта",1.1499999999999999,0.15]
[null,"502","Деятельность грузового морского и прибрежного транспорта",1.1499999999999999,0.15]
[null,"504","Деятельность грузового речного транспорта",1.1499999999999999,0.15]
[null,"639","Деятельность информационных агентств и прочие виды информационного обслуживания",1.1000000000000001,0.1]
[null,861,"Деятельность организаций, оказывающих медицинскую помощь",1.1000000000000001,0.1]
[null,941,"Деятельность организаций, основанных на членстве, объединяющих по сферам предпринимательской и профессиональной деятельности",1.1000000000000001,0.1]
[null,"511","Деятельность пассажирского воздушного транспорта",1.1499999999999999,0.15]
[null,"491","Деятельность пассажирского железнодорожного транспорта в междугородном и международном сообщениях",1.1499999999999999,0.15]
[null,"501","Деятельность пассажирского морского и прибрежного транспорта",1.1499999999999999,0.15]
[null,"503","Деятельность пассажирского речного транспорта",1.1499999999999999,0.15]
[null,813,"Деятельность по благоустройству и обслуживанию ландшафтных территорий",1.5,0.2]
[null,"390","Деятельность по ликвидации загрязнений и прочие услуги в области удаления отходов",1.1000000000000001,0.1]
[null,"801","Деятельность по обеспечению безопасности частных лиц и имущества",1.2,0.15]
[null,"383","Деятельность по обработке вторичных материальных ресурсов",1.7,0.3]
[null,"743","Деятельность по письменному и устному переводу",1.2,0.15]
[null,"782","Деятельность по предоставлению временной рабочей силы",1.2,0.15]
[null,"829","Деятельность по предоставлению вспомогательных коммерческих услуг, не включенная в другие группировки",1.2,0.15]
[null,"803","Деятельность по проведению расследований",1.2,0.15]
[null,591,"Деятельность по производству, распространению кино-, видеофильмов и телевизионных программ, показу кинофильмов",1.1000000000000001,0.1]
[null,"602","Деятельность по созданию телевизионных программ и телевещание ",1.1000000000000001,0.15]
[null,"663","Деятельность по управлению фондами",1.5,0.2]
[null,"812","Деятельность по чистке и уборке",1.1000000000000001,0.1]
[null,942,"Деятельность профессиональных союзов",1.1000000000000001,0.1]
[null,"493","Деятельность прочего пассажирского сухопутного транспорта",1.1499999999999999,0.15]
[null,949,"Деятельность прочих организаций, основанных на членстве",1.1000000000000001,0.1]
[null,"561","Деятельность ресторанов",1,0.1]
[null,"86902","Деятельность служб скорой (неотложной) медицинской помощи",1.1000000000000001,0.1]
[null,"822","Деятельность телефонных справочно-информационных служб",1.2,0.15]
[null,"643","Деятельность трастовых компаний, инвестиционных фондов и аналогичных финансовых организаций",1.5,0.2]
[null,"495","Деятельность трубопроводного транспорта",1.1499999999999999,0.15]
[null,"642","Деятельность холдинговых компаний",1.5,0.2]
[null,"016","Деятельность, способствующая выращиванию сельскохозяйственных культур и разведению животных",1.5,0.2]
[null,"052","Добыча бурого угля ",1.7,0.3]
[null,"071","Добыча железных руд",1.7,0.3]
[null,"051","Добыча каменного угля и антрацита",1.7,0.3]
[null,"081","Добыча камня, песка и глины",1.7,0.3]
[null,"061","Добыча нефти",1.7,0.3]
[null,"089","Добыча полезных ископаемых, не включенных в другие группировки",1.7,0.3]
[null,"062","Добыча природного газа",1.7,0.3]
[null,"072","Добыча руд (кроме железных)",1.7,0.3]
[null,"653","Дополнительное пенсионное обеспечение",1.5,0.2]
[null,"151","Дубление и выделка кожи; выделка и крашение меха; производство дорожных принадлежностей, шорно-седельных изделий",1.3,0.2]
[null,"014","Животноводство",1.5,0.2]
[null,581,"Издание книг, периодических публикаций и другие виды издательской деятельности",1.1000000000000001,0.15]
[null,582,"Издание программного обеспечения",1.3,0.2]
[null,732,"Исследование конъюнктуры рынка и изучение общественного мнения",1,0.05]
[null,"255","Ковка, прессование, штамповка, профилирование металла; производство изделий методом порошковой металлургии",1.3,0.2]
[null,"811","Комплексные услуги по обслуживанию зданий",1.1000000000000001,0.1]
[null,"620","Компьютерное программирование, консультационные и другие сопутствующие услуги",1.3,0.2]
[null,"702","Консультирование по вопросам управления",1,0.05]
[null,"021","Лесоводство и прочая лесохозяйственная деятельность",1.5,0.2]
[null,"022","Лесозаготовки",1.5,0.2]
[null,"245","Литье металлов",1.3,0.2]
[null,"432","Монтаж и установка инженерного оборудования зданий и сооружений",1.2,0.15]
[null,"332","Монтаж, установка промышленных машин и оборудования",1.3,0.2]
[null,"721","Научные исследования и разработки в области естественных и технических наук",1.1499999999999999,0.2]
[null,"722","Научные исследования и разработки в области общественных и гуманитарных наук",1.1499999999999999,0.2]
[null,"469","Неспециализированная оптовая торговля товарами",1,0.1]
[null,"631","Обработка данных, предоставление услуг по размещению информации и связанная с этим деятельность; деятельность веб-порталов",1.3,0.2]
[null,"256","Обработка металлов и нанесение покрытий на металлы; основные технологические процессы машиностроения",1.3,0.2]
[null,"382","Обработка, удаление и захоронение отходов",1.1000000000000001,0.1]
[null,"562","Обслуживание мероприятий и прочие услуги по общественному питанию ",1,0.1]
[null,"412","Общее строительство зданий",1.2,0.15]
[null,"683","Операции с недвижимым имуществом за вознаграждение или на договорной основе",1,0.05]
[null,"461","Оптовая торговля за вознаграждение или на договорной основе",1,0.1]
[null,"465","Оптовая торговля компьютерами, программным обеспечением и коммуникационным оборудованием",1,0.1]
[null,"464","Оптовая торговля непродовольственными потребительскими товарами",1,0.1]
[null,"463","Оптовая торговля продуктами питания, напитками и табачными изделиями",1,0.1]
[null,"466","Оптовая торговля прочей техникой, оборудованием, деталями и принадлежностями к ним",1,0.1]
[null,"462","Оптовая торговля сельскохозяйственным сырьем и живыми животными",1,0.1]
[null,"823","Организация конференций и профессиональных выставок",1.2,0.15]
[null,"133","Отделка тканей и текстильных изделий",1.3,0.2]
[null,"433","Отделочные работы",1.2,0.15]
[null,"017","Охота и отлов, включая предоставление услуг в этих областях",1.5,0.2]
[null,"101","Переработка и консервирование мяса и производство мясной и мясосодержащей продукции",1.3,0.2]
[null,"102","Переработка и консервирование рыбы, ракообразных и моллюсков",1.7,0.3]
[null,"103","Переработка и консервирование фруктов и овощей",1.7,0.3]
[null,"652","Перестрахование",1.5,0.2]
[null,"131","Подготовка и прядение текстильных волокон",1.3,0.2]
[null,"681","Покупка и продажа собственного недвижимого имущества",1.1000000000000001,0.1]
[null,"181","Полиграфическая деятельность и предоставление услуг в данной области",1.3,0.2]
[null,"531","Почтовая деятельность в рамках предоставления услуг общего пользования",1,0.05]
[null,"552","Предоставление жилья на выходные дни и прочие периоды краткосрочного проживания ",1.1000000000000001,0.1]
[null,"553","Предоставление мест для проживания на территории кемпингов, лагерей ",1.1000000000000001,0.1]
[null,960,"Предоставление прочих индивидуальных услуг",1.1000000000000001,0.1]
[null,"551","Предоставление услуг гостиницами и аналогичными местами для проживания",1.1000000000000001,0.1]
[null,"559","Предоставление услуг прочими местами для проживания ",1.1000000000000001,0.1]
[null,"099","Предоставление услуг, способствующих добыче других полезных ископаемых",1.2,0.15]
[null,"091","Предоставление услуг, способствующих добыче нефти и природного газа",1.7,0.3]
[null,"239","Производство абразивных изделий и других неметаллических минеральных продуктов",1.2,0.15]
[null,"291","Производство автомобилей",1.3,0.2]
[null,"275","Производство бытовой техники",1.3,0.2]
[null,"304","Производство военных боевых автомобилей",1.3,0.2]
[null,"143","Производство вязаной и трикотажной одежды",1.3,0.2]
[null,"109","Производство готовых кормов для животных",1.3,0.2]
[null,"302","Производство железнодорожных локомотивов и подвижного состава",1.3,0.2]
[null,352,"Производство и распределение газообразного топлива",1.01,0.3]
[null,"324","Производство игр и игрушек",1.7,0.3]
[null,"236","Производство изделий из бетона, цемента и строительного гипса",1.2,0.15]
[null,"172","Производство изделий из бумаги и картона",1.3,0.2]
[null,"162","Производство изделий из древесины, пробки, соломки и материалов для плетения",1.3,0.2]
[null,"265","Производство инструментов и приборов для измерения, тестирования и навигации; производство часов",1.3,0.2]
[null,"206","Производство искусственных и синтетических волокон",1.4,0.2]
[null,"263","Производство коммуникационного оборудования",1.3,0.2]
[null,"262","Производство компьютеров и периферийного оборудования",1.3,0.2]
[null,"203","Производство красок, лаков и аналогичных покрытий, типографских красок и мастик",1.4,0.2]
[null,"292","Производство кузовов для автомобилей; производство прицепов и полуприцепов",1.3,0.2]
[null,"303","Производство летательных аппаратов, оборудования для них",1.3,0.2]
[null,"268","Производство магнитных и оптических носителей информации",1.4,0.2]
[null,"283","Производство машин и оборудования для сельского и лесного хозяйства ",1.6,0.1]
[null,"310","Производство мебели",1.7,0.3]
[null,"325","Производство медицинских и стоматологических инструментов и принадлежностей",1.3,0.2]
[null,"142","Производство меховых изделий",1.3,0.2]
[null,"105","Производство молочных продуктов",1.3,0.2]
[null,"322","Производство музыкальных инструментов",1.7,0.3]
[null,"106","Производство мукомольно-крупяных продуктов, крахмалов и крахмальных продуктов",1.3,0.2]
[null,"204","Производство мыла и моющих, чистящих и полирующих средств, парфюмерных и косметических средств",1.4,0.2]
[null,"110","Производство напитков",1.7,0.3]
[null,"257","Производство ножевых изделий, инструментов и замочно-скобяных изделий",1.3,0.2]
[null,"266","Производство облучающего, электромедицинского и электротерапевтического оборудования",1.3,0.2]
[null,"281","Производство оборудования общего назначения",1.3,0.2]
[null,"152","Производство обуви",1.3,0.2]
[null,"232","Производство огнеупоров",1.2,0.15]
[null,"141","Производство одежды, кроме одежды из меха",1.3,0.2]
[null,"267","Производство оптических приборов, фото- и кинооборудования",1.3,0.2]
[null,"254","Производство оружия и боеприпасов",1.3,0.2]
[null,"244","Производство основных благородных и цветных металлов",1.3,0.2]
[null,"211","Производство основных фармацевтических продуктов",1.4,0.2]
[null,"201","Производство основных химических веществ, удобрений и азотных соединений, пластмасс и синтетического каучука в первичных формах",1.4,0.2]
[null,"282","Производство отдельных машин и оборудования общего назначения",1.3,0.2]
[null,"289","Производство отдельных машин и оборудования специального назначения",1.3,0.2]
[null,"253","Производство паровых и водогрейных котлов, кроме котлов центрального отопления",1.3,0.2]
[null,"202","Производство пестицидов и прочих агрохимических продуктов",1.4,0.2]
[null,"222","Производство пластмассовых изделий",1.3,0.2]
[null,"19201","Производство продуктов нефтепереработки",1.4,0.2]
[null,"192","Производство продуктов нефтепереработки, брикетов из торфа и угля",1.7,0.3]
[null,"191","Производство продукции коксовых печей",1.4,0.2]
[null,"013","Производство продукции питомников",1.5,0.2]
[null,"279","Производство прочего электрооборудования",1.3,0.2]
[null,"259","Производство прочих готовых металлических изделий",1.3,0.2]
[null,"108","Производство прочих продуктов питания",1.3,0.2]
[null,"243","Производство прочих стальных изделий путем первичной обработки",1.2,0.15]
[null,"139","Производство прочих текстильных изделий, кроме одежды",1.3,0.2]
[null,"309","Производство прочих транспортных средств и оборудования",1.3,0.2]
[null,"234","Производство прочих фарфоровых и керамических изделий",1.2,0.15]
[null,"252","Производство радиаторов, котлов центрального отопления, металлических цистерн, резервуаров, контейнеров ",1.3,0.2]
[null,"329","Производство различных изделий, не включенных в другие группировки",1.7,0.3]
[null,"205","Производство различных химических продуктов, не включенных в другие группировки",1.4,0.2]
[null,"104","Производство растительных и животных масел и жиров",1.3,0.2]
[null,"221","Производство резиновых изделий",1.3,0.2]
[null,"323","Производство спортивных товаров",1.3,0.2]
[null,"284","Производство станков",1.3,0.2]
[null,"231","Производство стекла и изделий из стекла",1.2,0.15]
[null,"233","Производство строительных материалов из глины",1.2,0.15]
[null,"251","Производство строительных металлических конструкций и изделий",1.2,0.15]
[null,"120","Производство табачных изделий",1.7,0.3]
[null,"242","Производство труб, трубопроводов, профилей, фитингов из стали",1.3,0.2]
[null,"212","Производство фармацевтических препаратов и медицинских материалов",1.4,0.2]
[null,"107","Производство хлебобулочных, макаронных и мучных кондитерских изделий",1.3,0.2]
[null,"171","Производство целлюлозы, древесной массы, бумаги и картона",1.3,0.2]
[null,"235","Производство цемента, извести и строительного гипса",1.2,0.15]
[null,"293","Производство частей и принадлежностей автомобилей",1.3,0.2]
[null,"241","Производство чугуна, стали и ферросплавов",1.3,0.2]
[null,"272","Производство электрических аккумуляторов и аккумуляторных батарей",1.3,0.2]
[null,"271","Производство электродвигателей, генераторов, трансформаторов, электрораспределительной и регулирующей аппаратуры",1.3,0.2]
[null,"264","Производство электронной бытовой техники",1.3,0.2]
[null,"261","Производство электронных элементов и плат",1.3,0.2]
[null,"274","Производство электроосветительного оборудования",1.3,0.2]
[null,"273","Производство электропроводки и электромонтажных устройств",1.3,0.2]
[null,"321","Производство ювелирных изделий, бижутерии и аналогичных изделий",1.7,0.3]
[null,351,"Производство, передача и распределение электроэнергии ",1.1000000000000001,0.25]
[null,353,"Производство, передача, распределение и продажа пара и горячей воды; кондиционирование воздуха",1.1000000000000001,0.1]
[null,"619","Прочая деятельность в области телекоммуникаций",1.1000000000000001,0.15]
[null,"783","Прочая деятельность по обеспечению рабочей силой",1.2,0.15]
[null,"869","Прочая деятельность по охране здоровья",1.5,0.2]
[null,"532","Прочая почтовая и курьерская деятельность",1,0.05]
[null,"749","Прочая профессиональная, научная и техническая деятельность, не включенная в другие группировки",1.2,0.15]
[null,"467","Прочая специализированная оптовая торговля",1,0.1]
[null,null,"Прочие виды экономической деятельности",1.5,0.2]
[null,"439","Прочие специальные строительные работы",1.2,0.15]
[null,"799","Прочие услуги по бронированию и сопутствующая деятельность",1.1499999999999999,0.15]
[null,"649","Прочие финансовые услуги, кроме страхования и дополнительного пенсионного обеспечения",1.1000000000000001,0.1]
[null,"601","Радиовещание",1.1000000000000001,0.15]
[null,"161","Распиловка, строгание и пропитка древесины",1.3,0.2]
[null,"411","Реализация проектов, связанных со строительством зданий",1.1000000000000001,0.1]
[null,"237","Резка, обработка и отделка камня",1.2,0.15]
[null,731,"Рекламная деятельность",1.2,0.15]
[null,"331","Ремонт готовых металлических изделий, машин и оборудования",1.3,0.2]
[null,951,"Ремонт компьютеров и коммуникационного оборудования",1.3,0.2]
[null,952,"Ремонт предметов личного пользования и бытовых изделий",1,0.1]
[null,"471","Розничная торговля в неспециализированных магазинах",1,0.1]
[null,"478","Розничная торговля в палатках, киосках и на рынках",1,0.1]
[null,"479","Розничная торговля вне магазинов, палаток, киосков, рынков",1,0.1]
[null,"474","Розничная торговля компьютерами, программным обеспечением и коммуникационным оборудованием в специализированных магазинах",1,0.1]
[null,"472","Розничная торговля продуктами питания, напитками и табачными изделиями в специализированных магазинах",1,0.1]
[null,"475","Розничная торговля прочими бытовыми товарами в специализированных магазинах",1,0.1]
[null,"477","Розничная торговля прочими товарами в специализированных магазинах, не включенными в другие группировки",1,0.1]
[null,"476","Розничная торговля товарами культурно-развлекательного характера в специализированных магазинах",1,0.1]
[null,"473","Розничная торговля топливом в специализированных магазинах",1,0.1]
[null,"032","Рыбоводство",1.5,0.2]
[null,"031","Рыболовство",1.5,0.2]
[null,"023","Сбор дикорастущей недревесной продукции",1.5,0.2]
[null,"370","Сбор и обработка сточных вод",1.1000000000000001,0.1]
[null,"381","Сбор отходов",1.1000000000000001,0.1]
[null,"360","Сбор, обработка и распределение воды",1.1000000000000001,0.1]
[null,"682","Сдача внаем собственного и арендуемого недвижимого имущества",1.1000000000000001,0.1]
[null,"521","Складирование и хранение",1.1499999999999999,0.15]
[null,"015","Смешанное сельское хозяйство",1.5,0.2]
[null,"431","Снос зданий и сооружений; подготовка строительного участка",1.2,0.15]
[null,"741","Специализированные работы по дизайну",1.2,0.15]
[null,"651","Страхование",1.5,0.2]
[null,"421","Строительство автомобильных и железных дорог",1.2,0.15]
[null,"429","Строительство прочих инженерных сооружений",1.2,0.15]
[null,"422","Строительство распределительных инженерных сооружений",1.2,0.15]
[null,"301","Строительство судов",1.3,0.2]
[null,712,"Технические испытания, исследования, анализ и сертификация",1.2,0.15]
[null,"452","Техническое обслуживание и ремонт автомобилей",1,0.1]
[null,"182","Тиражирование записанных носителей информации",1.3,0.2]
[null,"132","Ткацкое производство",1.3,0.2]
[null,"453","Торговля автомобильными деталями, узлами и принадлежностями",1,0.1]
[null,"451","Торговля автомобилями",1,0.1]
[null,"454","Торговля мотоциклами, их деталями, узлами и принадлежностями; техническое обслуживание и ремонт мотоциклов",1,0.1]
[null,"791","Туристическая деятельность",1.1499999999999999,0.15]
[null,"024","Услуги, связанные с лесоводством и лесозаготовками",1.5,0.2]